date,department/service,beneficiary,amount,summary of purpose,category,transaction number
01.05.2017,ADULT SOCIAL CARE,CANARY CARE LTD,900,SOUTHWARK RESOURCE CENTRE,EQUIPMENT PURCHASE & REPAIR,5902247771
01.05.2017,CHILDREN'S SERVICES,WRIXONCARE SEVICES,"2,068.00",CARE PRACTICE GROUP SET C,OTHER PAYMENTS FOR CLIENTS,5902248490
01.05.2017,F & C S EXCLUDING CORPORATE BUDGETS,PRINT4UK LTD,300,ADMINISTRATIVE SUPPORT,PRINTING,5902248291
01.05.2017,HOUSING,OCO LIMITED,"514,725.61",PAYMENTS CONTROL ACCOUNT - OCO,MANUAL CREDITORS,5902248052
02.05.2017,ADULT SOCIAL CARE,REDACTED PERSONAL DATA,-687.2,APPOINTEESHIPS,OTHER PAYMENTS FOR CLIENTS,2102665921
02.05.2017,ADULT SOCIAL CARE,REDACTED PERSONAL DATA,-298.8,APPOINTEESHIPS,OTHER PAYMENTS FOR CLIENTS,2102665919
02.05.2017,ADULT SOCIAL CARE,REDACTED PERSONAL DATA,298.8,APPOINTEESHIPS,OTHER PAYMENTS FOR CLIENTS,2102665824
02.05.2017,ADULT SOCIAL CARE,REDACTED PERSONAL DATA,687.2,APPOINTEESHIPS,OTHER PAYMENTS FOR CLIENTS,2102665826
02.05.2017,CHILDREN'S SERVICES,WRIXONCARE SEVICES,"1,181.00",CARE GRPS  4 TO 6,OTHER PAYMENTS FOR CLIENTS,5902248491
03.05.2017,ADULT SOCIAL CARE,ST MUNGO'S ASSOCIATION,251.09,APPOINTEESHIPS,OTHER PAYMENTS FOR CLIENTS,2102665876
03.05.2017,ADULT SOCIAL CARE,ELIZABETH PETERS CARE HOMES LTD,280,APPOINTEESHIPS,OTHER PAYMENTS FOR CLIENTS,2102665867
03.05.2017,ADULT SOCIAL CARE,OLDERCARE (HASLEMERE) LTD,300,APPOINTEESHIPS,OTHER PAYMENTS FOR CLIENTS,2102665874
03.05.2017,ADULT SOCIAL CARE,ST MUNGO'S ASSOCIATION,311.5,APPOINTEESHIPS,OTHER PAYMENTS FOR CLIENTS,2102665875
03.05.2017,ADULT SOCIAL CARE,HAVELOCK COURT NURSING HOME,320,APPOINTEESHIPS,OTHER PAYMENTS FOR CLIENTS,2102665844
03.05.2017,ADULT SOCIAL CARE,LONDON CYRENIANS HOUSING LTD,320,APPOINTEESHIPS,OTHER PAYMENTS FOR CLIENTS,2102665869
03.05.2017,ADULT SOCIAL CARE,FOUNTAIN CARE LTD,329.4,APPOINTEESHIPS,OTHER PAYMENTS FOR CLIENTS,2102665369
03.05.2017,ADULT SOCIAL CARE,METRO HOMECARE LTD,340,APPOINTEESHIPS,OTHER PAYMENTS FOR CLIENTS,2102665872
03.05.2017,ADULT SOCIAL CARE,PEABODY TRUST,364.8,APPOINTEESHIPS,OTHER PAYMENTS FOR CLIENTS,2102665854
03.05.2017,ADULT SOCIAL CARE,PEABODY TRUST,384.08,APPOINTEESHIPS,OTHER PAYMENTS FOR CLIENTS,2102665855
03.05.2017,ADULT SOCIAL CARE,UPLANDS CARE HOME,448.2,APPOINTEESHIPS,OTHER PAYMENTS FOR CLIENTS,2102665384
03.05.2017,ADULT SOCIAL CARE,CHOICE SUPPORT,480,APPOINTEESHIPS,OTHER PAYMENTS FOR CLIENTS,2102665868
03.05.2017,ADULT SOCIAL CARE,RIGHT SUPPORT MANAGEMENT LTD,500,APPOINTEESHIPS,OTHER PAYMENTS FOR CLIENTS,2102665858
03.05.2017,ADULT SOCIAL CARE,METRO HOMECARE LTD,520,APPOINTEESHIPS,OTHER PAYMENTS FOR CLIENTS,2102665873
03.05.2017,ADULT SOCIAL CARE,HEXAGON HOUSING ASSOCIATION LTD,537.08,APPOINTEESHIPS,OTHER PAYMENTS FOR CLIENTS,2102665845
03.05.2017,ADULT SOCIAL CARE,HEXAGON HOUSING ASSOCIATION LTD,988.6,APPOINTEESHIPS,OTHER PAYMENTS FOR CLIENTS,2102665848
03.05.2017,ADULT SOCIAL CARE,EQUINOX CARE,"1,090.20",APPOINTEESHIPS,OTHER PAYMENTS FOR CLIENTS,2102665863
03.05.2017,ADULT SOCIAL CARE,EQUINOX CARE,"1,090.20",APPOINTEESHIPS,OTHER PAYMENTS FOR CLIENTS,2102665864
03.05.2017,ADULT SOCIAL CARE,GLEN CARE GROUP,"1,500.00",APPOINTEESHIPS,OTHER PAYMENTS FOR CLIENTS,2102665877
03.05.2017,ADULT SOCIAL CARE,REDACTED PERSONAL DATA,259.2,APPOINTEESHIPS,OTHER PAYMENTS FOR CLIENTS,2102665857
03.05.2017,ADULT SOCIAL CARE,REDACTED PERSONAL DATA,260,APPOINTEESHIPS,OTHER PAYMENTS FOR CLIENTS,2102665856
03.05.2017,ADULT SOCIAL CARE,REDACTED PERSONAL DATA,300,APPOINTEESHIPS,OTHER PAYMENTS FOR CLIENTS,2102665847
03.05.2017,ADULT SOCIAL CARE,REDACTED PERSONAL DATA,320,APPOINTEESHIPS,OTHER PAYMENTS FOR CLIENTS,2102665842
03.05.2017,ADULT SOCIAL CARE,REDACTED PERSONAL DATA,340,APPOINTEESHIPS,OTHER PAYMENTS FOR CLIENTS,2102665841
03.05.2017,ADULT SOCIAL CARE,REDACTED PERSONAL DATA,460,APPOINTEESHIPS,OTHER PAYMENTS FOR CLIENTS,2102665839
03.05.2017,ADULT SOCIAL CARE,REDACTED PERSONAL DATA,600,APPOINTEESHIPS,OTHER PAYMENTS FOR CLIENTS,5902248601
03.05.2017,ADULT SOCIAL CARE,NESTOR PRIMECARE SERVICES LTD,388.5,LD LTS 18-64,HOMECARE - C&V,2102665732
03.05.2017,ADULT SOCIAL CARE,LONDON CARE LTD,460.88,LD LTS 18-64,HOMECARE - C&V,2102665449
03.05.2017,ADULT SOCIAL CARE,THE REGARD PARTNERSHIP,"1,032.80",LD LTS 18-64,HOMECARE - SPOT,2102665769
03.05.2017,ADULT SOCIAL CARE,THE REGARD PARTNERSHIP,"1,362.40",LD LTS 18-64,HOMECARE - SPOT,2102665765
03.05.2017,ADULT SOCIAL CARE,CARE DIRECT UK LTD,404.6,LD LTS 18-64,PAYMENTS TO CARERS,2102665600
03.05.2017,ADULT SOCIAL CARE,MARCUS AND MARCUS LTD,"5,314.33",LD LTS 18-64,SUPPORTED LIVING,2102665766
03.05.2017,ADULT SOCIAL CARE,REDACTED PERSONAL DATA,"1,125.12",LD LTS 18-64,SUPPORTED LIVING,2102665763
03.05.2017,ADULT SOCIAL CARE,HOUSING & CARE 21,392,LD LTS 65+,SUPPORTED LIVING,2102665764
03.05.2017,ADULT SOCIAL CARE,CARE DIRECT UK LTD,259.68,MEM LTS 65+,HOMECARE - SPOT,2102665502
03.05.2017,ADULT SOCIAL CARE,CARE DIRECT UK LTD,553.09,MEM LTS 65+,HOMECARE - SPOT,2102665760
03.05.2017,ADULT SOCIAL CARE,LONDON CARE LTD,263.36,MH LTS 18-64,HOMECARE - C&V,2102665389
03.05.2017,ADULT SOCIAL CARE,LONDON CARE LTD,263.36,MH LTS 18-64,HOMECARE - C&V,2102665446
03.05.2017,ADULT SOCIAL CARE,LONDON CARE LTD,296.28,MH LTS 18-64,HOMECARE - C&V,2102665395
03.05.2017,ADULT SOCIAL CARE,LONDON CARE LTD,296.28,MH LTS 18-64,HOMECARE - C&V,2102665447
03.05.2017,ADULT SOCIAL CARE,LONDON CARE LTD,307.4,MH LTS 18-64,HOMECARE - C&V,2102665394
03.05.2017,ADULT SOCIAL CARE,LONDON CARE LTD,329.2,MH LTS 18-64,HOMECARE - C&V,2102665410
03.05.2017,ADULT SOCIAL CARE,LONDON CARE LTD,329.2,MH LTS 18-64,HOMECARE - C&V,2102665422
03.05.2017,ADULT SOCIAL CARE,LONDON CARE LTD,329.2,MH LTS 18-64,HOMECARE - C&V,2102665430
03.05.2017,ADULT SOCIAL CARE,LONDON CARE LTD,329.2,MH LTS 18-64,HOMECARE - C&V,2102665431
03.05.2017,ADULT SOCIAL CARE,LONDON CARE LTD,329.2,MH LTS 18-64,HOMECARE - C&V,2102665432
03.05.2017,ADULT SOCIAL CARE,LONDON CARE LTD,395.04,MH LTS 18-64,HOMECARE - C&V,2102665405
03.05.2017,ADULT SOCIAL CARE,LONDON CARE LTD,395.04,MH LTS 18-64,HOMECARE - C&V,2102665407
03.05.2017,ADULT SOCIAL CARE,LONDON CARE LTD,395.04,MH LTS 18-64,HOMECARE - C&V,2102665409
03.05.2017,ADULT SOCIAL CARE,LONDON CARE LTD,395.04,MH LTS 18-64,HOMECARE - C&V,2102665441
03.05.2017,ADULT SOCIAL CARE,LONDON CARE LTD,526.72,MH LTS 18-64,HOMECARE - C&V,2102665415
03.05.2017,ADULT SOCIAL CARE,LONDON CARE LTD,526.72,MH LTS 18-64,HOMECARE - C&V,2102665437
03.05.2017,ADULT SOCIAL CARE,LONDON CARE LTD,691.32,MH LTS 18-64,HOMECARE - C&V,2102665404
03.05.2017,ADULT SOCIAL CARE,LONDON CARE LTD,691.32,MH LTS 18-64,HOMECARE - C&V,2102665434
03.05.2017,ADULT SOCIAL CARE,LONDON CARE LTD,"1,119.28",MH LTS 18-64,HOMECARE - C&V,2102665418
03.05.2017,ADULT SOCIAL CARE,LONDON CARE LTD,"1,119.28",MH LTS 18-64,HOMECARE - C&V,2102665428
03.05.2017,ADULT SOCIAL CARE,LONDON CARE LTD,"1,209.81",MH LTS 18-64,HOMECARE - C&V,2102665443
03.05.2017,ADULT SOCIAL CARE,LONDON CARE LTD,"1,234.50",MH LTS 18-64,HOMECARE - C&V,2102665392
03.05.2017,ADULT SOCIAL CARE,LONDON CARE LTD,263.36,MH LTS 65+,HOMECARE - C&V,2102665398
03.05.2017,ADULT SOCIAL CARE,LONDON CARE LTD,461.1,MH LTS 65+,HOMECARE - C&V,2102665412
03.05.2017,ADULT SOCIAL CARE,LONDON CARE LTD,469.22,MH LTS 65+,HOMECARE - C&V,2102665688
03.05.2017,ADULT SOCIAL CARE,LONDON CARE LTD,614.8,MH LTS 65+,HOMECARE - C&V,2102665438
03.05.2017,ADULT SOCIAL CARE,LONDON CARE LTD,658.4,MH LTS 65+,HOMECARE - C&V,2102665391
03.05.2017,ADULT SOCIAL CARE,LONDON CARE LTD,658.4,MH LTS 65+,HOMECARE - C&V,2102665402
03.05.2017,ADULT SOCIAL CARE,LONDON CARE LTD,658.4,MH LTS 65+,HOMECARE - C&V,2102665423
03.05.2017,ADULT SOCIAL CARE,LONDON CARE LTD,658.4,MH LTS 65+,HOMECARE - C&V,2102665433
03.05.2017,ADULT SOCIAL CARE,LONDON CARE LTD,658.4,MH LTS 65+,HOMECARE - C&V,2102665445
03.05.2017,ADULT SOCIAL CARE,LONDON CARE LTD,872.52,MH LTS 65+,HOMECARE - C&V,2102665660
03.05.2017,ADULT SOCIAL CARE,LONDON CARE LTD,987.6,MH LTS 65+,HOMECARE - C&V,2102665682
03.05.2017,ADULT SOCIAL CARE,CARE DIRECT UK LTD,259.68,MH LTS 65+,HOMECARE - SPOT,2102665595
03.05.2017,ADULT SOCIAL CARE,CARE DIRECT UK LTD,364.23,MH LTS 65+,HOMECARE - SPOT,2102665601
03.05.2017,ADULT SOCIAL CARE,LONDON CARE LTD,263.36,PHY LTS 18-64,HOMECARE - C&V,2102665721
03.05.2017,ADULT SOCIAL CARE,LONDON CARE LTD,362.12,PHY LTS 18-64,HOMECARE - C&V,2102665663
03.05.2017,ADULT SOCIAL CARE,LONDON CARE LTD,362.2,PHY LTS 18-64,HOMECARE - C&V,2102665720
03.05.2017,ADULT SOCIAL CARE,LONDON CARE LTD,411.5,PHY LTS 18-64,HOMECARE - C&V,2102665632
03.05.2017,ADULT SOCIAL CARE,LONDON CARE LTD,448.65,PHY LTS 18-64,HOMECARE - C&V,2102665668
03.05.2017,ADULT SOCIAL CARE,LONDON CARE LTD,510.26,PHY LTS 18-64,HOMECARE - C&V,2102665684
03.05.2017,ADULT SOCIAL CARE,LONDON CARE LTD,510.4,PHY LTS 18-64,HOMECARE - C&V,2102665700
03.05.2017,ADULT SOCIAL CARE,LONDON CARE LTD,584.33,PHY LTS 18-64,HOMECARE - C&V,2102665689
03.05.2017,ADULT SOCIAL CARE,CARE DIRECT UK LTD,627.29,PHY LTS 18-64,HOMECARE - C&V,2102665466
03.05.2017,ADULT SOCIAL CARE,LONDON CARE LTD,691.6,PHY LTS 18-64,HOMECARE - C&V,2102665725
03.05.2017,ADULT SOCIAL CARE,LONDON CARE LTD,757.16,PHY LTS 18-64,HOMECARE - C&V,2102665694
03.05.2017,ADULT SOCIAL CARE,LONDON CARE LTD,798.58,PHY LTS 18-64,HOMECARE - C&V,2102665683
03.05.2017,ADULT SOCIAL CARE,LONDON CARE LTD,921.76,PHY LTS 18-64,HOMECARE - C&V,2102665671
03.05.2017,ADULT SOCIAL CARE,LONDON CARE LTD,992.04,PHY LTS 18-64,HOMECARE - C&V,2102665701
03.05.2017,ADULT SOCIAL CARE,LONDON CARE LTD,"1,283.88",PHY LTS 18-64,HOMECARE - C&V,2102665691
03.05.2017,ADULT SOCIAL CARE,LONDON CARE LTD,"2,765.28",PHY LTS 18-64,HOMECARE - C&V,2102665450
03.05.2017,ADULT SOCIAL CARE,LONDON CARE LTD,"2,901.51",PHY LTS 18-64,HOMECARE - C&V,2102665648
03.05.2017,ADULT SOCIAL CARE,CARE DIRECT UK LTD,256.31,PHY LTS 18-64,HOMECARE - SPOT,2102665572
03.05.2017,ADULT SOCIAL CARE,LONDON CARE LTD,296.34,PHY LTS 18-64,HOMECARE - SPOT,2102665652
03.05.2017,ADULT SOCIAL CARE,CARE DIRECT UK LTD,647.52,PHY LTS 18-64,HOMECARE - SPOT,2102665621
03.05.2017,ADULT SOCIAL CARE,CARE DIRECT UK LTD,661.01,PHY LTS 18-64,HOMECARE - SPOT,2102665459
03.05.2017,ADULT SOCIAL CARE,CARE DIRECT UK LTD,711.6,PHY LTS 18-64,HOMECARE - SPOT,2102665583
03.05.2017,ADULT SOCIAL CARE,NESTOR PRIMECARE SERVICES LTD,803.21,PHY LTS 18-64,HOMECARE - SPOT,2102665743
03.05.2017,ADULT SOCIAL CARE,CHINESE ASSOCIATION OF TOWER HAMLET,997.5,PHY LTS 18-64,HOMECARE - SPOT,2102665737
03.05.2017,ADULT SOCIAL CARE,MEDACS HOMECARE,"2,106.09",PHY LTS 18-64,HOMECARE - SPOT,2102665749
03.05.2017,ADULT SOCIAL CARE,LONDON CARE LTD,263.26,PHY LTS 65+,HOMECARE - C&V,2102665399
03.05.2017,ADULT SOCIAL CARE,LONDON CARE LTD,263.36,PHY LTS 65+,HOMECARE - C&V,2102665425
03.05.2017,ADULT SOCIAL CARE,LONDON CARE LTD,279.82,PHY LTS 65+,HOMECARE - C&V,2102665695
03.05.2017,ADULT SOCIAL CARE,CARE DIRECT UK LTD,279.92,PHY LTS 65+,HOMECARE - C&V,2102665544
03.05.2017,ADULT SOCIAL CARE,LONDON CARE LTD,296.28,PHY LTS 65+,HOMECARE - C&V,2102665728
03.05.2017,ADULT SOCIAL CARE,LONDON CARE LTD,300.5,PHY LTS 65+,HOMECARE - C&V,2102665676
03.05.2017,ADULT SOCIAL CARE,LONDON CARE LTD,308.75,PHY LTS 65+,HOMECARE - C&V,2102665702
03.05.2017,ADULT SOCIAL CARE,LONDON CARE LTD,333.45,PHY LTS 65+,HOMECARE - C&V,2102665686
03.05.2017,ADULT SOCIAL CARE,LONDON CARE LTD,345.68,PHY LTS 65+,HOMECARE - C&V,2102665636
03.05.2017,ADULT SOCIAL CARE,LONDON CARE LTD,345.8,PHY LTS 65+,HOMECARE - C&V,2102665629
03.05.2017,ADULT SOCIAL CARE,LONDON CARE LTD,386.87,PHY LTS 65+,HOMECARE - C&V,2102665677
03.05.2017,ADULT SOCIAL CARE,LONDON CARE LTD,399.29,PHY LTS 65+,HOMECARE - C&V,2102665723
03.05.2017,ADULT SOCIAL CARE,LONDON CARE LTD,411.64,PHY LTS 65+,HOMECARE - C&V,2102665400
03.05.2017,ADULT SOCIAL CARE,LONDON CARE LTD,411.64,PHY LTS 65+,HOMECARE - C&V,2102665439
03.05.2017,ADULT SOCIAL CARE,LONDON CARE LTD,419.86,PHY LTS 65+,HOMECARE - C&V,2102665634
03.05.2017,ADULT SOCIAL CARE,LONDON CARE LTD,460.88,PHY LTS 65+,HOMECARE - C&V,2102665653
03.05.2017,ADULT SOCIAL CARE,LONDON CARE LTD,460.88,PHY LTS 65+,HOMECARE - C&V,2102665661
03.05.2017,ADULT SOCIAL CARE,ARK HOME HEALTHCARE LTD,468,PHY LTS 65+,HOMECARE - C&V,2102665747
03.05.2017,ADULT SOCIAL CARE,CARE DIRECT UK LTD,492.39,PHY LTS 65+,HOMECARE - C&V,2102665568
03.05.2017,ADULT SOCIAL CARE,LONDON CARE LTD,534.96,PHY LTS 65+,HOMECARE - C&V,2102665711
03.05.2017,ADULT SOCIAL CARE,LONDON CARE LTD,543.32,PHY LTS 65+,HOMECARE - C&V,2102665715
03.05.2017,ADULT SOCIAL CARE,LONDON CARE LTD,559.64,PHY LTS 65+,HOMECARE - C&V,2102665644
03.05.2017,ADULT SOCIAL CARE,LONDON CARE LTD,559.78,PHY LTS 65+,HOMECARE - C&V,2102665687
03.05.2017,ADULT SOCIAL CARE,LONDON CARE LTD,568.01,PHY LTS 65+,HOMECARE - C&V,2102665693
03.05.2017,ADULT SOCIAL CARE,LONDON CARE LTD,576.24,PHY LTS 65+,HOMECARE - C&V,2102665645
03.05.2017,ADULT SOCIAL CARE,LONDON CARE LTD,576.24,PHY LTS 65+,HOMECARE - C&V,2102665697
03.05.2017,ADULT SOCIAL CARE,LONDON CARE LTD,576.24,PHY LTS 65+,HOMECARE - C&V,2102665698
03.05.2017,ADULT SOCIAL CARE,CARE DIRECT UK LTD,583.44,PHY LTS 65+,HOMECARE - C&V,2102665612
03.05.2017,ADULT SOCIAL CARE,LONDON CARE LTD,609.02,PHY LTS 65+,HOMECARE - C&V,2102665662
03.05.2017,ADULT SOCIAL CARE,LONDON CARE LTD,609.02,PHY LTS 65+,HOMECARE - C&V,2102665727
03.05.2017,ADULT SOCIAL CARE,LONDON CARE LTD,617.38,PHY LTS 65+,HOMECARE - C&V,2102665633
03.05.2017,ADULT SOCIAL CARE,LONDON CARE LTD,625.48,PHY LTS 65+,HOMECARE - C&V,2102665642
03.05.2017,ADULT SOCIAL CARE,LONDON CARE LTD,658.4,PHY LTS 65+,HOMECARE - C&V,2102665646
03.05.2017,ADULT SOCIAL CARE,LONDON CARE LTD,691.32,PHY LTS 65+,HOMECARE - C&V,2102665724
03.05.2017,ADULT SOCIAL CARE,LONDON CARE LTD,707.92,PHY LTS 65+,HOMECARE - C&V,2102665657
03.05.2017,ADULT SOCIAL CARE,LONDON CARE LTD,716.03,PHY LTS 65+,HOMECARE - C&V,2102665716
03.05.2017,ADULT SOCIAL CARE,LONDON CARE LTD,740.7,PHY LTS 65+,HOMECARE - C&V,2102665651
03.05.2017,ADULT SOCIAL CARE,LONDON CARE LTD,757.16,PHY LTS 65+,HOMECARE - C&V,2102665641
03.05.2017,ADULT SOCIAL CARE,LONDON CARE LTD,773.76,PHY LTS 65+,HOMECARE - C&V,2102665666
03.05.2017,ADULT SOCIAL CARE,LONDON CARE LTD,786.09,PHY LTS 65+,HOMECARE - C&V,2102665703
03.05.2017,ADULT SOCIAL CARE,LONDON CARE LTD,823.25,PHY LTS 65+,HOMECARE - C&V,2102665679
03.05.2017,ADULT SOCIAL CARE,LONDON CARE LTD,843.71,PHY LTS 65+,HOMECARE - C&V,2102665714
03.05.2017,ADULT SOCIAL CARE,LONDON CARE LTD,847.69,PHY LTS 65+,HOMECARE - C&V,2102665656
03.05.2017,ADULT SOCIAL CARE,LONDON CARE LTD,856.08,PHY LTS 65+,HOMECARE - C&V,2102665655
03.05.2017,ADULT SOCIAL CARE,LONDON CARE LTD,913.53,PHY LTS 65+,HOMECARE - C&V,2102665712
03.05.2017,ADULT SOCIAL CARE,LONDON CARE LTD,913.67,PHY LTS 65+,HOMECARE - C&V,2102665649
03.05.2017,ADULT SOCIAL CARE,LONDON CARE LTD,921.76,PHY LTS 65+,HOMECARE - C&V,2102665709
03.05.2017,ADULT SOCIAL CARE,LONDON CARE LTD,938.36,PHY LTS 65+,HOMECARE - C&V,2102665638
03.05.2017,ADULT SOCIAL CARE,LONDON CARE LTD,942.47,PHY LTS 65+,HOMECARE - C&V,2102665726
03.05.2017,ADULT SOCIAL CARE,LONDON CARE LTD,"1,061.81",PHY LTS 65+,HOMECARE - C&V,2102665722
03.05.2017,ADULT SOCIAL CARE,LONDON CARE LTD,"1,135.88",PHY LTS 65+,HOMECARE - C&V,2102665658
03.05.2017,ADULT SOCIAL CARE,LONDON CARE LTD,"1,168.80",PHY LTS 65+,HOMECARE - C&V,2102665643
03.05.2017,ADULT SOCIAL CARE,LONDON CARE LTD,"1,251.10",PHY LTS 65+,HOMECARE - C&V,2102665708
03.05.2017,ADULT SOCIAL CARE,LONDON CARE LTD,"1,300.34",PHY LTS 65+,HOMECARE - C&V,2102665665
03.05.2017,ADULT SOCIAL CARE,LONDON CARE LTD,"1,333.40",PHY LTS 65+,HOMECARE - C&V,2102665706
03.05.2017,ADULT SOCIAL CARE,LONDON CARE LTD,"1,383.20",PHY LTS 65+,HOMECARE - C&V,2102665692
03.05.2017,ADULT SOCIAL CARE,LONDON CARE LTD,"1,559.85",PHY LTS 65+,HOMECARE - C&V,2102665705
03.05.2017,ADULT SOCIAL CARE,LONDON CARE LTD,"1,859.98",PHY LTS 65+,HOMECARE - C&V,2102665448
03.05.2017,ADULT SOCIAL CARE,LONDON CARE LTD,"1,909.64",PHY LTS 65+,HOMECARE - C&V,2102665669
03.05.2017,ADULT SOCIAL CARE,LONDON CARE LTD,"1,918.14",PHY LTS 65+,HOMECARE - C&V,2102665631
03.05.2017,ADULT SOCIAL CARE,LONDON CARE LTD,"2,115.90",PHY LTS 65+,HOMECARE - C&V,2102665650
03.05.2017,ADULT SOCIAL CARE,MIHOMECARE LTD,"2,323.23",PHY LTS 65+,HOMECARE - C&V,2102665513
03.05.2017,ADULT SOCIAL CARE,MIHOMECARE LTD,"2,344.51",PHY LTS 65+,HOMECARE - C&V,2102665516
03.05.2017,ADULT SOCIAL CARE,MIHOMECARE LTD,"2,382.80",PHY LTS 65+,HOMECARE - C&V,2102665512
03.05.2017,ADULT SOCIAL CARE,MIHOMECARE LTD,"3,199.76",PHY LTS 65+,HOMECARE - C&V,2102665511
03.05.2017,ADULT SOCIAL CARE,CARE DIRECT UK LTD,256.31,PHY LTS 65+,HOMECARE - SPOT,2102665574
03.05.2017,ADULT SOCIAL CARE,CARE DIRECT UK LTD,258.33,PHY LTS 65+,HOMECARE - SPOT,2102665620
03.05.2017,ADULT SOCIAL CARE,CARE DIRECT UK LTD,263.06,PHY LTS 65+,HOMECARE - SPOT,2102665581
03.05.2017,ADULT SOCIAL CARE,CARE DIRECT UK LTD,266.43,PHY LTS 65+,HOMECARE - SPOT,2102665551
03.05.2017,ADULT SOCIAL CARE,CARE DIRECT UK LTD,283.29,PHY LTS 65+,HOMECARE - SPOT,2102665504
03.05.2017,ADULT SOCIAL CARE,CARE DIRECT UK LTD,300.15,PHY LTS 65+,HOMECARE - SPOT,2102665547
03.05.2017,ADULT SOCIAL CARE,STOCKWELLCARE SUPPORT SERVICES LTD,308.63,PHY LTS 65+,HOMECARE - SPOT,2102665762
03.05.2017,ADULT SOCIAL CARE,STOCKWELLCARE SUPPORT SERVICES LTD,345.66,PHY LTS 65+,HOMECARE - SPOT,2102665767
03.05.2017,ADULT SOCIAL CARE,STOCKWELLCARE SUPPORT SERVICES LTD,345.66,PHY LTS 65+,HOMECARE - SPOT,2102665768
03.05.2017,ADULT SOCIAL CARE,CARE DIRECT UK LTD,350.74,PHY LTS 65+,HOMECARE - SPOT,2102665509
03.05.2017,ADULT SOCIAL CARE,CARE DIRECT UK LTD,377.72,PHY LTS 65+,HOMECARE - SPOT,2102665618
03.05.2017,ADULT SOCIAL CARE,CARE DIRECT UK LTD,391.21,PHY LTS 65+,HOMECARE - SPOT,2102665524
03.05.2017,ADULT SOCIAL CARE,CARE DIRECT UK LTD,397.96,PHY LTS 65+,HOMECARE - SPOT,2102665558
03.05.2017,ADULT SOCIAL CARE,LAMBETH CHINESE COMMUNITY ASSOCIATION,403.94,PHY LTS 65+,HOMECARE - SPOT,2102665745
03.05.2017,ADULT SOCIAL CARE,CARE DIRECT UK LTD,418.19,PHY LTS 65+,HOMECARE - SPOT,2102665546
03.05.2017,ADULT SOCIAL CARE,CARE DIRECT UK LTD,421.56,PHY LTS 65+,HOMECARE - SPOT,2102665471
03.05.2017,ADULT SOCIAL CARE,CARE DIRECT UK LTD,424.94,PHY LTS 65+,HOMECARE - SPOT,2102665584
03.05.2017,ADULT SOCIAL CARE,CARE DIRECT UK LTD,424.94,PHY LTS 65+,HOMECARE - SPOT,2102665611
03.05.2017,ADULT SOCIAL CARE,CARE DIRECT UK LTD,462.03,PHY LTS 65+,HOMECARE - SPOT,2102665579
03.05.2017,ADULT SOCIAL CARE,CARE DIRECT UK LTD,465.41,PHY LTS 65+,HOMECARE - SPOT,2102665498
03.05.2017,ADULT SOCIAL CARE,CARE DIRECT UK LTD,472.15,PHY LTS 65+,HOMECARE - SPOT,2102665467
03.05.2017,ADULT SOCIAL CARE,METRO HOMECARE LTD,472.15,PHY LTS 65+,HOMECARE - SPOT,2102665729
03.05.2017,ADULT SOCIAL CARE,CARE DIRECT UK LTD,485.64,PHY LTS 65+,HOMECARE - SPOT,2102665598
03.05.2017,ADULT SOCIAL CARE,LAMBETH CHINESE COMMUNITY ASSOCIATION,509.31,PHY LTS 65+,HOMECARE - SPOT,2102665750
03.05.2017,ADULT SOCIAL CARE,CARE DIRECT UK LTD,519.37,PHY LTS 65+,HOMECARE - SPOT,2102665540
03.05.2017,ADULT SOCIAL CARE,CARE DIRECT UK LTD,519.37,PHY LTS 65+,HOMECARE - SPOT,2102665590
03.05.2017,ADULT SOCIAL CARE,CARE DIRECT UK LTD,519.37,PHY LTS 65+,HOMECARE - SPOT,2102665622
03.05.2017,ADULT SOCIAL CARE,METRO HOMECARE LTD,526.11,PHY LTS 65+,HOMECARE - SPOT,2102665753
03.05.2017,ADULT SOCIAL CARE,LAMBETH CHINESE COMMUNITY ASSOCIATION,544.44,PHY LTS 65+,HOMECARE - SPOT,2102665735
03.05.2017,ADULT SOCIAL CARE,CARE DIRECT UK LTD,580.07,PHY LTS 65+,HOMECARE - SPOT,2102665518
03.05.2017,ADULT SOCIAL CARE,CARE DIRECT UK LTD,607.05,PHY LTS 65+,HOMECARE - SPOT,2102665614
03.05.2017,ADULT SOCIAL CARE,CARE DIRECT UK LTD,640.78,PHY LTS 65+,HOMECARE - SPOT,2102665578
03.05.2017,ADULT SOCIAL CARE,CARE DIRECT UK LTD,708.23,PHY LTS 65+,HOMECARE - SPOT,2102665555
03.05.2017,ADULT SOCIAL CARE,CARE DIRECT UK LTD,708.23,PHY LTS 65+,HOMECARE - SPOT,2102665597
03.05.2017,ADULT SOCIAL CARE,MEDACS HOMECARE,794.75,PHY LTS 65+,HOMECARE - SPOT,2102665731
03.05.2017,ADULT SOCIAL CARE,LAMBETH CHINESE COMMUNITY ASSOCIATION,807.88,PHY LTS 65+,HOMECARE - SPOT,2102665754
03.05.2017,ADULT SOCIAL CARE,LAMBETH CHINESE COMMUNITY ASSOCIATION,"1,001.06",PHY LTS 65+,HOMECARE - SPOT,2102665739
03.05.2017,ADULT SOCIAL CARE,MEDACS HOMECARE,"1,105.43",PHY LTS 65+,HOMECARE - SPOT,2102665751
03.05.2017,ADULT SOCIAL CARE,LAMBETH CHINESE COMMUNITY ASSOCIATION,"2,950.50",PHY LTS 65+,HOMECARE - SPOT,2102665738
03.05.2017,ADULT SOCIAL CARE,ROMEDICAL LTD,366.29,SAFEGUARDING TEAM,OTHER CONTRACTORS,5902248634
03.05.2017,ADULT SOCIAL CARE,LUCAS CONSULT LTD,693.2,SAFEGUARDING TEAM,OTHER CONTRACTORS,5902248676
03.05.2017,ADULT SOCIAL CARE,PELLE LTD,"1,096.00",SAFEGUARDING TEAM,OTHER CONTRACTORS,5902248615
03.05.2017,ADULT SOCIAL CARE,ROMEDICAL LTD,"1,288.21",SAFEGUARDING TEAM,OTHER CONTRACTORS,5902248630
03.05.2017,ADULT SOCIAL CARE,PELLE LTD,"1,500.00",SAFEGUARDING TEAM,OTHER CONTRACTORS,5902248617
03.05.2017,ADULT SOCIAL CARE,ROMEDICAL LTD,"1,635.90",SAFEGUARDING TEAM,OTHER CONTRACTORS,5902248638
03.05.2017,ADULT SOCIAL CARE,LONDON CARE LTD,427.96,SOCIAL ISOLATION,HOMECARE - C&V,2102665713
03.05.2017,ADULT SOCIAL CARE,MIHOMECARE LTD,"1,089.28",SOCIAL ISOLATION,HOMECARE - C&V,2102665515
03.05.2017,ADULT SOCIAL CARE,MIHOMECARE LTD,"1,106.30",SOCIAL ISOLATION,HOMECARE - C&V,2102665514
03.05.2017,ADULT SOCIAL CARE,LONDON CARE LTD,"1,119.56",SOCIAL ISOLATION,HOMECARE - C&V,2102665647
03.05.2017,ADULT SOCIAL CARE,CARE DIRECT UK LTD,263.06,SOCIAL ISOLATION,HOMECARE - SPOT,2102665478
03.05.2017,ASSET MANAGEMENT,SCCI ALPHATRACK LTD,467,ENG CONTRACTS (NORTH),TV AERIALS R&M,5902248533
03.05.2017,ASSET MANAGEMENT,KEEPMOAT REGENERATION (APOLLO) LTD,"328,981.32",HIP MAJOR WORKS,PROFESSIONAL FEES,2102665907
03.05.2017,ASSET MANAGEMENT,TGA BUILDING CONSULTANCY,"1,896.25",PROGRAMMING,PROFESSIONAL FEES,5902248596
03.05.2017,ASSET MANAGEMENT,TGA BUILDING CONSULTANCY,"2,497.50",PROGRAMMING,PROFESSIONAL FEES,5902248597
03.05.2017,CENTRAL FUNCTIONS,STAR CONTRACTORS LIMITED,436.26,GARAGE REPAIRS,PROFESSIONAL FEES,2102665904
03.05.2017,CHIEF EXECUTIVE,KENT COUNTY COUNCIL - LASER,261.46,CAPITAL PS (REGEN),CONSTRUCTION MAIN CONTRACT -CERTIFICATED,5902248586
03.05.2017,CHILDREN AND ADULT,SHARPE PRITCHARD LLP,"1,050.00",CAPITAL PS (EDUCATION),CONSTRUCTION FEES - LEGAL,5902248614
03.05.2017,CHILDREN AND ADULT,SHARPE PRITCHARD LLP,"1,426.00",CAPITAL PS (EDUCATION),CONSTRUCTION FEES - LEGAL,5902248610
03.05.2017,CHILDREN AND ADULT,SHARPE PRITCHARD LLP,"3,910.00",CAPITAL PS (EDUCATION),CONSTRUCTION FEES - LEGAL,5902248611
03.05.2017,CHILDREN AND ADULT,SHARPE PRITCHARD LLP,"4,701.77",CAPITAL PS (EDUCATION),CONSTRUCTION FEES - LEGAL,5902248609
03.05.2017,CHILDREN'S SERVICES,PETE CRONIN PHOTOGRAPHY & VIDEO,975,ADOPTION PLACEMENTS & INTER AGENCY,EXTERNAL AGENCIES AND BODIES,5902248625
03.05.2017,CHILDREN'S SERVICES,PEGASUS INITIATIVES,"1,000.00",ADOPTION PLACEMENTS & INTER AGENCY,EXTERNAL AGENCIES AND BODIES,5902248620
03.05.2017,CHILDREN'S SERVICES,REDACTED PERSONAL DATA,401.08,ADOPTION PLACEMENTS & INTER AGENCY,PAYMENTS TO CARERS,5902248604
03.05.2017,CHILDREN'S SERVICES,CATCHPOINT,"1,200.00",ADOPTION REFORM GRANT (PART B),EXTERNAL AGENCIES AND BODIES,5902248626
03.05.2017,CHILDREN'S SERVICES,NISBETS PLC,343.09,CAMBERWELL GROVE EARLY YEARS CENTRE,EQUIPMENT PURCHASE & REPAIR,5902248640
03.05.2017,CHILDREN'S SERVICES,VEOLIA ES (UK)LTD,288.86,CAMBERWELL GROVE EARLY YEARS CENTRE,WASTE DISPOSAL CONTRACT,5902248627
03.05.2017,CHILDREN'S SERVICES,ZENITH CARS LTD,600,CARE PRACTICE GROUP SET C,HIRED VEHICLES,5902248696
03.05.2017,CHILDREN'S SERVICES,REDACTED PERSONAL DATA,850,CENTRAL COSTS - SEN,LEGAL FEES & COURT COSTS,5902248568
03.05.2017,CHILDREN'S SERVICES,OFFICE DEPOT UK LTD,744.55,CENTRAL SUPPORT,STATIONERY,5902248660
03.05.2017,CHILDREN'S SERVICES,OASIS PLACES LTD,"-9,600.00",FAMILY ASSESSMENTS,RESIDENTIAL CARE,5902248688
03.05.2017,CHILDREN'S SERVICES,WILLISPALMER,"2,432.60",FAMILY ASSESSMENTS,RESIDENTIAL CARE,5902248680
03.05.2017,CHILDREN'S SERVICES,WILLISPALMER,"3,083.20",FAMILY ASSESSMENTS,RESIDENTIAL CARE,5902248682
03.05.2017,CHILDREN'S SERVICES,WILLISPALMER,"3,350.00",FAMILY ASSESSMENTS,RESIDENTIAL CARE,5902248677
03.05.2017,CHILDREN'S SERVICES,CORAL COMMUNITY ASSESSMENTS LTD,"5,722.34",FAMILY ASSESSMENTS,RESIDENTIAL CARE,5902248674
03.05.2017,CHILDREN'S SERVICES,OASIS PLACES LTD,"13,714.29",FAMILY ASSESSMENTS,RESIDENTIAL CARE,5902248685
03.05.2017,CHILDREN'S SERVICES,OASIS PLACES LTD,"13,714.29",FAMILY ASSESSMENTS,RESIDENTIAL CARE,5902248686
03.05.2017,CHILDREN'S SERVICES,REDACTED PERSONAL DATA,999.74,FAMILY ASSESSMENTS,RESIDENTIAL CARE,5902248683
03.05.2017,CHILDREN'S SERVICES,THE COMPLETE WORKS INDEPENDENT SCHOOL,380,FE & SIXTH FORM COLLEGES,STATEMENTED FEES,2102665894
03.05.2017,CHILDREN'S SERVICES,THE COMPLETE WORKS INDEPENDENT SCHOOL,"5,092.50",FE & SIXTH FORM COLLEGES,STATEMENTED FEES,2102665898
03.05.2017,CHILDREN'S SERVICES,THE COMPLETE WORKS INDEPENDENT SCHOOL,"7,410.00",FE & SIXTH FORM COLLEGES,STATEMENTED FEES,2102665896
03.05.2017,CHILDREN'S SERVICES,THE COMPLETE WORKS INDEPENDENT SCHOOL,"50,166.60",FE & SIXTH FORM COLLEGES,STATEMENTED FEES,2102665899
03.05.2017,CHILDREN'S SERVICES,HABERDASHERS ASKES FEDERATION TRUST,"83,266.01",FE & SIXTH FORM COLLEGES,STATEMENTED FEES,2102665901
03.05.2017,CHILDREN'S SERVICES,LAMBETH COLLEGE,"90,052.11",FE & SIXTH FORM COLLEGES,STATEMENTED FEES,2102665889
03.05.2017,CHILDREN'S SERVICES,ST MARTINS IN THE FIELDS HIGH SCHOOL,734.29,FE & SIXTH FORM COLLEGES,STATEMENTED FEES,2102665888
03.05.2017,CHILDREN'S SERVICES,BRENT KNOLL SCHOOL,"1,462.25",FE & SIXTH FORM COLLEGES,STATEMENTED FEES,2102665883
03.05.2017,CHILDREN'S SERVICES,PORTLAND PLACE SCHOOL,"5,175.00",FE & SIXTH FORM COLLEGES,STATEMENTED FEES,2102665884
03.05.2017,CHILDREN'S SERVICES,STREATHAM & CLAPHAM HIGH SCHOOL,"5,871.07",FE & SIXTH FORM COLLEGES,STATEMENTED FEES,2102665892
03.05.2017,CHILDREN'S SERVICES,STREATHAM & CLAPHAM HIGH SCHOOL,"5,871.07",FE & SIXTH FORM COLLEGES,STATEMENTED FEES,2102665893
03.05.2017,CHILDREN'S SERVICES,PRENDERGAST LADYWELL SCHOOL,"8,432.74",FE & SIXTH FORM COLLEGES,STATEMENTED FEES,2102665879
03.05.2017,CHILDREN'S SERVICES,PRENDERGAST LADYWELL SCHOOL,"10,798.17",FE & SIXTH FORM COLLEGES,STATEMENTED FEES,2102665880
03.05.2017,CHILDREN'S SERVICES,ELM COURT SCHOOL,"27,338.66",FE & SIXTH FORM COLLEGES,STATEMENTED FEES,2102665882
03.05.2017,CHILDREN'S SERVICES,SYDENHAM SCHOOL,"35,509.98",FE & SIXTH FORM COLLEGES,STATEMENTED FEES,2102665887
03.05.2017,CHILDREN'S SERVICES,THOMAS TALLIS SCHOOL,"45,576.76",FE & SIXTH FORM COLLEGES,STATEMENTED FEES,2102665886
03.05.2017,CHILDREN'S SERVICES,TABITHA BARRAN,-750,LEGAL,LEGAL FEES & COURT COSTS,2102666053
03.05.2017,CHILDREN'S SERVICES,TABITHA BARRAN,750,LEGAL,LEGAL FEES & COURT COSTS,2102655080
03.05.2017,CHILDREN'S SERVICES,HOLY INNOCENTS CATHOLIC PRIMARY SCHOOL,"2,553.54",OLA - EY AND PRIMARY,STATEMENTED FEES,2102665878
03.05.2017,CHILDREN'S SERVICES,HENRY FAWCETT PRIMARY SCHOOL,"3,769.77",OLA - EY AND PRIMARY,STATEMENTED FEES,2102665890
03.05.2017,CHILDREN'S SERVICES,THOMAS TALLIS SCHOOL,"9,401.58",OLA - EY AND PRIMARY,STATEMENTED FEES,2102665885
03.05.2017,CHILDREN'S SERVICES,ELM COURT SCHOOL,"41,634.17",OLA - SPECIAL,STATEMENTED FEES,2102665881
03.05.2017,CHILDREN'S SERVICES,I4 GROUP UK LTD,268.96,POST ADOPTION ADVISE & SUPPORT,PROFESSIONAL FEES,5902248629
03.05.2017,CHILDREN'S SERVICES,CARE O LINE,275,S & FAM SUPP - PRAC GRP A SET 14-16,OTHER PAYMENTS FOR CLIENTS,5902248653
03.05.2017,CHILDREN'S SERVICES,CARE O LINE,275,S & FAM SUPP - PRAC GRP A SET 14-16,OTHER PAYMENTS FOR CLIENTS,5902248654
03.05.2017,CHILDREN'S SERVICES,CARE O LINE,275,S & FAM SUPP - PRAC GRP A SET 14-16,OTHER PAYMENTS FOR CLIENTS,5902248655
03.05.2017,CHILDREN'S SERVICES,CARE O LINE,275,S & FAM SUPP - PRAC GRP A SET 14-16,OTHER PAYMENTS FOR CLIENTS,5902248657
03.05.2017,CHILDREN'S SERVICES,1ST PLACE CHILDREN & PARENTS CENTRE,645,S & FAM SUPP - PRAC GRP A SET 14-16,OTHER PAYMENTS FOR CLIENTS,5902248670
03.05.2017,CHILDREN'S SERVICES,1ST PLACE CHILDREN & PARENTS CENTRE,645,S & FAM SUPP - PRAC GRP A SET 14-16,OTHER PAYMENTS FOR CLIENTS,5902248672
03.05.2017,CHILDREN'S SERVICES,CARE O LINE,"1,341.78",S & FAM SUPP - PRAC GRP D SET 23-25,OTHER PAYMENTS FOR CLIENTS,5902248658
03.05.2017,CHILDREN'S SERVICES,ZENITH CARS LTD,350,S & FAM SUPP - PRAC GRP F SET 29-31,HIRED VEHICLES,5902248648
03.05.2017,CHILDREN'S SERVICES,THE COMPLETE WORKS INDEPENDENT SCHOOL,"7,445.00",SEN HOME TUITION,STATEMENTED FEES,2102665897
03.05.2017,CHILDREN'S SERVICES,THE COMPLETE WORKS INDEPENDENT SCHOOL,"10,795.00",SEN HOME TUITION,STATEMENTED FEES,2102665895
03.05.2017,CHILDREN'S SERVICES,THE COMPLETE WORKS INDEPENDENT SCHOOL,"21,466.56",SEN TRANSPORT,STATEMENTED FEES,2102665900
03.05.2017,CHILDREN'S SERVICES,LOGICOUS LTD,935.5,SPECIAL GUARDIANSHIP,EXTERNAL AGENCIES AND BODIES,5902248678
03.05.2017,CHILDREN'S SERVICES,REDACTED PERSONAL DATA,"-3,507.76",SPECIAL GUARDIANSHIP,PAYMENTS TO CARERS,2102665626
03.05.2017,CHILDREN'S SERVICES,REDACTED PERSONAL DATA,"4,296.14",SPECIAL GUARDIANSHIP,PAYMENTS TO CARERS,2102665627
03.05.2017,CHILDREN'S SERVICES,DPS PSYCHOLOGY LTD,"2,012.40",SPECIALIST CARE,EXTERNAL AGENCIES AND BODIES,5902248673
03.05.2017,CHILDREN'S SERVICES,WORDS FIRST LTD,384.3,THERAPIES (DSG),STATEMENTED FEES,2102665891
03.05.2017,CHILDREN'S SERVICES,RUTH JACOBS CHILDREN'S THERAPY LTD,994.5,THERAPIES (DSG),STATEMENTED FEES,2102665902
03.05.2017,COMMUNITIES,REDACTED PERSONAL DATA,"1,901.60",NO RECOURSE TO PUBLIC FUNDS,ACCOMMODATION CHARGES,5902248689
03.05.2017,COMMUNITIES,REDACTED PERSONAL DATA,"1,901.60",NO RECOURSE TO PUBLIC FUNDS,ACCOMMODATION CHARGES,5902248693
03.05.2017,COMMUNITIES,REDACTED PERSONAL DATA,"2,300.80",NO RECOURSE TO PUBLIC FUNDS,ACCOMMODATION CHARGES,5902248695
03.05.2017,COMMUNITIES,SALTASH ENTERPRISES LTD,776.74,TRA HALLS (REPAIRS),BUILDING R&M,5902248544
03.05.2017,COMMUNITIES,SALTASH ENTERPRISES LTD,"6,136.24",TRA HALLS (REPAIRS),BUILDING R&M,5902248544
03.05.2017,COMMUNITIES,SALTASH ENTERPRISES LTD,"9,398.65",TRA HALLS (REPAIRS),BUILDING R&M,5902248544
03.05.2017,CUSTOMER EXPERIENCE HGF,STAFFINO UK LTD,750,CUSTOMER SUPPORT,MISCELLANEOUS EXPENSES,5902248566
03.05.2017,CUSTOMER EXPERIENCE HGF,CROWN HOUSING LTD,"1,085.00",NIGHTLY TA (NSC),EXTERNAL AGENCIES AND BODIES,5902248567
03.05.2017,CUSTOMER EXPERIENCE HGF,CYBERSTYLE LETTINGS LTD,"3,374.00",NIGHTLY TA (NSC),EXTERNAL AGENCIES AND BODIES,5902248641
03.05.2017,CUSTOMER EXPERIENCE HGF,CYBERSTYLE LETTINGS LTD,"3,735.50",NIGHTLY TA (NSC),EXTERNAL AGENCIES AND BODIES,5902248679
03.05.2017,ENVIRONMENT DIRECTORATE,CLOSE BROTHERS VEHICLE HIRE LTD,260,COMMERCIAL VEH CTRL A/C,HIRED VEHICLES,5902248619
03.05.2017,ENVIRONMENT DIRECTORATE,CLOSE BROTHERS VEHICLE HIRE LTD,276,COMMERCIAL VEH CTRL A/C,HIRED VEHICLES,5902248635
03.05.2017,ENVIRONMENT DIRECTORATE,CLOSE BROTHERS VEHICLE HIRE LTD,335,COMMERCIAL VEH CTRL A/C,HIRED VEHICLES,5902248650
03.05.2017,ENVIRONMENT DIRECTORATE,CLOSE BROTHERS VEHICLE HIRE LTD,449.6,COMMERCIAL VEH CTRL A/C,HIRED VEHICLES,5902248649
03.05.2017,ENVIRONMENT DIRECTORATE,HELIARC TECHNOLOGY LTD,"8,650.00",ENGINEERING CRAFTS,EQUIPMENT PURCHASE & REPAIR,5902248550
03.05.2017,ENVIRONMENT DIRECTORATE,WELDING ENGINEERING SERVICES,262,ENGINEERING CRAFTS,MATERIALS,5902248558
03.05.2017,ENVIRONMENT DIRECTORATE,METCRAFT FINISHED PRODUCTS,"1,680.00",ENGINEERING CRAFTS,OTHER CONTRACTORS,5902248540
03.05.2017,ENVIRONMENT DIRECTORATE,SPALDINGS (UK) LTD,"1,169.50",GROUNDS MAINTENANCE - GENERAL,MATERIALS,5902248637
03.05.2017,ENVIRONMENT DIRECTORATE,SOUTHWARK NEWSPAPER LTD,456,HIGHWAYS DEVELOPMENT,MARKETING & PUBLICITY SERVICES,5902248600
03.05.2017,ENVIRONMENT DIRECTORATE,AGENTIS WORKWEAR LTD,564,MANAGEMENT TEAM,"CLOTHING, UNIFORMS & LAUNDRY",5902248584
03.05.2017,ENVIRONMENT DIRECTORATE,HELIARC TECHNOLOGY LTD,500,PARKS TECH UNIT (PREMISES),BUILDING R&M,5902248550
03.05.2017,ENVIRONMENT DIRECTORATE,BLACKBURNS METALS LTD,"1,098.24",SIGN SHOP,MATERIALS,5902248554
03.05.2017,ENVIRONMENT DIRECTORATE,ELLIOT ENVIRONMENTAL LTD,400,STREET CLEANING-GENERAL,OTHER CONTRACTORS,5902248571
03.05.2017,F & C S EXCLUDING CORPORATE BUDGETS,EXPERIAN LTD,"2,317.84",COUNCIL TAX,PROFESSIONAL FEES,5902248606
03.05.2017,F & C S EXCLUDING CORPORATE BUDGETS,CIPFA,"2,200.00",PROFESSIONAL QUALIFICATIONS,TRAINING,5902248569
03.05.2017,F & C S EXCLUDING CORPORATE BUDGETS,BDO LLP,"4,166.66",RISK ADMIN,PROFESSIONAL FEES,5902248664
03.05.2017,HOUSING,MARWOOD ELECTRICAL CO,"1,011.60",STORES,CREDITORS -GR/IR CLEARING ACCOUNT,5902248548
03.05.2017,HOUSING,MARWOOD ELECTRICAL CO,"2,287.44",STORES,CREDITORS -GR/IR CLEARING ACCOUNT,5902248548
03.05.2017,HOUSING HRA,ENDEAVOUR DRILLING LTD,"3,436.00",CAPITAL PS (HRA),CONSTRUCTION FEES  - EXTERNAL,5902248595
03.05.2017,HOUSING HRA,KEEPMOAT REGENERATION (APOLLO) LTD,"4,844.31",CAPITAL PS (HRA),CONSTRUCTION MAIN CONTRACT -CERTIFICATED,2102665905
03.05.2017,HOUSING HRA,KEEPMOAT REGENERATION (APOLLO) LTD,"51,347.84",CAPITAL PS (HRA),CONSTRUCTION MAIN CONTRACT -CERTIFICATED,2102665906
03.05.2017,LEISURE DIRECTORATE,EDF ENERGY PLC,314.4,CEMETERIES,ELECTRICITY,5902248549
03.05.2017,LEISURE DIRECTORATE,EDF ENERGY PLC,405.64,CEMETERIES,ELECTRICITY,5902248546
03.05.2017,LEISURE DIRECTORATE,EDF ENERGY PLC,458.46,CEMETERIES,ELECTRICITY,5902248547
03.05.2017,LEISURE DIRECTORATE,SIMPLY HIRE LTD,370,CEMETERIES,OP LEASE/HIRE CHARGES:PLANT/EQUIP/FURNIT,5902248565
03.05.2017,LEISURE DIRECTORATE,VEOLIA ES (UK)LTD,831.78,CEMETERIES,OTHER CONTRACTORS,5902248562
03.05.2017,LEISURE DIRECTORATE,HEALTHCARE & TRANSPORT SERVICE,"1,530.00",FAST FORWARD,HIRED VEHICLES,5902248589
03.05.2017,LEISURE DIRECTORATE,KENT COUNTY COUNCIL - LASER,"1,336.49",KINGSWOOD HOUSE,ELECTRICITY,5902248585
03.05.2017,LEISURE DIRECTORATE,PHS GROUP PLC,-331.59,SDM BUDGET,PREMISES CLEANING,5902248661
03.05.2017,LEISURE DIRECTORATE,PHS GROUP PLC,"1,001.79",SDM BUDGET,PREMISES CLEANING,5902248656
03.05.2017,LEISURE DIRECTORATE,THAMES MARINE SERVICES LTD,345.5,SDM BUDGET,VEHICLE FUEL,5902248675
03.05.2017,LEISURE DIRECTORATE,CASTLE WATER LTD,678.28,SDM BUDGET,WATER,5902248651
03.05.2017,LEISURE DIRECTORATE,OCLC (UK) LTD,"2,553.08",STOCK SERVICES,SUBSCRIPTIONS,5902248534
03.05.2017,REGENERATION,NIKKI SPENCER LTD,"1,050.00",STAKEHOLDER ENGAGEMENT,MARKETING & PUBLICITY SERVICES,5902248598
03.05.2017,RESIDENT SERVICES,A & H PEST CONTROL LTD,960,BOROUGH & BANKSIDE,PEST CONTROL,5902248662
03.05.2017,RESIDENT SERVICES,ARGYLL,"25,329.00",PROJECTS & PROGRAMME,DATA COMMUNICATIONS,5902248643
03.05.2017,STRATEGIC FINANCING BUDGETS,THE BANK OF NEW YORK MELLON,938.38,CASH MANAGERS' COSTS,PROFESSIONAL FEES,5902248684
04.05.2017,ADULT SOCIAL CARE,INTERSERVE (FACILITIES MANAGEMENT),"3,841.27",ANCHOR TRUST REPAIRS,BUILDING R&M,2102665959
04.05.2017,ADULT SOCIAL CARE,INTERSERVE (FACILITIES MANAGEMENT),"3,943.28",ANCHOR TRUST REPAIRS,BUILDING R&M,2102665961
04.05.2017,ADULT SOCIAL CARE,INTERSERVE (FACILITIES MANAGEMENT),"4,767.45",ANCHOR TRUST REPAIRS,BUILDING R&M,2102665957
04.05.2017,ADULT SOCIAL CARE,INTERSERVE (FACILITIES MANAGEMENT),"4,767.45",ANCHOR TRUST REPAIRS,BUILDING R&M,2102665958
04.05.2017,ADULT SOCIAL CARE,INTERSERVE (FACILITIES MANAGEMENT),"4,855.90",ANCHOR TRUST REPAIRS,BUILDING R&M,2102665915
04.05.2017,ADULT SOCIAL CARE,INTERSERVE (FACILITIES MANAGEMENT),"5,622.76",ANCHOR TRUST REPAIRS,BUILDING R&M,2102665914
04.05.2017,ADULT SOCIAL CARE,INTERSERVE (FACILITIES MANAGEMENT),"9,438.50",ANCHOR TRUST REPAIRS,BUILDING R&M,2102665916
04.05.2017,ADULT SOCIAL CARE,INTERSERVE (FACILITIES MANAGEMENT),"19,190.56",ANCHOR TRUST REPAIRS,BUILDING R&M,2102665960
04.05.2017,ADULT SOCIAL CARE,AFFINITY SUTTON HOMES LTD,319.24,APPOINTEESHIPS,OTHER PAYMENTS FOR CLIENTS,2102665983
04.05.2017,ADULT SOCIAL CARE,DINARDO SUPPORTS LTD,320,APPOINTEESHIPS,OTHER PAYMENTS FOR CLIENTS,2102665935
04.05.2017,ADULT SOCIAL CARE,DANSHELL GROUP,466.5,APPOINTEESHIPS,OTHER PAYMENTS FOR CLIENTS,2102665981
04.05.2017,ADULT SOCIAL CARE,LORDSHIP FLOORING COMPANY,989.6,APPOINTEESHIPS,OTHER PAYMENTS FOR CLIENTS,2102665936
04.05.2017,ADULT SOCIAL CARE,LAUREL RESIDENTIAL HOMES LTD,"1,089.30",APPOINTEESHIPS,OTHER PAYMENTS FOR CLIENTS,2102665934
04.05.2017,ADULT SOCIAL CARE,AFFINITY SUTTON HOMES LTD,"1,422.47",APPOINTEESHIPS,OTHER PAYMENTS FOR CLIENTS,2102665939
04.05.2017,ADULT SOCIAL CARE,REDACTED PERSONAL DATA,"1,284.46",APPOINTEESHIPS,OTHER PAYMENTS FOR CLIENTS,2102665937
04.05.2017,ADULT SOCIAL CARE,GOUGH CLINTON & BROOM SOLICITORS,"18,735.70",APPOINTEESHIPS,OTHER PAYMENTS FOR CLIENTS,2102665938
04.05.2017,ADULT SOCIAL CARE,PHS GROUP PLC,259.06,MH PREMISES COSTS,WASTE DISPOSAL CONTRACT,5902248841
04.05.2017,ADULT SOCIAL CARE,KEYRING-LIVING SUPPORT NETWORKS LTD,"30,179.00",PWLD HOME CARE IND,EXTERNAL AGENCIES AND BODIES,5902248922
04.05.2017,ADULT SOCIAL CARE,KEYRING-LIVING SUPPORT NETWORKS LTD,"30,179.00",PWLD HOME CARE IND,EXTERNAL AGENCIES AND BODIES,5902248922
04.05.2017,ADULT SOCIAL CARE,NESTOR PRIMECARE SERVICES LTD,731.39,TRANSFORMING COM E,HOMECARE - C&V,5902248888
04.05.2017,ADULT SOCIAL CARE,NESTOR PRIMECARE SERVICES LTD,"31,143.84",TRANSFORMING COM E,HOMECARE - C&V,5902248888
04.05.2017,ASSET MANAGEMENT,SHAW KELLY,-800,DISREPAIR,LEGAL FEES & COURT COSTS,2102666552
04.05.2017,ASSET MANAGEMENT,SHAW KELLY,-403,DISREPAIR,LEGAL FEES & COURT COSTS,2102666551
04.05.2017,ASSET MANAGEMENT,SHAW KELLY,403,DISREPAIR,LEGAL FEES & COURT COSTS,2102661321
04.05.2017,ASSET MANAGEMENT,SHAW KELLY,800,DISREPAIR,LEGAL FEES & COURT COSTS,2102661322
04.05.2017,CENTRAL FUNCTIONS,STANDAGE & CO LTD,"13,556.00",AYLESBURY,SECURITY SERVICES,2102665978
04.05.2017,CENTRAL FUNCTIONS,STANDAGE & CO LTD,"18,444.00",AYLESBURY,SECURITY SERVICES,2102665979
04.05.2017,CENTRAL FUNCTIONS,GLAZER DELMAR SOLICITORS,"6,945.57",HOME OWNERSHIP INCOME,HOUSING RESIDENTIAL RENTS,5902248891
04.05.2017,CHIEF EXECUTIVE,GORT SCOTT LTD,"3,000.00",CAPITAL PS (REGEN),CONSTRUCTION FEES,5902248831
04.05.2017,CHIEF EXECUTIVE,KENT COUNTY COUNCIL - LASER,"1,472.56",CAPITAL PS (REGEN),CONSTRUCTION MAIN CONTRACT -CERTIFICATED,5902248942
04.05.2017,CHILDREN AND ADULT,SHARPE PRITCHARD LLP,588,CAPITAL PS (EDUCATION),CONSTRUCTION FEES - LEGAL,5902248746
04.05.2017,CHILDREN AND ADULT,SHARPE PRITCHARD LLP,858,CAPITAL PS (EDUCATION),CONSTRUCTION FEES - LEGAL,5902248751
04.05.2017,CHILDREN AND ADULT,SHARPE PRITCHARD LLP,"2,344.00",CAPITAL PS (EDUCATION),CONSTRUCTION FEES - LEGAL,5902248729
04.05.2017,CHILDREN AND ADULT,SHARPE PRITCHARD LLP,"2,820.20",CAPITAL PS (EDUCATION),CONSTRUCTION FEES - LEGAL,5902248743
04.05.2017,CHILDREN AND ADULT,FRANKLYN SHAW ASSOCIATES LTD,"2,450.60",CAPITAL PS (EDUCATION),CONSTRUCTION MAIN CONTRACT -CERTIFICATED,2102665912
04.05.2017,CHILDREN AND ADULT,NUMBER 10 INTERIM LTD,"2,100.00",CAPITAL PS (STRAT SERV),ICT ACQUISITION FEES,5902248267
04.05.2017,CHILDREN'S SERVICES,BARNARDOS SERVICES LTD,"8,750.00",ADMIN TEAM SAFEGUARDING,EXTERNAL AGENCIES AND BODIES,5902248927
04.05.2017,CHILDREN'S SERVICES,BLACKFRIARS SETTLEMENT,"3,850.00",ADULT SKILLS BUDGET 15/16,GRANTS,5902248736
04.05.2017,CHILDREN'S SERVICES,CARE O LINE,"2,508.10",AIS - IHT,OTHER PAYMENTS FOR CLIENTS,5902248955
04.05.2017,CHILDREN'S SERVICES,CROWN HOUSING LTD,"1,050.00",AIS - IHT,SECTION 17 PAYMENTS TO AGENCIES/CARERS,5902248957
04.05.2017,CHILDREN'S SERVICES,VIKING DIRECT LIMITED,384.1,CAMBERWELL GROVE EARLY YEARS CENTRE,STATIONERY,5902248910
04.05.2017,CHILDREN'S SERVICES,WRIXONCARE SEVICES,"1,993.60",CARE PRACTICE GROUP SET C,OTHER PAYMENTS FOR CLIENTS,5902248492
04.05.2017,CHILDREN'S SERVICES,POSTURITE (UK) LTD,384.12,CENTRAL SUPPORT,MEDICAL / HEALTH & SAFETY SERVICES,5902248949
04.05.2017,CHILDREN'S SERVICES,POSTURITE (UK) LTD,670.48,CENTRAL SUPPORT,MEDICAL / HEALTH & SAFETY SERVICES,5902248952
04.05.2017,CHILDREN'S SERVICES,INTERSERVE (FACILITIES MANAGEMENT),"2,612.03",CHILDRENS CENTRE,BUILDING R&M,2102665913
04.05.2017,CHILDREN'S SERVICES,CAPITA BUSINESS SERVICES LTD,"6,000.00",CHILDRENS CENTRE,GRANTS,5902248802
04.05.2017,CHILDREN'S SERVICES,INSTITUTE OF LEARNING UNLIMITED,"3,500.00",COMMUNITY LEARNING 15/16,GRANTS,5902248816
04.05.2017,CHILDREN'S SERVICES,KENT COUNTY SUPPLIES,"1,082.51",DIRECT DELIVERY,MATERIALS,5902248813
04.05.2017,CHILDREN'S SERVICES,TESCO STORES LTD,500,DISABILITY & HIV,ADDITIONAL PAYMENTS TO AGENCIES/CARERS,5902247818
04.05.2017,CHILDREN'S SERVICES,ANDREW NASH,430,DISABILITY & HIV,PROFESSIONAL FEES,5902248712
04.05.2017,CHILDREN'S SERVICES,THE FOSTERING NETWORK,600,DISABILITY & HIV,PROFESSIONAL FEES,5902246659
04.05.2017,CHILDREN'S SERVICES,THE FOSTERING NETWORK,600,DISABILITY & HIV,PROFESSIONAL FEES,5902246660
04.05.2017,CHILDREN'S SERVICES,REDACTED PERSONAL DATA,500,LEAVING CARE GRANT,OTHER PAYMENTS FOR CLIENTS,2102665948
04.05.2017,CHILDREN'S SERVICES,REDACTED PERSONAL DATA,"2,000.00",LEAVING CARE GRANT,OTHER PAYMENTS FOR CLIENTS,2102665946
04.05.2017,CHILDREN'S SERVICES,CAPITA BUSINESS SERVICES LTD,"3,900.00",NURSERY ED GRANT 2 Y Y O,GRANTS,5902248808
04.05.2017,CHILDREN'S SERVICES,CAPITA BUSINESS SERVICES LTD,"6,500.00",NURSERY ED GRANT 2 Y Y O,GRANTS,5902248808
04.05.2017,CHILDREN'S SERVICES,CAPITA BUSINESS SERVICES LTD,"12,000.00",NURSERY ED GRANT 2 Y Y O,GRANTS,5902248808
04.05.2017,CHILDREN'S SERVICES,SIGNIS LTD,"8,600.00",QA UNIT,EXTERNAL AGENCIES AND BODIES,5902248928
04.05.2017,CHILDREN'S SERVICES,CARE O LINE,811.25,S & FAM SUPP - PRAC GRP A SET 14-16,OTHER PAYMENTS FOR CLIENTS,5902248954
04.05.2017,CHILDREN'S SERVICES,SOCIAL CARE ENTERPRISES LTD,"3,000.00",S24 CLA,PROFESSIONAL FEES,5902248856
04.05.2017,CHILDREN'S SERVICES,REDACTED PERSONAL DATA,300,SEMI INDEPENDENT,OTHER PAYMENTS FOR CLIENTS,2102665944
04.05.2017,CHILDREN'S SERVICES,REDACTED PERSONAL DATA,700,SEMI INDEPENDENT,OTHER PAYMENTS FOR CLIENTS,2102665949
04.05.2017,CHILDREN'S SERVICES,BEATRICE WEYDERT,"2,200.00",SPECIAL GUARDIANSHIP,CONSULTANTS SERVICES,5902248854
04.05.2017,CHILDREN'S SERVICES,4 FUTURES LIMITED,963.07,SSF SPA FM/ICT,COMPUTER MAINTENANCE,5902248921
04.05.2017,CHILDREN'S SERVICES,4 FUTURES LIMITED,"1,027.26",SSF SPA FM/ICT,COMPUTER MAINTENANCE,5902248924
04.05.2017,CHILDREN'S SERVICES,4 FUTURES LIMITED,"1,027.26",SSF SPA FM/ICT,COMPUTER MAINTENANCE,5902248925
04.05.2017,CHILDREN'S SERVICES,4 FUTURES PHASE 2 LTD,"20,128.60",SSF STAC PFI/ICT,PFI/PPP PAYMENTS,5902248915
04.05.2017,CHILDREN'S SERVICES,REDACTED PERSONAL DATA,265,UNIVERSITY SUPPORT,OTHER PAYMENTS FOR CLIENTS,2102665950
04.05.2017,COMMISSIONING & CENTRAL,J C CONSULTANT SERVICES LTD,"6,893.00",RADAR-IOM,GRANTS,5902248702
04.05.2017,COMMISSIONING & CENTRAL,J C CONSULTANT SERVICES LTD,"14,427.00",SOUTHWARK ANTI VIOLENCE UNIT,GRANTS,5902248701
04.05.2017,COMMUNITIES,LONDON COUNCILS,"68,272.00",LONDON COUNCILS,OTHER LOCAL AUTHORITIES,5902248771
04.05.2017,COMMUNITIES,LONDON MUSICAL THEATRE ORCHESTRA,"6,000.00",MAYORAL SUPPORT,MARKETING & PUBLICITY SERVICES,5902248930
04.05.2017,COMMUNITIES,SOUTH OF THE RIVER INVESTMENTS LTD,"1,200.00",NO RECOURSE TO PUBLIC FUNDS,ACCOMMODATION CHARGES,5902248969
04.05.2017,COMMUNITIES,LOOK AHEAD CARE AND SUPPORT LTD,"1,263.54",NO RECOURSE TO PUBLIC FUNDS,ACCOMMODATION CHARGES,5902248809
04.05.2017,COMMUNITIES,LOOK AHEAD CARE AND SUPPORT LTD,"1,263.54",NO RECOURSE TO PUBLIC FUNDS,ACCOMMODATION CHARGES,5902248810
04.05.2017,COMMUNITIES,FINEFAIR LTD,"1,414.20",NO RECOURSE TO PUBLIC FUNDS,ACCOMMODATION CHARGES,5902248749
04.05.2017,COMMUNITIES,SOUTH OF THE RIVER INVESTMENTS LTD,"1,500.00",NO RECOURSE TO PUBLIC FUNDS,ACCOMMODATION CHARGES,5902248967
04.05.2017,COMMUNITIES,WILLOW ESTATE AGENTS (LONDON) LTD,"8,681.00",NO RECOURSE TO PUBLIC FUNDS,ACCOMMODATION CHARGES,5902248779
04.05.2017,COMMUNITIES,CROWN HOUSING LTD,"15,780.00",NO RECOURSE TO PUBLIC FUNDS,ACCOMMODATION CHARGES,5902248754
04.05.2017,COMMUNITIES,SMITH AND LEE PROPERTY LTD,360,NO RECOURSE TO PUBLIC FUNDS,SECTION 17 PAYMENTS TO AGENCIES/CARERS,5902248901
04.05.2017,COMMUNITIES,SMITH AND LEE PROPERTY LTD,"1,210.00",NO RECOURSE TO PUBLIC FUNDS,SECTION 17 PAYMENTS TO AGENCIES/CARERS,5902248900
04.05.2017,COMMUNITIES,SMITH AND LEE PROPERTY LTD,"1,350.00",NO RECOURSE TO PUBLIC FUNDS,SECTION 17 PAYMENTS TO AGENCIES/CARERS,5902248898
04.05.2017,COMMUNITIES,SMITH AND LEE PROPERTY LTD,"1,352.00",NO RECOURSE TO PUBLIC FUNDS,SECTION 17 PAYMENTS TO AGENCIES/CARERS,5902248909
04.05.2017,COMMUNITIES,SMITH AND LEE PROPERTY LTD,"1,430.00",NO RECOURSE TO PUBLIC FUNDS,SECTION 17 PAYMENTS TO AGENCIES/CARERS,5902248903
04.05.2017,COMMUNITIES,SMITH AND LEE PROPERTY LTD,"1,483.00",NO RECOURSE TO PUBLIC FUNDS,SECTION 17 PAYMENTS TO AGENCIES/CARERS,5902248899
04.05.2017,COMMUNITIES,SMITH AND LEE PROPERTY LTD,"1,536.00",NO RECOURSE TO PUBLIC FUNDS,SECTION 17 PAYMENTS TO AGENCIES/CARERS,5902248913
04.05.2017,COMMUNITIES,SMITH AND LEE PROPERTY LTD,"2,117.68",NO RECOURSE TO PUBLIC FUNDS,SECTION 17 PAYMENTS TO AGENCIES/CARERS,5902248906
04.05.2017,COMMUNITIES,HOMELY HOUSING LTD,"3,869.85",NO RECOURSE TO PUBLIC FUNDS,SECTION 17 PAYMENTS TO AGENCIES/CARERS,5902248707
04.05.2017,COMMUNITIES,HOMELY HOUSING LTD,"10,453.13",NO RECOURSE TO PUBLIC FUNDS,SECTION 17 PAYMENTS TO AGENCIES/CARERS,5902248705
04.05.2017,COMMUNITIES,TOM HOPKINS ASSOCIATES LTD,"1,960.00",TENANT MGT INITITIVES,TRAINING,5902248846
04.05.2017,CUSTOMER EXPERIENCE HGF,ABLE 2 OCCUPATIONAL THERAPY SERVICE,"1,665.00",BLUE BADGES,PROFESSIONAL FEES,5902248926
04.05.2017,CUSTOMER EXPERIENCE HGF,ICASEWORK LTD,"7,500.00",COMPLAINTS,CONSULTANTS SERVICES,5902248780
04.05.2017,CUSTOMER EXPERIENCE HGF,ICASEWORK LTD,"7,500.00",COMPLAINTS,CONSULTANTS SERVICES,5902248780
04.05.2017,CUSTOMER EXPERIENCE HGF,SOS OFFICE SUPPLIES LTD,467,HOMELESS & HOUSING OPTIONS MGT,PROFESSIONAL FEES,5902248859
04.05.2017,CUSTOMER EXPERIENCE HGF,SOS OFFICE SUPPLIES LTD,517,HOMELESS & HOUSING OPTIONS MGT,PROFESSIONAL FEES,5902248852
04.05.2017,CUSTOMER EXPERIENCE HGF,SOS OFFICE SUPPLIES LTD,517,HOMELESS & HOUSING OPTIONS MGT,PROFESSIONAL FEES,5902248865
04.05.2017,CUSTOMER EXPERIENCE HGF,SOS OFFICE SUPPLIES LTD,665,HOMELESS & HOUSING OPTIONS MGT,PROFESSIONAL FEES,5902248618
04.05.2017,CUSTOMER EXPERIENCE HGF,SOS OFFICE SUPPLIES LTD,265.17,HOMELESS & HOUSING OPTIONS MGT,STATIONERY,5902248539
04.05.2017,CUSTOMER EXPERIENCE HGF,ZFA LTD,"4,050.00",NIGHTLY TA (NSC),EXTERNAL AGENCIES AND BODIES,5902248792
04.05.2017,CUSTOMER EXPERIENCE HGF,STENFORD PROPERTY LTD,"13,862.80",NIGHTLY TA (NSC),EXTERNAL AGENCIES AND BODIES,5902248748
04.05.2017,CUSTOMER EXPERIENCE HGF,STENFORD PROPERTY LTD,"29,766.10",NIGHTLY TA (NSC),EXTERNAL AGENCIES AND BODIES,5902248748
04.05.2017,CUSTOMER EXPERIENCE HGF,TAAKSVALE HOUSING LTD,"36,680.20",NIGHTLY TA (NSC),EXTERNAL AGENCIES AND BODIES,5902248904
04.05.2017,CUSTOMER EXPERIENCE HGF,TAAKSVALE HOUSING LTD,"48,517.25",NIGHTLY TA (NSC),EXTERNAL AGENCIES AND BODIES,5902248904
04.05.2017,CUSTOMER EXPERIENCE HGF,A & M PROPERTY AND CONSTRUCTION LTD,"54,728.50",NIGHTLY TA (NSC),EXTERNAL AGENCIES AND BODIES,5902248907
04.05.2017,CUSTOMER EXPERIENCE HGF,KINDLY PROPERTIES,"84,497.00",NIGHTLY TA (NSC),EXTERNAL AGENCIES AND BODIES,5902248893
04.05.2017,CUSTOMER EXPERIENCE HGF,POSTURITE (UK) LTD,745.75,SYSTEMS,FURNITURE PURCHASE & REPAIR,5902248964
04.05.2017,ENVIRONMENT AND LEISURE,ETC SPORTS SURFACES LTD,"70,410.20",CAPITAL PS (LEISURE),CONSTRUCTION,2102665966
04.05.2017,ENVIRONMENT AND LEISURE,CATHERINE BICKMORE ASSOCIATES LTD,"1,008.60",CAPITAL PS (LEISURE),CONSTRUCTION FEES  - EXTERNAL,5902248862
04.05.2017,ENVIRONMENT AND LEISURE,MATERIALS SCIENCE CONSULTANTS LTD,"1,500.00",CAPITAL PS (LEISURE),CONSTRUCTION FEES - ARCHITECT,5902248791
04.05.2017,ENVIRONMENT AND LEISURE,JERRAM FALKUS CONSTRUCTION,"56,748.24",CAPITAL PS (LEISURE),CONSTRUCTION MAIN CONTRACT -CERTIFICATED,2102665911
04.05.2017,ENVIRONMENT AND LEISURE,JERRAM FALKUS CONSTRUCTION,"85,314.38",CAPITAL PS (LEISURE),CONSTRUCTION MAIN CONTRACT -CERTIFICATED,2102665984
04.05.2017,ENVIRONMENT AND LEISURE,VINCENTSTOKES LTD,"141,075.13",CAPITAL PS (LEISURE),CONSTRUCTION MAIN CONTRACT -CERTIFICATED,2102665910
04.05.2017,ENVIRONMENT DIRECTORATE,FIVEWAYS MUNICIPAL VEHICLE HIRE LTD,725,COMMERCIAL VEH CTRL A/C,HIRED VEHICLES,5902248797
04.05.2017,ENVIRONMENT DIRECTORATE,FIVEWAYS MUNICIPAL VEHICLE HIRE LTD,725,COMMERCIAL VEH CTRL A/C,HIRED VEHICLES,5902248800
04.05.2017,ENVIRONMENT DIRECTORATE,HELIARC TECHNOLOGY LTD,282,ENGINEERING CRAFTS,EQUIPMENT PURCHASE & REPAIR,5902248708
04.05.2017,ENVIRONMENT DIRECTORATE,SOUTH ESSEX STOCKHOLDERS LTD,403.2,ENGINEERING CRAFTS,MATERIALS,5902248716
04.05.2017,ENVIRONMENT DIRECTORATE,SOUTH ESSEX STOCKHOLDERS LTD,563.2,ENGINEERING CRAFTS,MATERIALS,5902248716
04.05.2017,ENVIRONMENT DIRECTORATE,SOUTH ESSEX STOCKHOLDERS LTD,654.36,ENGINEERING CRAFTS,MATERIALS,5902248717
04.05.2017,ENVIRONMENT DIRECTORATE,AUTO SISTANCE LTD,"1,450.00",ENGINEERING CRAFTS,MATERIALS,5902248710
04.05.2017,ENVIRONMENT DIRECTORATE,AUTO SISTANCE LTD,"1,550.00",ENGINEERING CRAFTS,MATERIALS,5902248711
04.05.2017,ENVIRONMENT DIRECTORATE,SPALDINGS (UK) LTD,306,GROUNDS MAINTENANCE - GENERAL,MATERIALS,5902248958
04.05.2017,ENVIRONMENT DIRECTORATE,SPALDINGS (UK) LTD,405.13,GROUNDS MAINTENANCE - GENERAL,MATERIALS,5902248721
04.05.2017,ENVIRONMENT DIRECTORATE,SPALDINGS (UK) LTD,625,GROUNDS MAINTENANCE - GENERAL,MATERIALS,5902248963
04.05.2017,ENVIRONMENT DIRECTORATE,SPALDINGS (UK) LTD,854,GROUNDS MAINTENANCE - GENERAL,MATERIALS,5902248951
04.05.2017,ENVIRONMENT DIRECTORATE,MARWOOD ELECTRICAL CO,270.99,LIGHTING RECOVERABLE WORKS,SOUTHWARK DIRECT CHARGES,5902248713
04.05.2017,ENVIRONMENT DIRECTORATE,MARWOOD ELECTRICAL CO,400,LIGHTING RECOVERABLE WORKS,SOUTHWARK DIRECT CHARGES,5902248713
04.05.2017,ENVIRONMENT DIRECTORATE,MARWOOD ELECTRICAL CO,"2,171.97",LIGHTING RECOVERABLE WORKS,SOUTHWARK DIRECT CHARGES,5902248713
04.05.2017,ENVIRONMENT DIRECTORATE,IMPERIAL POLYTHENE PRODUCTS LTD,795,MANAGEMENT TEAM,MATERIALS,5902248929
04.05.2017,ENVIRONMENT DIRECTORATE,P D CONSTRUCTION LTD,318,PARKS TECH UNIT (PREMISES),OTHER R&M,5902248732
04.05.2017,ENVIRONMENT DIRECTORATE,TFL TELESALES / OYSTER FULFILMENT,800,PROJECT SUPPORT,PUBLIC TRANSPORT,5902248747
04.05.2017,ENVIRONMENT DIRECTORATE,THE INSTITUTE OF LIGHTING ENGINEERS,329,SPECIAL PROJECTS,SOUTHWARK DIRECT CHARGES,5902248706
04.05.2017,ENVIRONMENT DIRECTORATE,TAMESIDE METROPOLITAN BOROUGH,"1,000.00",TRADING STANDARDS,SUBSCRIPTIONS,5902248902
04.05.2017,F & C S EXCLUDING CORPORATE BUDGETS,NORTHGATE PUBLIC SERVICES (UK) LTD,"17,000.00",ADMINISTRATIVE SUPPORT,SOFTWARE,5902248734
04.05.2017,F & C S EXCLUDING CORPORATE BUDGETS,DEBT SOLVE UK LTD T/A DSL,"1,052.13",AR/DEBT MANAGEMENT,OFFICE EXPENSES,5902248828
04.05.2017,F & C S EXCLUDING CORPORATE BUDGETS,THE FOSTERING NETWORK,-600,PAYMENTS CONTROL,OFFICE EXPENSES,2102666546
04.05.2017,F & C S EXCLUDING CORPORATE BUDGETS,THE FOSTERING NETWORK,-600,PAYMENTS CONTROL,OFFICE EXPENSES,2102666547
04.05.2017,HOUSING,LOCKESLEYS LTD,"49,451.13",LOCKESLEYS,MANUAL CREDITORS,5902248777
04.05.2017,HOUSING,LIFTEC LIFTS LTD,"76,012.51",PAYMENTS CONTROL ACCOUNT - LIFTEC,MANUAL CREDITORS,5902248753
04.05.2017,HOUSING,SPOKEMEAD MAINTENANCE LTD,"102,270.08",PAYMENTS CONTROL ACCOUNT - SPOKEMEAD,MANUAL CREDITORS,5902248811
04.05.2017,HOUSING,SPOKEMEAD MAINTENANCE LTD,"145,543.54",PAYMENTS CONTROL ACCOUNT - SPOKEMEAD,MANUAL CREDITORS,5902248811
04.05.2017,HOUSING,SCCI ALPHATRACK LTD,"143,849.67",SCCI ALPHATRACK,MANUAL CREDITORS,5902248801
04.05.2017,HOUSING HRA,BCS (ELECTRICAL & BUILDING) LTD,"210,242.44",BCS,MANUAL CREDITORS,5902248788
04.05.2017,HOUSING HRA,SALTASH ENTERPRISES LTD,"1,425.00",CAPITAL PS (HRA),CONSTRUCTION FEES  - EXTERNAL,2102665965
04.05.2017,HOUSING HRA,SALTASH ENTERPRISES LTD,"1,975.27",CAPITAL PS (HRA),CONSTRUCTION FEES  - EXTERNAL,2102665962
04.05.2017,HOUSING HRA,SALTASH ENTERPRISES LTD,"3,188.01",CAPITAL PS (HRA),CONSTRUCTION FEES  - EXTERNAL,2102665963
04.05.2017,HOUSING HRA,CALFORD SEADEN LLP,"3,791.23",CAPITAL PS (HRA),CONSTRUCTION FEES  - EXTERNAL,5902248778
04.05.2017,HOUSING HRA,CIGNIA CONSULTING LTD,"6,000.00",CAPITAL PS (HRA),CONSTRUCTION FEES  - EXTERNAL,5902248871
04.05.2017,HOUSING HRA,SALTASH ENTERPRISES LTD,"8,972.39",CAPITAL PS (HRA),CONSTRUCTION FEES  - EXTERNAL,2102665964
04.05.2017,HOUSING HRA,KEEPMOAT REGENERATION (APOLLO) LTD,"34,075.46",CAPITAL PS (HRA),CONSTRUCTION MAIN CONTRACT -CERTIFICATED,2102665908
04.05.2017,HOUSING HRA,KEEPMOAT REGENERATION (APOLLO) LTD,"79,194.13",CAPITAL PS (HRA),CONSTRUCTION MAIN CONTRACT -CERTIFICATED,2102665909
04.05.2017,LEISURE DIRECTORATE,STANBURY BUILDING SERVICES LTD,295,CEMETERIES,OTHER R&M,2102665973
04.05.2017,LEISURE DIRECTORATE,STANBURY BUILDING SERVICES LTD,495,CEMETERIES,OTHER R&M,2102665972
04.05.2017,LEISURE DIRECTORATE,MAPLIN ELECTRONICS LTD,291.66,CREMATORIUM,COMPUTER MAINTENANCE,5902248796
04.05.2017,LEISURE DIRECTORATE,P D CONSTRUCTION LTD,685,DULWICH AREA TEAM,OTHER R&M,5902248733
04.05.2017,LEISURE DIRECTORATE,REDAPPLES NEWSAGENT,636.1,DULWICH LIBRARY,BOOKS & PUBLICATIONS,5902248250
04.05.2017,LEISURE DIRECTORATE,PENNINGTON CHOICES LTD,"1,670.00",FACILITIES MAINTENANCE,BUILDING R&M,5902248853
04.05.2017,LEISURE DIRECTORATE,PENNINGTON CHOICES LTD,"2,160.00",FACILITIES MAINTENANCE,BUILDING R&M,5902248853
04.05.2017,LEISURE DIRECTORATE,KENT COUNTY COUNCIL - LASER,364.1,HOMERSTALL ROAD SPORTS GROUND,ELECTRICITY,5902248818
04.05.2017,LEISURE DIRECTORATE,FENLAND LEISURE PRODUCTS LTD,"3,545.32",PECKHAM RYE AREA TEAM,OTHER R&M,2102665956
04.05.2017,MODERNISATION HGF,BUILDING MONITORING SERVICES LTD,"1,363.42",160 TOOLEY ST.,BUILDING R&M,5902248873
04.05.2017,MODERNISATION HGF,ROYAL MAIL GROUP LTD,"2,481.40",160 TOOLEY ST.,POSTAGES,5902248895
04.05.2017,MODERNISATION HGF,TMP (UK) LIMITED,"1,531.98",ADVERTISING,RECRUITMENT ADVERTISING,5902248719
04.05.2017,MODERNISATION HGF,WYNNE BIER CONSULTANCY LTD,650,CORPORATE TRAINING BUDGETS,TRAINING,5902248803
04.05.2017,MODERNISATION HGF,DERBY HOSPITALS NHS FOUNDATION,"3,000.00",CSW - PROFESSIONAL DEVELOPMENT,TRAINING,5902248764
04.05.2017,MODERNISATION HGF,EDF ENERGY PLC,"1,043.41",CURLEW HOUSE,ELECTRICITY,5902248944
04.05.2017,MODERNISATION HGF,COMENSURA LTD,"3,209.71",MONTHLY ADMIN FEE,AGENCY STAFF,5902248881
04.05.2017,MODERNISATION HGF,JOHN STATTERS ASSOCIATES,"3,325.00",OCCUPATIONAL ASSESSMENT,CONSULTANTS SERVICES,5902248837
04.05.2017,MODERNISATION HGF,VEOLIA ES (UK)LTD,"3,497.82",REFUSE - VEOLIA,REFUSE COLLECTION CONTRACT,5902248829
04.05.2017,MODERNISATION HGF,ROSEMARY POTTS,655,SUPPORT SERVICES,CONSULTANTS SERVICES,5902248821
04.05.2017,MODERNISATION HGF,ROSEMARY POTTS,"1,550.00",SUPPORT SERVICES,CONSULTANTS SERVICES,5902248745
04.05.2017,MODERNISATION HGF,COMENSURA LTD,"414,883.45",WEEKLY PAYMENTS,AGENCY STAFF,5902248881
04.05.2017,PECKHAM AND NUNHEAD COMMUNITY COUNCIL,AYLESBURY EVERYWOMAN'S CENTRE,"3,000.00",SOUTHWARK EVERY WOMAN'S CENTRE,GRANT,CHEQUE PAYMENT
04.05.2017,PLANNING AND TRANSPORT,SOUTHWARK NEWSPAPER LTD,504,DEVELOPMENT CONTROL ADMINSTRATION,MARKETING & PUBLICITY SERVICES,5902248943
04.05.2017,REGENERATION,AOC ARCHITECTURE LTD,"1,200.00",MASTER PLAN-H/WAY & TRANS INTERCHANGE,PROFESSIONAL FEES,5902248532
04.05.2017,RESIDENT SERVICES,A & H PEST CONTROL LTD,390,CAMBERWELL,PEST CONTROL,5902248793
04.05.2017,RESIDENT SERVICES,A & H PEST CONTROL LTD,690,CAMBERWELL,PEST CONTROL,5902248698
04.05.2017,RESIDENT SERVICES,SHAW KELLY,-800,OPERATIONS/OFFICES ACCOMMODATION,LEGAL FEES & COURT COSTS,2102666553
04.05.2017,RESIDENT SERVICES,SHAW KELLY,800,OPERATIONS/OFFICES ACCOMMODATION,LEGAL FEES & COURT COSTS,2102661320
04.05.2017,RESIDENT SERVICES,PRB ESTATES LTD,"24,000.00",SHELTERED WARDENS,BUILDING R&M,2102665980
04.05.2017,SOUTHWARK BUILDING SERVICES,MASHER BROTHERS,"4,172.48",BUSINESS SUPPORT,OTHER CONTRACTORS,2102665977
04.05.2017,SOUTHWARK BUILDING SERVICES,EMPIRE BUILDERS,"31,842.68",BUSINESS SUPPORT,OTHER CONTRACTORS,2102665974
04.05.2017,SOUTHWARK BUILDING SERVICES,A & E ELKINS LTD,"40,683.08",BUSINESS SUPPORT,OTHER CONTRACTORS,2102665975
04.05.2017,SOUTHWARK BUILDING SERVICES,BRIDGEWATER ROOFING CONTRACTORS LTD,"51,206.65",BUSINESS SUPPORT,OTHER CONTRACTORS,2102665976
04.05.2017,STRATEGIC FINANCING BUDGETS,4 FUTURES PHASE 1 LIMITED,"219,134.21",ONGOING SCHOOLS PFI COSTS,PFI/PPP PAYMENTS,5902248911
04.05.2017,STRATEGIC FINANCING BUDGETS,4 FUTURES PHASE 2 LTD,"223,581.61",ONGOING SCHOOLS PFI COSTS,PFI/PPP PAYMENTS,5902248915
04.05.2017,STRATEGIC FINANCING BUDGETS,4 FUTURES PHASE 2 LTD,"225,217.91",ONGOING SCHOOLS PFI COSTS,PFI/PPP PAYMENTS,5902248915
05.05.2017,ADULT SOCIAL CARE,REDACTED PERSONAL DATA,264.8,APPOINTEESHIPS,OTHER PAYMENTS FOR CLIENTS,5902249084
05.05.2017,ADULT SOCIAL CARE,METRO HOMECARE LTD,283.29,MH LTS 65+,HOMECARE - C&V,2102666111
05.05.2017,ADULT SOCIAL CARE,METRO HOMECARE LTD,472.15,MH LTS 65+,HOMECARE - SPOT,2102666101
05.05.2017,ADULT SOCIAL CARE,METRO HOMECARE LTD,472.15,MH LTS 65+,HOMECARE - SPOT,2102666191
05.05.2017,ADULT SOCIAL CARE,CASTLE WATER LTD,697.31,ORIENT STREET,WATER,5902248976
05.05.2017,ADULT SOCIAL CARE,METRO HOMECARE LTD,337.25,PHY LTS 18-64,HOMECARE - C&V,2102666257
05.05.2017,ADULT SOCIAL CARE,METRO HOMECARE LTD,283.29,PHY LTS 18-64,HOMECARE - SPOT,2102666239
05.05.2017,ADULT SOCIAL CARE,METRO HOMECARE LTD,364.23,PHY LTS 18-64,HOMECARE - SPOT,2102666189
05.05.2017,ADULT SOCIAL CARE,METRO HOMECARE LTD,445.17,PHY LTS 18-64,HOMECARE - SPOT,2102666157
05.05.2017,ADULT SOCIAL CARE,METRO HOMECARE LTD,573.33,PHY LTS 18-64,HOMECARE - SPOT,2102666209
05.05.2017,ADULT SOCIAL CARE,METRO HOMECARE LTD,809.4,PHY LTS 18-64,HOMECARE - SPOT,2102666259
05.05.2017,ADULT SOCIAL CARE,METRO HOMECARE LTD,"1,065.71",PHY LTS 18-64,HOMECARE - SPOT,2102666103
05.05.2017,ADULT SOCIAL CARE,METRO HOMECARE LTD,"1,322.02",PHY LTS 18-64,HOMECARE - SPOT,2102666223
05.05.2017,ADULT SOCIAL CARE,NESTOR PRIMECARE SERVICES LTD,-314.24,PHY LTS 65+,HOMECARE - C&V,2102666287
05.05.2017,ADULT SOCIAL CARE,METRO HOMECARE LTD,310.27,PHY LTS 65+,HOMECARE - C&V,2102666237
05.05.2017,ADULT SOCIAL CARE,METRO HOMECARE LTD,350.74,PHY LTS 65+,HOMECARE - C&V,2102666087
05.05.2017,ADULT SOCIAL CARE,METRO HOMECARE LTD,357.49,PHY LTS 65+,HOMECARE - C&V,2102666241
05.05.2017,ADULT SOCIAL CARE,METRO HOMECARE LTD,849.87,PHY LTS 65+,HOMECARE - C&V,2102666263
05.05.2017,ADULT SOCIAL CARE,METRO HOMECARE LTD,"1,025.24",PHY LTS 65+,HOMECARE - C&V,2102666255
05.05.2017,ADULT SOCIAL CARE,METRO HOMECARE LTD,"1,038.73",PHY LTS 65+,HOMECARE - C&V,2102666115
05.05.2017,ADULT SOCIAL CARE,METRO HOMECARE LTD,"1,295.04",PHY LTS 65+,HOMECARE - C&V,2102666265
05.05.2017,ADULT SOCIAL CARE,METRO HOMECARE LTD,263.06,PHY LTS 65+,HOMECARE - SPOT,2102666155
05.05.2017,ADULT SOCIAL CARE,METRO HOMECARE LTD,276.55,PHY LTS 65+,HOMECARE - SPOT,2102666147
05.05.2017,ADULT SOCIAL CARE,METRO HOMECARE LTD,283.29,PHY LTS 65+,HOMECARE - SPOT,2102666227
05.05.2017,ADULT SOCIAL CARE,METRO HOMECARE LTD,303.53,PHY LTS 65+,HOMECARE - SPOT,2102666105
05.05.2017,ADULT SOCIAL CARE,METRO HOMECARE LTD,303.53,PHY LTS 65+,HOMECARE - SPOT,2102666139
05.05.2017,ADULT SOCIAL CARE,METRO HOMECARE LTD,310.27,PHY LTS 65+,HOMECARE - SPOT,2102666251
05.05.2017,ADULT SOCIAL CARE,METRO HOMECARE LTD,330.51,PHY LTS 65+,HOMECARE - SPOT,2102666129
05.05.2017,ADULT SOCIAL CARE,METRO HOMECARE LTD,330.51,PHY LTS 65+,HOMECARE - SPOT,2102666215
05.05.2017,ADULT SOCIAL CARE,METRO HOMECARE LTD,330.51,PHY LTS 65+,HOMECARE - SPOT,2102666221
05.05.2017,ADULT SOCIAL CARE,METRO HOMECARE LTD,330.51,PHY LTS 65+,HOMECARE - SPOT,2102666245
05.05.2017,ADULT SOCIAL CARE,NESTOR PRIMECARE SERVICES LTD,340.98,PHY LTS 65+,HOMECARE - SPOT,2102666289
05.05.2017,ADULT SOCIAL CARE,METRO HOMECARE LTD,350.74,PHY LTS 65+,HOMECARE - SPOT,2102666117
05.05.2017,ADULT SOCIAL CARE,METRO HOMECARE LTD,350.74,PHY LTS 65+,HOMECARE - SPOT,2102666161
05.05.2017,ADULT SOCIAL CARE,METRO HOMECARE LTD,357.49,PHY LTS 65+,HOMECARE - SPOT,2102666231
05.05.2017,ADULT SOCIAL CARE,METRO HOMECARE LTD,364.23,PHY LTS 65+,HOMECARE - SPOT,2102666211
05.05.2017,ADULT SOCIAL CARE,METRO HOMECARE LTD,377.72,PHY LTS 65+,HOMECARE - SPOT,2102666195
05.05.2017,ADULT SOCIAL CARE,METRO HOMECARE LTD,377.72,PHY LTS 65+,HOMECARE - SPOT,2102666217
05.05.2017,ADULT SOCIAL CARE,METRO HOMECARE LTD,381.09,PHY LTS 65+,HOMECARE - SPOT,2102666177
05.05.2017,ADULT SOCIAL CARE,METRO HOMECARE LTD,384.47,PHY LTS 65+,HOMECARE - SPOT,2102666137
05.05.2017,ADULT SOCIAL CARE,METRO HOMECARE LTD,384.47,PHY LTS 65+,HOMECARE - SPOT,2102666167
05.05.2017,ADULT SOCIAL CARE,METRO HOMECARE LTD,397.96,PHY LTS 65+,HOMECARE - SPOT,2102666269
05.05.2017,ADULT SOCIAL CARE,METRO HOMECARE LTD,408.07,PHY LTS 65+,HOMECARE - SPOT,2102666233
05.05.2017,ADULT SOCIAL CARE,METRO HOMECARE LTD,424.94,PHY LTS 65+,HOMECARE - SPOT,2102666205
05.05.2017,ADULT SOCIAL CARE,METRO HOMECARE LTD,438.43,PHY LTS 65+,HOMECARE - SPOT,2102666179
05.05.2017,ADULT SOCIAL CARE,METRO HOMECARE LTD,445.17,PHY LTS 65+,HOMECARE - SPOT,2102666099
05.05.2017,ADULT SOCIAL CARE,METRO HOMECARE LTD,478.9,PHY LTS 65+,HOMECARE - SPOT,2102666267
05.05.2017,ADULT SOCIAL CARE,METRO HOMECARE LTD,492.39,PHY LTS 65+,HOMECARE - SPOT,2102666163
05.05.2017,ADULT SOCIAL CARE,METRO HOMECARE LTD,492.39,PHY LTS 65+,HOMECARE - SPOT,2102666173
05.05.2017,ADULT SOCIAL CARE,METRO HOMECARE LTD,492.39,PHY LTS 65+,HOMECARE - SPOT,2102666225
05.05.2017,ADULT SOCIAL CARE,METRO HOMECARE LTD,539.6,PHY LTS 65+,HOMECARE - SPOT,2102666149
05.05.2017,ADULT SOCIAL CARE,METRO HOMECARE LTD,539.6,PHY LTS 65+,HOMECARE - SPOT,2102666235
05.05.2017,ADULT SOCIAL CARE,METRO HOMECARE LTD,546.35,PHY LTS 65+,HOMECARE - SPOT,2102666095
05.05.2017,ADULT SOCIAL CARE,METRO HOMECARE LTD,607.05,PHY LTS 65+,HOMECARE - SPOT,2102666121
05.05.2017,ADULT SOCIAL CARE,METRO HOMECARE LTD,607.05,PHY LTS 65+,HOMECARE - SPOT,2102666123
05.05.2017,ADULT SOCIAL CARE,METRO HOMECARE LTD,903.83,PHY LTS 65+,HOMECARE - SPOT,2102666229
05.05.2017,ADULT SOCIAL CARE,METRO HOMECARE LTD,"1,133.16",PHY LTS 65+,HOMECARE - SPOT,2102666243
05.05.2017,ADULT SOCIAL CARE,METRO HOMECARE LTD,"1,153.40",PHY LTS 65+,HOMECARE - SPOT,2102666181
05.05.2017,ADULT SOCIAL CARE,METRO HOMECARE LTD,"1,160.14",PHY LTS 65+,HOMECARE - SPOT,2102666171
05.05.2017,ADULT SOCIAL CARE,METRO HOMECARE LTD,"1,537.86",PHY LTS 65+,HOMECARE - SPOT,2102666119
05.05.2017,ADULT SOCIAL CARE,METRO HOMECARE LTD,"1,591.82",PHY LTS 65+,HOMECARE - SPOT,2102666125
05.05.2017,ADULT SOCIAL CARE,METRO HOMECARE LTD,"1,672.76",PHY LTS 65+,HOMECARE - SPOT,2102666090
05.05.2017,ADULT SOCIAL CARE,PEOPLE PLUS,398.42,PHY LTS 65+,PAYMENTS TO CLIENTS (DIRECT PAYMENTS),2102666283
05.05.2017,ADULT SOCIAL CARE,PEOPLE PLUS,517.76,PHY LTS 65+,PAYMENTS TO CLIENTS (DIRECT PAYMENTS),2102666279
05.05.2017,ADULT SOCIAL CARE,METRO HOMECARE LTD,384.47,PHY STS 65+,HOMECARE - IC,2102666109
05.05.2017,ADULT SOCIAL CARE,ORCHARD HILL COLLEGE,"62,789.76",PWLD DAYCARE,STATEMENTED FEES,2102666506
05.05.2017,ADULT SOCIAL CARE,CITYGLEN LTD,"1,120.00",REVIEW TEAM,HOMECARE - SPOT,5902249053
05.05.2017,ADULT SOCIAL CARE,CITYGLEN LTD,"1,240.00",REVIEW TEAM,HOMECARE - SPOT,5902249049
05.05.2017,ADULT SOCIAL CARE,CITYGLEN LTD,"1,240.00",REVIEW TEAM,HOMECARE - SPOT,5902249050
05.05.2017,ADULT SOCIAL CARE,CITYGLEN LTD,"1,240.00",REVIEW TEAM,HOMECARE - SPOT,5902249054
05.05.2017,ADULT SOCIAL CARE,METRO HOMECARE LTD,290.04,SOCIAL ISOLATION,HOMECARE - SPOT,2102666131
05.05.2017,ADULT SOCIAL CARE,GLS EDUCATIONAL SUPPLIES LTD,406.29,SOUTHWARK RESOURCE CENTRE,"CLOTHING, UNIFORMS & LAUNDRY",5902248412
05.05.2017,ADULT SOCIAL CARE,METRO HOMECARE LTD,397.96,SUB STS 18-64,HOMECARE - IC,2102666093
05.05.2017,ASSET MANAGEMENT,M C TECHNICIANS LTD,470,ADAPTATIONS,BUILDING R&M,5902249035
05.05.2017,"BOROUGH, BANKSIDE & WALWORTH COMMUNITY COUNCIL",LATIN AMERICAN DISABLED PEOPLE'S PROJECT (LADPP),"3,500.00",�LADPP IMPROVING QUALITY OF LIFE AND COMMUNITY INTEGRATION�,GRANT,CHEQUE PAYMENT
05.05.2017,CHIEF EXECUTIVE,KENT COUNTY COUNCIL - LASER,"1,635.74",CAPITAL PS (REGEN),CONSTRUCTION MAIN CONTRACT -CERTIFICATED,5902249154
05.05.2017,CHIEF EXECUTIVE'S OFFICE,CAMBRIDGE HOUSE & TALBOT,420,CHIEF EXEC'S OFFICE,GRANTS,5902249105
05.05.2017,CHIEF EXECUTIVE'S OFFICE,J C CONSULTANT SERVICES LTD,"3,101.00",CHIEF EXEC'S OFFICE,GRANTS,5902249091
05.05.2017,CHIEF EXECUTIVE'S OFFICE,J C CONSULTANT SERVICES LTD,"8,000.00",CHIEF EXEC'S OFFICE,GRANTS,5902248972
05.05.2017,CHIEF EXECUTIVE'S OFFICE,J C CONSULTANT SERVICES LTD,"8,500.00",CHIEF EXEC'S OFFICE,GRANTS,5902248973
05.05.2017,CHIEF EXECUTIVE'S OFFICE,HERNE HILL FORUM,"2,500.00",HERNE HILL,GRANTS,5902249071
05.05.2017,CHILDREN'S SERVICES,NATIONAL FOSTERING AGENCY,"-1,476.05",AGENCY FOSTERING,EXTERNAL AGENCIES AND BODIES,2102652874
05.05.2017,CHILDREN'S SERVICES,NATIONAL FOSTERING AGENCY,"1,050.00",AGENCY FOSTERING,EXTERNAL AGENCIES AND BODIES,5902245035
05.05.2017,CHILDREN'S SERVICES,NATIONAL FOSTERING AGENCY,"2,030.91",AGENCY FOSTERING,EXTERNAL AGENCIES AND BODIES,5902249022
05.05.2017,CHILDREN'S SERVICES,NATIONAL FOSTERING AGENCY,"2,849.91",AGENCY FOSTERING,EXTERNAL AGENCIES AND BODIES,5902249023
05.05.2017,CHILDREN'S SERVICES,GREATER LONDON FOSTERING,"1,044.41",AGENCY FOSTERING,OTHER PAYMENTS FOR CLIENTS,5902249020
05.05.2017,CHILDREN'S SERVICES,RIVERSTON SCHOOL,"32,393.00",CASEWORK OLA  0-8,EXTERNAL AGENCIES AND BODIES,2102666501
05.05.2017,CHILDREN'S SERVICES,THE DOMINIE SCHOOL LTD,"8,700.00",CASEWORK OLA  0-8,RECOUPMENT,2102666521
05.05.2017,CHILDREN'S SERVICES,THE CHELSEA GROUP OF CHILDREN LTD,"9,750.00",CASEWORK OLA  0-8,RECOUPMENT,2102666500
05.05.2017,CHILDREN'S SERVICES,OCTAVIA HOUSE SCHOOLS LTD,"14,000.00",CASEWORK OLA  0-8,RECOUPMENT,2102666522
05.05.2017,CHILDREN'S SERVICES,TULIP CARE TWO LTD,"15,600.00",CASEWORK OLA  0-8,RECOUPMENT,2102666496
05.05.2017,CHILDREN'S SERVICES,AMBITIOUS ABOUT AUTISM,"23,505.66",CASEWORK OLA  0-8,RECOUPMENT,2102666520
05.05.2017,CHILDREN'S SERVICES,OCTAVIA HOUSE SCHOOLS LTD,"108,000.00",CASEWORK OLA  0-8,RECOUPMENT,2102666524
05.05.2017,CHILDREN'S SERVICES,EAGLE HOUSE SCHOOL (MITCHAM),"153,178.97",CASEWORK OLA  0-8,RECOUPMENT,2102666507
05.05.2017,CHILDREN'S SERVICES,THE RAINBOW SCHOOL,"269,494.26",CASEWORK OLA  0-8,RECOUPMENT,2102666498
05.05.2017,CHILDREN'S SERVICES,CAVENDISH SCHOOL,"1,065.50",CASEWORK SOUTHWARK 0-8,RECOUPMENT,2102666508
05.05.2017,CHILDREN'S SERVICES,CAVENDISH SCHOOL,"9,563.64",CASEWORK SOUTHWARK 0-8,RECOUPMENT,2102666511
05.05.2017,CHILDREN'S SERVICES,CAVENDISH SCHOOL,"47,818.20",CASEWORK SOUTHWARK 0-8,RECOUPMENT,2102666514
05.05.2017,CHILDREN'S SERVICES,CHARLOTTE NOYES LTD,425,CLA TEAM SAFEGUARDING,PROFESSIONAL FEES,5902249021
05.05.2017,CHILDREN'S SERVICES,LNENGELVIN CONSULTANCY LTD,875.65,CLA TEAM SAFEGUARDING,PROFESSIONAL FEES,5902249032
05.05.2017,CHILDREN'S SERVICES,CHARLOTTE NOYES LTD,956.65,CLA TEAM SAFEGUARDING,PROFESSIONAL FEES,5902249018
05.05.2017,CHILDREN'S SERVICES,CHARLOTTE NOYES LTD,"1,319.90",CLA TEAM SAFEGUARDING,PROFESSIONAL FEES,5902249019
05.05.2017,CHILDREN'S SERVICES,REVIEWING OPTIONS LTD,"1,398.65",CLA TEAM SAFEGUARDING,PROFESSIONAL FEES,5902249002
05.05.2017,CHILDREN'S SERVICES,CHARLOTTE NOYES LTD,"1,590.20",CLA TEAM SAFEGUARDING,PROFESSIONAL FEES,5902249025
05.05.2017,CHILDREN'S SERVICES,WALWORTH GARDEN FARM,"2,250.00",COMMUNITY LEARNING 15/16,GRANTS,5902249060
05.05.2017,CHILDREN'S SERVICES,LONDON WILDLIFE TRUST,"4,875.00",COMMUNITY LEARNING 15/16,GRANTS,5902249073
05.05.2017,CHILDREN'S SERVICES,WALWORTH GARDEN FARM,"5,350.00",COMMUNITY LEARNING 15/16,GRANTS,5902249059
05.05.2017,CHILDREN'S SERVICES,M & K SPARROW,380.5,DIRECT DELIVERY,EQUIPMENT PURCHASE & REPAIR,5902249167
05.05.2017,CHILDREN'S SERVICES,THE VILLA SCHOOL & NURSERY LTD,743.72,EARLY YEARS,STATEMENTED FEES,2102666525
05.05.2017,CHILDREN'S SERVICES,THE VILLA SCHOOL & NURSERY LTD,"1,185.93",EARLY YEARS,STATEMENTED FEES,2102666526
05.05.2017,CHILDREN'S SERVICES,GERMAN KINDERGARTEN LTD,"2,329.50",EARLY YEARS,STATEMENTED FEES,2102666527
05.05.2017,CHILDREN'S SERVICES,ROOTS AND SHOOTS,"38,458.66",FE & SIXTH FORM COLLEGES,STATEMENTED FEES,2102666488
05.05.2017,CHILDREN'S SERVICES,LONDON BOROUGH OF MERTON,"3,386.74",FE & SIXTH FORM COLLEGES,STATEMENTED FEES,2102666491
05.05.2017,CHILDREN'S SERVICES,LONDON BOROUGH OF MERTON,"6,588.79",FE & SIXTH FORM COLLEGES,STATEMENTED FEES,2102666490
05.05.2017,CHILDREN'S SERVICES,CAVENDISH SCHOOL,"7,172.72",FE & SIXTH FORM COLLEGES,STATEMENTED FEES,2102666510
05.05.2017,CHILDREN'S SERVICES,HEALTHCARE & TRANSPORT SERVICE,"143,094.50",HOME 2 SCHOOL TRANSPORT,CAB FARES,5902249026
05.05.2017,CHILDREN'S SERVICES,HEALTHCARE & TRANSPORT SERVICE,"60,747.99",HOME 2 SCHOOL TRANSPORT,EXTERNAL AGENCIES AND BODIES,5902249177
05.05.2017,CHILDREN'S SERVICES,HEALTHCARE & TRANSPORT SERVICE,"49,497.75",HOME 2 SCHOOL TRANSPORT,HIRED VEHICLES,5902249078
05.05.2017,CHILDREN'S SERVICES,REDACTED PERSONAL DATA,-300,LEAVING CARE GRANT,OTHER PAYMENTS FOR CLIENTS,2102664876
05.05.2017,CHILDREN'S SERVICES,REDACTED PERSONAL DATA,300,LEAVING CARE GRANT,OTHER PAYMENTS FOR CLIENTS,2102652346
05.05.2017,CHILDREN'S SERVICES,WILTSHIRE COUNCIL,"5,687.50",OLA - EY AND PRIMARY,STATEMENTED FEES,2102666492
05.05.2017,CHILDREN'S SERVICES,ROSENDALE PRIMARY SCHOOL,"25,346.30",OLA - EY AND PRIMARY,STATEMENTED FEES,2102666489
05.05.2017,CHILDREN'S SERVICES,RIVERSTON SCHOOL,"69,003.00",PFA TEAM SOUTHWARK 9 PLUS,CENTRAL GOVERNMENT,2102666502
05.05.2017,CHILDREN'S SERVICES,BROMLEY TRUST ACADEMY,"3,388.00",PFA TEAM SOUTHWARK 9 PLUS,CONTRIBUTION TO PROVISIONS (TP PAYMENTS),2102666495
05.05.2017,CHILDREN'S SERVICES,AMBITIOUS ABOUT AUTISM,"23,505.66",PFA TEAM SOUTHWARK 9 PLUS,RECOUPMENT,2102666515
05.05.2017,CHILDREN'S SERVICES,AMBITIOUS ABOUT AUTISM,"23,505.66",PFA TEAM SOUTHWARK 9 PLUS,RECOUPMENT,2102666516
05.05.2017,CHILDREN'S SERVICES,AMBITIOUS ABOUT AUTISM,"23,505.66",PFA TEAM SOUTHWARK 9 PLUS,RECOUPMENT,2102666517
05.05.2017,CHILDREN'S SERVICES,AMBITIOUS ABOUT AUTISM,"23,505.66",PFA TEAM SOUTHWARK 9 PLUS,RECOUPMENT,2102666518
05.05.2017,CHILDREN'S SERVICES,AMBITIOUS ABOUT AUTISM,"23,505.66",PFA TEAM SOUTHWARK 9 PLUS,RECOUPMENT,2102666519
05.05.2017,CHILDREN'S SERVICES,OCTAVIA HOUSE SCHOOLS LTD,"152,000.00",PFA TEAM SOUTHWARK 9 PLUS,RECOUPMENT,2102666523
05.05.2017,CHILDREN'S SERVICES,CAVENDISH SCHOOL,"1,920.00",PFA TEAM SOUTHWARK 9 PLUS,RECOUPMENT,2102666512
05.05.2017,CHILDREN'S SERVICES,CAVENDISH SCHOOL,"76,509.12",PFA TEAM SOUTHWARK 9 PLUS,RECOUPMENT,2102666513
05.05.2017,CHILDREN'S SERVICES,THE RAINBOW SCHOOL,"149,433.62",PFA TEAM SOUTHWARK 9 PLUS,RECOUPMENT,2102666499
05.05.2017,CHILDREN'S SERVICES,EDUCATION MY LIFE MATTERS CIC,"2,430.00",PFA TEAM SOUTHWARK 9 PLUS,"SCHOOLS CAPITATION, OTHER GRANTS",2102666493
05.05.2017,CHILDREN'S SERVICES,BROMLEY TRUST ACADEMY,"3,500.00",PFA TEAM SOUTHWARK 9 PLUS,"SCHOOLS CAPITATION, OTHER GRANTS",2102666494
05.05.2017,CHILDREN'S SERVICES,ORCHARD HILL COLLEGE,"8,744.00",PFA TEAM SOUTHWARK 9 PLUS,"SCHOOLS CAPITATION, STANDARDS FUND",2102666505
05.05.2017,CHILDREN'S SERVICES,ORCHARD HILL COLLEGE,"266,024.89",PFA TEAM SOUTHWARK 9 PLUS,"SCHOOLS CAPITATION, STANDARDS FUND",2102666504
05.05.2017,CHILDREN'S SERVICES,RIVERSTON SCHOOL,"71,107.01",PFA TEAM SOUTHWARK 9 PLUS,"SCHOOLS CAPITATION, STANDARDS FUND",2102666503
05.05.2017,CHILDREN'S SERVICES,GREENSHAW LEARNING TRUST,"4,129.10",PFA TEAM SOUTHWARK 9 PLUS,STATEMENTED FEES,2102666497
05.05.2017,CHILDREN'S SERVICES,KRJ CARE SERVICES,"6,065.80",REMAND - RLAA,RESIDENTIAL CARE,5902246837
05.05.2017,CHILDREN'S SERVICES,PULSE HEALTHCARE LTD,358.8,SEN TRANSPORT,STATEMENTED FEES,5902248474
05.05.2017,CHILDREN'S SERVICES,CAMBIAN ASPERGER SYNDROME SERVICES,"7,501.67",SEN TRANSPORT,STATEMENTED FEES,2102666530
05.05.2017,CHILDREN'S SERVICES,LONDON STEINER SCHOOL,"4,828.67",SEN TRANSPORT,STATEMENTED FEES,2102666528
05.05.2017,CHILDREN'S SERVICES,CAVENDISH SCHOOL,"7,172.72",SEN TRANSPORT,STATEMENTED FEES,2102666509
05.05.2017,CHILDREN'S SERVICES,SAFER LONDON FOUNDATION,"25,000.00",TACKLING TROUBLED FAMILIES,EXTERNAL AGENCIES AND BODIES,5902247919
05.05.2017,COMMUNITIES,GROVE HOTEL LTD,405,NO RECOURSE TO PUBLIC FUNDS,ACCOMMODATION CHARGES,5902249147
05.05.2017,COMMUNITIES,METROPOLITAN SUPPORT TRUST,945,NO RECOURSE TO PUBLIC FUNDS,ACCOMMODATION CHARGES,5902249140
05.05.2017,COMMUNITIES,METROPOLITAN SUPPORT TRUST,945,NO RECOURSE TO PUBLIC FUNDS,ACCOMMODATION CHARGES,5902249141
05.05.2017,COMMUNITIES,SWIFT LETTING LONDON LTD,960,NO RECOURSE TO PUBLIC FUNDS,ACCOMMODATION CHARGES,5902249103
05.05.2017,COMMUNITIES,LIVING ACCOMODATION LTD,"1,050.00",NO RECOURSE TO PUBLIC FUNDS,ACCOMMODATION CHARGES,5902249171
05.05.2017,COMMUNITIES,LIVING ACCOMODATION LTD,"1,050.00",NO RECOURSE TO PUBLIC FUNDS,ACCOMMODATION CHARGES,5902249176
05.05.2017,COMMUNITIES,LIVING ACCOMODATION LTD,"1,350.00",NO RECOURSE TO PUBLIC FUNDS,ACCOMMODATION CHARGES,5902249173
05.05.2017,COMMUNITIES,LIVING ACCOMODATION LTD,"1,350.00",NO RECOURSE TO PUBLIC FUNDS,ACCOMMODATION CHARGES,5902249175
05.05.2017,COMMUNITIES,MEADOW CROFT LODGE,"1,350.00",NO RECOURSE TO PUBLIC FUNDS,ACCOMMODATION CHARGES,5902249142
05.05.2017,COMMUNITIES,GROVE HOTEL LTD,"1,650.00",NO RECOURSE TO PUBLIC FUNDS,ACCOMMODATION CHARGES,5902249145
05.05.2017,COMMUNITIES,DENHAN INTERNATIONAL LTD,"2,010.00",NO RECOURSE TO PUBLIC FUNDS,ACCOMMODATION CHARGES,5902249027
05.05.2017,COMMUNITIES,EDEN ESTATES LONDON LTD,"2,100.00",NO RECOURSE TO PUBLIC FUNDS,ACCOMMODATION CHARGES,5902249137
05.05.2017,COMMUNITIES,LIVING ACCOMODATION LTD,"2,700.00",NO RECOURSE TO PUBLIC FUNDS,ACCOMMODATION CHARGES,5902249166
05.05.2017,COMMUNITIES,RS REAL ESTATE LTD,"7,230.00",NO RECOURSE TO PUBLIC FUNDS,ACCOMMODATION CHARGES,5902249047
05.05.2017,COMMUNITIES,K3 PROPERTY MANAGEMENT LTD,"7,380.00",NO RECOURSE TO PUBLIC FUNDS,ACCOMMODATION CHARGES,5902248989
05.05.2017,COMMUNITIES,PPROPERTYPLACEBOOK LTD,"7,410.00",NO RECOURSE TO PUBLIC FUNDS,ACCOMMODATION CHARGES,5902249012
05.05.2017,COMMUNITIES,VENTURE HOUSING (LONDON) LTD,"8,655.00",NO RECOURSE TO PUBLIC FUNDS,ACCOMMODATION CHARGES,5902249117
05.05.2017,COMMUNITIES,GOLDSTONE ESTATES LTD,"12,877.50",NO RECOURSE TO PUBLIC FUNDS,ACCOMMODATION CHARGES,5902248994
05.05.2017,COMMUNITIES,J & M OASIS LTD,"14,871.00",NO RECOURSE TO PUBLIC FUNDS,ACCOMMODATION CHARGES,5902249098
05.05.2017,COMMUNITIES,TAAKSVALE HOUSING LTD,"24,478.50",NO RECOURSE TO PUBLIC FUNDS,ACCOMMODATION CHARGES,5902249133
05.05.2017,COMMUNITIES,ZFA LTD,"24,870.00",NO RECOURSE TO PUBLIC FUNDS,ACCOMMODATION CHARGES,5902249040
05.05.2017,COMMUNITIES,HOMELY HOUSING LTD,"3,589.00",NO RECOURSE TO PUBLIC FUNDS,OTHER PAYMENTS FOR CLIENTS,5902249008
05.05.2017,COMMUNITIES,HOMELY HOUSING LTD,"8,188.65",NO RECOURSE TO PUBLIC FUNDS,OTHER PAYMENTS FOR CLIENTS,5902249011
05.05.2017,CUSTOMER EXPERIENCE HGF,BLACKFRIARS SETTLEMENT,275,COMPLAINTS,OP LEASE/HIRE CHARGES:PLANT/EQUIP/FURNIT,5902249102
05.05.2017,CUSTOMER EXPERIENCE HGF,SOUTH OF THE RIVER INVESTMENTS LTD,588.5,NIGHTLY TA (NSC),EXTERNAL AGENCIES AND BODIES,5902249114
05.05.2017,CUSTOMER EXPERIENCE HGF,SOUTH OF THE RIVER INVESTMENTS LTD,"1,962.90",NIGHTLY TA (NSC),EXTERNAL AGENCIES AND BODIES,5902249110
05.05.2017,CUSTOMER EXPERIENCE HGF,J & M OASIS LTD,"2,700.00",NIGHTLY TA (NSC),EXTERNAL AGENCIES AND BODIES,5902249161
05.05.2017,CUSTOMER EXPERIENCE HGF,RELAKS LTD,"5,952.00",NIGHTLY TA (NSC),EXTERNAL AGENCIES AND BODIES,5902249001
05.05.2017,CUSTOMER EXPERIENCE HGF,FINEFAIR LTD,"9,960.00",NIGHTLY TA (NSC),EXTERNAL AGENCIES AND BODIES,5902249169
05.05.2017,CUSTOMER EXPERIENCE HGF,SK HOUSING LTD,"11,179.50",NIGHTLY TA (NSC),EXTERNAL AGENCIES AND BODIES,5902249160
05.05.2017,CUSTOMER EXPERIENCE HGF,SOUTH OF THE RIVER INVESTMENTS LTD,"88,460.30",NIGHTLY TA (NSC),EXTERNAL AGENCIES AND BODIES,5902248984
05.05.2017,CUSTOMER EXPERIENCE HGF,RODNEY O'TOOLE & ANDREE O'TOOLE,720,PRIVATE SECTOR LEASING,EXTERNAL AGENCIES AND BODIES,2102665268
05.05.2017,CUSTOMER EXPERIENCE HGF,EDF ENERGY PLC,585.74,WALWORTH MSSP,ELECTRICITY,5902248974
05.05.2017,ENVIRONMENT AND LEISURE,PULLENS T&RA,"1,819.00",CAPITAL PS (LEISURE),CAPITAL GRANTS,5902248983
05.05.2017,ENVIRONMENT AND LEISURE,EIGHT POINT EIGHT LTD T/A STANDARD 8,450,CAPITAL PS (LEISURE),CONSTRUCTION FEES  - EXTERNAL,5902249004
05.05.2017,ENVIRONMENT AND LEISURE,RIDGE & PARTNERS LLP,"4,101.14",CAPITAL PS (LEISURE),CONSTRUCTION FEES  - EXTERNAL,5902249051
05.05.2017,ENVIRONMENT DIRECTORATE,LEX AUTOLEASE,-264.1,CAR LEASING CTRL A/C,VEHICLE LEASING CHARGES,5902249003
05.05.2017,ENVIRONMENT DIRECTORATE,LOOKERS LEASING LTD,667.22,CAR LEASING CTRL A/C,VEHICLE LEASING CHARGES,5902249052
05.05.2017,ENVIRONMENT DIRECTORATE,LEX AUTOLEASE,798.56,CAR LEASING CTRL A/C,VEHICLE LEASING CHARGES,5902248992
05.05.2017,ENVIRONMENT DIRECTORATE,LEX AUTOLEASE,910.32,CAR LEASING CTRL A/C,VEHICLE LEASING CHARGES,5902248997
05.05.2017,ENVIRONMENT DIRECTORATE,LCV HIRE SOLUTIONS LTD,321.3,COMMERCIAL VEH CTRL A/C,HIRED VEHICLES,5902249016
05.05.2017,ENVIRONMENT DIRECTORATE,LCV HIRE SOLUTIONS LTD,321.3,COMMERCIAL VEH CTRL A/C,HIRED VEHICLES,5902249029
05.05.2017,ENVIRONMENT DIRECTORATE,SCOT GROUP LIMITED,329,COMMERCIAL VEH CTRL A/C,HIRED VEHICLES,5902248977
05.05.2017,ENVIRONMENT DIRECTORATE,ENTERPRISE FLEX E RENT,"1,160.00",COMMERCIAL VEH CTRL A/C,HIRED VEHICLES,5902248979
05.05.2017,ENVIRONMENT DIRECTORATE,DAWSON RENTALS SWEEPERS,"2,000.00",COMMERCIAL VEH CTRL A/C,HIRED VEHICLES,5902249007
05.05.2017,ENVIRONMENT DIRECTORATE,DAWSON RENTALS SWEEPERS,"2,000.00",COMMERCIAL VEH CTRL A/C,HIRED VEHICLES,5902249010
05.05.2017,ENVIRONMENT DIRECTORATE,DAWSON RENTALS SWEEPERS,"2,000.00",COMMERCIAL VEH CTRL A/C,HIRED VEHICLES,5902249013
05.05.2017,ENVIRONMENT DIRECTORATE,DAWSON RENTALS SWEEPERS,"2,000.00",COMMERCIAL VEH CTRL A/C,HIRED VEHICLES,5902249014
05.05.2017,ENVIRONMENT DIRECTORATE,BUILDBASE,293.99,GROUNDS MAINTENANCE - GENERAL,MATERIALS,5902249119
05.05.2017,ENVIRONMENT DIRECTORATE,BUILDBASE,547.3,GROUNDS MAINTENANCE - GENERAL,MATERIALS,5902249127
05.05.2017,ENVIRONMENT DIRECTORATE,CHARLTON ENVIRONMENTAL LTD,"7,056.70",GROUNDS MAINTENANCE - GENERAL,MATERIALS,5902249088
05.05.2017,ENVIRONMENT DIRECTORATE,BELL BRUSH COMPANY,253.5,MANAGEMENT TEAM,MATERIALS,5902249087
05.05.2017,ENVIRONMENT DIRECTORATE,IMPERIAL POLYTHENE PRODUCTS LTD,"1,192.50",MANAGEMENT TEAM,MATERIALS,5902249086
05.05.2017,ENVIRONMENT DIRECTORATE,STARK SOFTWARE INTERNATIONAL LTD,"1,185.66",MANAGEMENT TEAM,SOFTWARE,5902249089
05.05.2017,ENVIRONMENT DIRECTORATE,RICHMOND UPON THAMES COLLEGE,420,MANAGEMENT TEAM,TRAINING,5902249115
05.05.2017,ENVIRONMENT DIRECTORATE,RP2 LTD,527.39,MAYOR'S AIR QUALITY FUND,MARKETING & PUBLICITY SERVICES,5902248971
05.05.2017,ENVIRONMENT DIRECTORATE,GRADKO INTERNATIONAL LTD,262,POLLUTION CONTROL,EQUIPMENT PURCHASE & REPAIR,5902248350
05.05.2017,F & C S EXCLUDING CORPORATE BUDGETS,AB HOTELS LTD,633.5,ADMINISTRATIVE SUPPORT,HIRE OF ROOMS/HALLS,5902249068
05.05.2017,F & C S EXCLUDING CORPORATE BUDGETS,AB HOTELS LTD,"1,192.14",ADMINISTRATIVE SUPPORT,HIRE OF ROOMS/HALLS,5902249068
05.05.2017,HOUSING HRA,CALFORD SEADEN LLP,"5,154.06",CAPITAL PS (HRA),CONSTRUCTION FEES  - EXTERNAL,5902249000
05.05.2017,HOUSING HRA,CALFORD SEADEN LLP,"9,524.32",CAPITAL PS (HRA),CONSTRUCTION FEES  - EXTERNAL,5902248993
05.05.2017,LEISURE DIRECTORATE,STANBURY BUILDING SERVICES LTD,545,CEMETERIES,OTHER R&M,5902249076
05.05.2017,LEISURE DIRECTORATE,PLUS SPORTS COACHING LTD,572,COMMUNITY SPORTS SMALL GRANTS,MARKETING & PUBLICITY SERVICES,5902249075
05.05.2017,LEISURE DIRECTORATE,ARGOS BUSINESS SOLUTIONS LTD,283.21,CREMATORIUM,OTHER R&M,5902249104
05.05.2017,LEISURE DIRECTORATE,SIMPLY HIRE LTD,"1,001.44",FACILITIES MAINTENANCE,BUILDING R&M,5902249096
05.05.2017,LEISURE DIRECTORATE,EDF ENERGY PLC,250.26,GROVE VALE LIBRARY,ELECTRICITY,5902248986
05.05.2017,LEISURE DIRECTORATE,ASKEWS & HOLTS LIBRARY SERVICES LTD,"17,021.32",STOCK SERVICES,BOOKS & PUBLICATIONS,5902248254
05.05.2017,LEISURE DIRECTORATE,EDF ENERGY PLC,"2,505.29",STOCK SERVICES,ELECTRICITY,5902249143
05.05.2017,LEISURE DIRECTORATE,CHUBB FIRE & SECURITY LTD,457.17,STOCK SERVICES,EQUIPMENT PURCHASE & REPAIR,5902249066
05.05.2017,LEISURE DIRECTORATE,ASKEWS & HOLTS LIBRARY SERVICES LTD,442.93,STOCK SERVICES,SUBSCRIPTIONS,5902249163
05.05.2017,MODERNISATION HGF,CASTLE WATER LTD,"4,461.53",160 TOOLEY ST.,WATER,5902249092
05.05.2017,MODERNISATION HGF,CASTLE WATER LTD,"6,658.63",160 TOOLEY ST.,WATER,5902249092
05.05.2017,MODERNISATION HGF,NCC SERVICES LTD,"1,062.50",APPLICATIONS,SUBSCRIPTIONS,5902248978
05.05.2017,MODERNISATION HGF,NCC SERVICES LTD,"1,062.50",APPLICATIONS,SUBSCRIPTIONS,5902248988
05.05.2017,MODERNISATION HGF,WEST YORKSHIRE LEARNING PROVIDERS LTD,400,APPRENTICESHIP SCHEME,TRAINING,5902249120
05.05.2017,MODERNISATION HGF,MAYBO LIMITED,395,CORPORATE TRAINING BUDGETS,TRAINING,5902249037
05.05.2017,MODERNISATION HGF,MAYBO LIMITED,395,CORPORATE TRAINING BUDGETS,TRAINING,5902249041
05.05.2017,MODERNISATION HGF,MAYBO LIMITED,395,CORPORATE TRAINING BUDGETS,TRAINING,5902249042
05.05.2017,MODERNISATION HGF,MAYBO LIMITED,395,CORPORATE TRAINING BUDGETS,TRAINING,5902249044
05.05.2017,MODERNISATION HGF,MAYBO LIMITED,790,CORPORATE TRAINING BUDGETS,TRAINING,5902249033
05.05.2017,MODERNISATION HGF,JADU LIMITED,925,CORPORATE TRAINING BUDGETS,TRAINING,5902249099
05.05.2017,MODERNISATION HGF,SUNITA SHARMA,375,MEMBER DEVELOPMENT,TRAINING,5902249155
05.05.2017,MODERNISATION HGF,AMA ALEXI MARMOT ASSOCIATES LTD,"4,375.00",PLANNED MAINTENANCE,PROFESSIONAL FEES,5902249149
05.05.2017,MODERNISATION HGF,VIRGIN MEDIA,300,TECHNOLOGY,DATA COMMUNICATIONS,5902249168
05.05.2017,MODERNISATION HGF,VIRGIN MEDIA,"2,738.66",TECHNOLOGY,DATA COMMUNICATIONS,5902249170
05.05.2017,MODERNISATION HGF,VIRGIN MEDIA,"2,738.66",TECHNOLOGY,DATA COMMUNICATIONS,5902249174
05.05.2017,MODERNISATION HGF,VIRGIN MEDIA,"3,941.98",TECHNOLOGY,DATA COMMUNICATIONS,5902249164
05.05.2017,MODERNISATION HGF,VIRGIN MEDIA,"7,215.47",TECHNOLOGY,DATA COMMUNICATIONS,5902249172
05.05.2017,MODERNISATION HGF,VIRGIN MEDIA,"25,929.80",TECHNOLOGY,DATA COMMUNICATIONS,5902249165
05.05.2017,PECKHAM AND NUNHEAD COMMUNITY COUNCIL,ELIMHOUSE COMMUNITY ASSOCIATION,"2,000.00",ELIMHOUSE COMMUNITY ASSOCIATION - SOUTHWARK,GRANT,CHEQUE PAYMENT
05.05.2017,PECKHAM AND NUNHEAD COMMUNITY COUNCIL,WILLOWBROOK TENANT MANAGEMENT ORGANISATION,"2,000.00",IMPROVING THE OUT LOOK OF OUR ESTATE,GRANT,CHEQUE PAYMENT
05.05.2017,PLANNING AND TRANSPORT,IDOX SOFWARE LIMITED,"15,000.00",DEVELOPMENT CONTROL ADMINSTRATION,COMPUTER MAINTENANCE,5902248981
05.05.2017,PLANNING AND TRANSPORT,EXACOM SYSTEMS LTD,"5,475.01",S106 & CIL ADMINISTRATION,INFORMATION MANAGEMENT,5902248985
05.05.2017,PUBLIC HEALTH,THE HILLINGDON HOSPITALS NHS FOUNDATION TRUST,308,SEXUAL HEALTH - STI,EXTERNAL AGENCIES AND BODIES,5902249128
05.05.2017,REGENERATION,DOCKLEY LTD,"1,916.66",2 DOCKLEY RD INDUSTRIAL ESTATE,RENTS,2102666485
05.05.2017,REGENERATION,DOCKLEY LTD,"2,046.00",2 DOCKLEY RD INDUSTRIAL ESTATE,RENTS,2102666487
05.05.2017,REGENERATION,DOCKLEY LTD,"2,489.16",2 DOCKLEY RD INDUSTRIAL ESTATE,RENTS,2102666483
05.05.2017,REGENERATION,DOCKLEY LTD,"4,125.00",2 DOCKLEY RD INDUSTRIAL ESTATE,RENTS,2102666479
05.05.2017,REGENERATION,DOCKLEY LTD,"4,666.66",2 DOCKLEY RD INDUSTRIAL ESTATE,RENTS,2102666481
05.05.2017,REGENERATION,DOCKLEY LTD,376.85,2 DOCKLEY RD INDUSTRIAL ESTATE,SERVICE CHARGES,2102666480
05.05.2017,REGENERATION,DOCKLEY LTD,387.24,2 DOCKLEY RD INDUSTRIAL ESTATE,SERVICE CHARGES,2102666482
05.05.2017,RESIDENT SERVICES,KENISTON HOUSING ASSOCIATION LTD,"5,331.17",BOROUGH & BANKSIDE,RENTS,2102666057
05.05.2017,RESIDENT SERVICES,REDACTED PERSONAL DATA,300,OPERATIONS/OFFICES ACCOMMODATION,LEGAL FEES & COURT COSTS,2102665301
05.05.2017,RESIDENT SERVICES HGF,THE MANNA CENTRE,"13,750.00",MANNA CENTRE CO-ORDINATOR,GRANTS,5902249043
06.05.2017,CENTRAL FUNCTIONS,KENT COUNTY COUNCIL - LASER,"9,647.81",HEATING ACCOUNT,GAS,5902248522
06.05.2017,CENTRAL FUNCTIONS,KENT COUNTY COUNCIL - LASER,"485,025.17",HEATING ACCOUNT,GAS,5902248522
06.05.2017,CHILDREN'S SERVICES,WRIXONCARE SEVICES,544.5,CARE GRPS  4 TO 6,OTHER PAYMENTS FOR CLIENTS,5902248493
06.05.2017,COMMUNITIES,FALCON POINT MANAGEMENT GROUP LTD,"1,149.12",FALCON POINT TMO,M&M ALLOWANCE CO-OPS,5902248647
06.05.2017,ENVIRONMENT DIRECTORATE,LONDON COUNCILS,"22,588.73",ALG ACCOUNT,PROFESSIONAL FEES,5902248896
06.05.2017,ENVIRONMENT DIRECTORATE,THE T.P. PARTNERSHIP,445,ESTATE CLEANING-GENERAL,OTHER CONTRACTORS,5902248991
06.05.2017,ENVIRONMENT DIRECTORATE,THE T.P. PARTNERSHIP,455,ESTATE CLEANING-GENERAL,OTHER CONTRACTORS,5902248987
06.05.2017,ENVIRONMENT DIRECTORATE,CROWN OIL UK,"1,377.12",SANDGATE STREET,VEHICLE FUEL,5902248500
06.05.2017,F & C S EXCLUDING CORPORATE BUDGETS,DSI BILLING SERVICES LTD,"4,006.86",ADMINISTRATIVE SUPPORT,POSTAGES,5902249107
07.05.2017,ENVIRONMENT AND LEISURE,LORENSBERGS LTD,"1,400.00",CAPITAL PS (LEISURE),CONSTRUCTION FEES  - EXTERNAL,5902249111
07.05.2017,ENVIRONMENT AND LEISURE,FACULTATIEVE TECHNOLOGIES LTD,"26,212.63",CAPITAL PS (LEISURE),CONSTRUCTION FEES  - EXTERNAL,2102665985
07.05.2017,ENVIRONMENT DIRECTORATE,NORTHGATE VEHICLE HIRE (SOUTH EAST),312.43,COMMERCIAL VEH CTRL A/C,HIRED VEHICLES,5902249130
07.05.2017,ENVIRONMENT DIRECTORATE,NORTHGATE VEHICLE HIRE (SOUTH EAST),467.87,COMMERCIAL VEH CTRL A/C,HIRED VEHICLES,5902249125
07.05.2017,ENVIRONMENT DIRECTORATE,NORTHGATE VEHICLE HIRE (SOUTH EAST),467.87,COMMERCIAL VEH CTRL A/C,HIRED VEHICLES,5902249126
07.05.2017,ENVIRONMENT DIRECTORATE,RYGOR COMMERCIALS LIMITED,"3,534.12",COMMERCIAL VEH CTRL A/C,HIRED VEHICLES,5902249055
07.05.2017,ENVIRONMENT DIRECTORATE,JULIE ANDERSON,260,PROJECT SUPPORT,REFRESHMENTS FOR MEETINGS,5902248703
07.05.2017,F & C S EXCLUDING CORPORATE BUDGETS,CIPFA BUSINESS LTD,"2,610.00",ANTI-FRAUD AND INTERNAL AUDIT,TRAINING,5902248999
07.05.2017,PLANNING AND TRANSPORT,SOUTHWARK NEWSPAPER LTD,840,DEVELOPMENT CONTROL ADMINSTRATION,MARKETING & PUBLICITY SERVICES,5902248941
08.05.2017,ADULT SOCIAL CARE,THE DRIVE CARE HOMES LTD,720,LD LTS 18-64,CLIENT TRANSPORT,2102667105
08.05.2017,ADULT SOCIAL CARE,THE DRIVE CARE HOMES LTD,"1,120.00",LD LTS 18-64,CLIENT TRANSPORT,2102667139
08.05.2017,ADULT SOCIAL CARE,MEDACS HOMECARE,693.6,LD LTS 18-64,HOMECARE - C&V,2102667278
08.05.2017,ADULT SOCIAL CARE,MEDACS HOMECARE,289,LD LTS 18-64,HOMECARE - SPOT,2102667279
08.05.2017,ADULT SOCIAL CARE,MEDACS HOMECARE,346.8,LD LTS 18-64,HOMECARE - SPOT,2102667275
08.05.2017,ADULT SOCIAL CARE,MEDACS HOMECARE,"1,242.70",LD LTS 18-64,HOMECARE - SPOT,2102667280
08.05.2017,ADULT SOCIAL CARE,MEDACS HOMECARE,"1,835.15",LD LTS 18-64,HOMECARE - SPOT,2102667276
08.05.2017,ADULT SOCIAL CARE,TRUECARE HAVEN SUPPORT LTD,"3,795.00",LD LTS 18-64,HOMECARE - SPOT,2102667137
08.05.2017,ADULT SOCIAL CARE,THREE C'S SUPPORT,306.17,LD LTS 18-64,SUPPORTED LIVING,2102667114
08.05.2017,ADULT SOCIAL CARE,THREE C'S SUPPORT,360.15,LD LTS 18-64,SUPPORTED LIVING,2102667113
08.05.2017,ADULT SOCIAL CARE,CHOICE SUPPORT,367.4,LD LTS 18-64,SUPPORTED LIVING,2102667263
08.05.2017,ADULT SOCIAL CARE,CHOICE SUPPORT,440.88,LD LTS 18-64,SUPPORTED LIVING,2102667262
08.05.2017,ADULT SOCIAL CARE,THREE C'S SUPPORT,508.26,LD LTS 18-64,SUPPORTED LIVING,2102667111
08.05.2017,ADULT SOCIAL CARE,CHOICE SUPPORT,569.46,LD LTS 18-64,SUPPORTED LIVING,2102667266
08.05.2017,ADULT SOCIAL CARE,THREE C'S SUPPORT,577.35,LD LTS 18-64,SUPPORTED LIVING,2102667167
08.05.2017,ADULT SOCIAL CARE,CHOICE SUPPORT,587.84,LD LTS 18-64,SUPPORTED LIVING,2102667272
08.05.2017,ADULT SOCIAL CARE,THREE C'S SUPPORT,720.4,LD LTS 18-64,SUPPORTED LIVING,2102667132
08.05.2017,ADULT SOCIAL CARE,MEDACS HOMECARE,740.16,LD LTS 18-64,SUPPORTED LIVING,2102667282
08.05.2017,ADULT SOCIAL CARE,CHOICE SUPPORT,"1,102.00",LD LTS 18-64,SUPPORTED LIVING,2102667264
08.05.2017,ADULT SOCIAL CARE,LIFECARE CONSULTING LTD,"1,268.06",LD LTS 65+,HOMECARE - C&V,2102667096
08.05.2017,ADULT SOCIAL CARE,CHOICE SUPPORT,293.92,LD LTS 65+,SUPPORTED LIVING,2102667274
08.05.2017,ADULT SOCIAL CARE,THREE C'S SUPPORT,879.28,LD LTS 65+,SUPPORTED LIVING,2102667141
08.05.2017,ADULT SOCIAL CARE,LONDON CARE LTD,716.01,MEM LTS 18-64,HOMECARE - C&V,2102666741
08.05.2017,ADULT SOCIAL CARE,LIFECARE CONSULTING LTD,337.25,MEM LTS 18-64,HOMECARE - SPOT,2102667090
08.05.2017,ADULT SOCIAL CARE,LONDON CARE LTD,395.04,MEM LTS 65+,HOMECARE - C&V,2102666744
08.05.2017,ADULT SOCIAL CARE,YOUTH GRACES (UK) LTD,660.59,MEM LTS 65+,HOMECARE - C&V,2102667190
08.05.2017,ADULT SOCIAL CARE,LONDON CARE LTD,"1,037.12",MEM LTS 65+,HOMECARE - C&V,2102666884
08.05.2017,ADULT SOCIAL CARE,LONDON CARE LTD,"1,094.75",MEM LTS 65+,HOMECARE - C&V,2102666772
08.05.2017,ADULT SOCIAL CARE,LONDON CARE LTD,"1,152.20",MEM LTS 65+,HOMECARE - C&V,2102666920
08.05.2017,ADULT SOCIAL CARE,LIFECARE CONSULTING LTD,256.31,MEM LTS 65+,HOMECARE - SPOT,2102667095
08.05.2017,ADULT SOCIAL CARE,YOUTH GRACES (UK) LTD,256.35,MEM LTS 65+,HOMECARE - SPOT,2102667246
08.05.2017,ADULT SOCIAL CARE,CARE DIRECT UK LTD,259.68,MEM LTS 65+,HOMECARE - SPOT,2102666959
08.05.2017,ADULT SOCIAL CARE,PROFAD CARE AGENCY,526.28,MEM LTS 65+,HOMECARE - SPOT,2102667324
08.05.2017,ADULT SOCIAL CARE,HUMBLE HEALTH CARE LTD,661.52,MEM LTS 65+,HOMECARE - SPOT,2102667169
08.05.2017,ADULT SOCIAL CARE,PROFAD CARE AGENCY,404.92,MH LTS 18-64,HOMECARE - SPOT,2102667332
08.05.2017,ADULT SOCIAL CARE,LONDON CARE LTD,576.24,MH LTS 65+,HOMECARE - C&V,2102666881
08.05.2017,ADULT SOCIAL CARE,LONDON CARE LTD,921.76,MH LTS 65+,HOMECARE - C&V,2102666826
08.05.2017,ADULT SOCIAL CARE,CARE DIRECT UK LTD,259.68,MH LTS 65+,HOMECARE - SPOT,2102666990
08.05.2017,ADULT SOCIAL CARE,YOUTH GRACES (UK) LTD,263.16,MH LTS 65+,HOMECARE - SPOT,2102667242
08.05.2017,ADULT SOCIAL CARE,CARE DIRECT UK LTD,364.23,MH LTS 65+,HOMECARE - SPOT,2102667073
08.05.2017,ADULT SOCIAL CARE,PROFAD CARE AGENCY,620.96,MH LTS 65+,HOMECARE - SPOT,2102667333
08.05.2017,ADULT SOCIAL CARE,HUMBLE HEALTH CARE LTD,735.75,MH LTS 65+,HOMECARE - SPOT,2102667127
08.05.2017,ADULT SOCIAL CARE,YOUTH GRACES (UK) LTD,310.33,PHY LTS 18-64,HOMECARE - C&V,2102667183
08.05.2017,ADULT SOCIAL CARE,LONDON CARE LTD,345.72,PHY LTS 18-64,HOMECARE - C&V,2102666850
08.05.2017,ADULT SOCIAL CARE,LONDON CARE LTD,345.8,PHY LTS 18-64,HOMECARE - C&V,2102666866
08.05.2017,ADULT SOCIAL CARE,LONDON CARE LTD,374.59,PHY LTS 18-64,HOMECARE - C&V,2102666846
08.05.2017,ADULT SOCIAL CARE,LONDON CARE LTD,395.04,PHY LTS 18-64,HOMECARE - C&V,2102666775
08.05.2017,ADULT SOCIAL CARE,LONDON CARE LTD,395.04,PHY LTS 18-64,HOMECARE - C&V,2102666878
08.05.2017,ADULT SOCIAL CARE,LONDON CARE LTD,403.27,PHY LTS 18-64,HOMECARE - C&V,2102666873
08.05.2017,ADULT SOCIAL CARE,YOUTH GRACES (UK) LTD,404.72,PHY LTS 18-64,HOMECARE - C&V,2102667189
08.05.2017,ADULT SOCIAL CARE,LONDON CARE LTD,461.01,PHY LTS 18-64,HOMECARE - C&V,2102666870
08.05.2017,ADULT SOCIAL CARE,LONDON CARE LTD,473.35,PHY LTS 18-64,HOMECARE - C&V,2102666761
08.05.2017,ADULT SOCIAL CARE,LONDON CARE LTD,477.4,PHY LTS 18-64,HOMECARE - C&V,2102666828
08.05.2017,ADULT SOCIAL CARE,LONDON CARE LTD,510.32,PHY LTS 18-64,HOMECARE - C&V,2102666814
08.05.2017,ADULT SOCIAL CARE,LONDON CARE LTD,543.2,PHY LTS 18-64,HOMECARE - C&V,2102666847
08.05.2017,ADULT SOCIAL CARE,LONDON CARE LTD,568.01,PHY LTS 18-64,HOMECARE - C&V,2102666815
08.05.2017,ADULT SOCIAL CARE,LONDON CARE LTD,584.33,PHY LTS 18-64,HOMECARE - C&V,2102666852
08.05.2017,ADULT SOCIAL CARE,LONDON CARE LTD,592.56,PHY LTS 18-64,HOMECARE - C&V,2102666899
08.05.2017,ADULT SOCIAL CARE,LONDON CARE LTD,609.16,PHY LTS 18-64,HOMECARE - C&V,2102666905
08.05.2017,ADULT SOCIAL CARE,LONDON CARE LTD,617.38,PHY LTS 18-64,HOMECARE - C&V,2102666876
08.05.2017,ADULT SOCIAL CARE,CARE DIRECT UK LTD,627.29,PHY LTS 18-64,HOMECARE - C&V,2102666927
08.05.2017,ADULT SOCIAL CARE,LONDON CARE LTD,642.08,PHY LTS 18-64,HOMECARE - C&V,2102666879
08.05.2017,ADULT SOCIAL CARE,LONDON CARE LTD,658.4,PHY LTS 18-64,HOMECARE - C&V,2102666757
08.05.2017,ADULT SOCIAL CARE,LONDON CARE LTD,707.78,PHY LTS 18-64,HOMECARE - C&V,2102666917
08.05.2017,ADULT SOCIAL CARE,LONDON CARE LTD,724.24,PHY LTS 18-64,HOMECARE - C&V,2102666874
08.05.2017,ADULT SOCIAL CARE,LONDON CARE LTD,724.36,PHY LTS 18-64,HOMECARE - C&V,2102666819
08.05.2017,ADULT SOCIAL CARE,LONDON CARE LTD,782.1,PHY LTS 18-64,HOMECARE - C&V,2102666762
08.05.2017,ADULT SOCIAL CARE,LONDON CARE LTD,831.37,PHY LTS 18-64,HOMECARE - C&V,2102666855
08.05.2017,ADULT SOCIAL CARE,LONDON CARE LTD,880.61,PHY LTS 18-64,HOMECARE - C&V,2102666795
08.05.2017,ADULT SOCIAL CARE,LONDON CARE LTD,909.49,PHY LTS 18-64,HOMECARE - C&V,2102666888
08.05.2017,ADULT SOCIAL CARE,LONDON CARE LTD,922.04,PHY LTS 18-64,HOMECARE - C&V,2102666913
08.05.2017,ADULT SOCIAL CARE,LONDON CARE LTD,938.36,PHY LTS 18-64,HOMECARE - C&V,2102666782
08.05.2017,ADULT SOCIAL CARE,LONDON CARE LTD,"1,127.51",PHY LTS 18-64,HOMECARE - C&V,2102666922
08.05.2017,ADULT SOCIAL CARE,LONDON CARE LTD,"1,464.96",PHY LTS 18-64,HOMECARE - C&V,2102666900
08.05.2017,ADULT SOCIAL CARE,LONDON CARE LTD,"2,086.85",PHY LTS 18-64,HOMECARE - C&V,2102666755
08.05.2017,ADULT SOCIAL CARE,CARE DIRECT UK LTD,256.31,PHY LTS 18-64,HOMECARE - SPOT,2102666997
08.05.2017,ADULT SOCIAL CARE,YOUTH GRACES (UK) LTD,256.35,PHY LTS 18-64,HOMECARE - SPOT,2102667244
08.05.2017,ADULT SOCIAL CARE,PROFAD CARE AGENCY,323.8,PHY LTS 18-64,HOMECARE - SPOT,2102667313
08.05.2017,ADULT SOCIAL CARE,YOUTH GRACES (UK) LTD,425.18,PHY LTS 18-64,HOMECARE - SPOT,2102667243
08.05.2017,ADULT SOCIAL CARE,LONDON CARE LTD,642.08,PHY LTS 18-64,HOMECARE - SPOT,2102666910
08.05.2017,ADULT SOCIAL CARE,CARE DIRECT UK LTD,647.52,PHY LTS 18-64,HOMECARE - SPOT,2102666989
08.05.2017,ADULT SOCIAL CARE,CARE DIRECT UK LTD,661.01,PHY LTS 18-64,HOMECARE - SPOT,2102666940
08.05.2017,ADULT SOCIAL CARE,CARE DIRECT UK LTD,711.6,PHY LTS 18-64,HOMECARE - SPOT,2102667080
08.05.2017,ADULT SOCIAL CARE,LIFECARE CONSULTING LTD,714.97,PHY LTS 18-64,HOMECARE - SPOT,2102667107
08.05.2017,ADULT SOCIAL CARE,YOUTH GRACES (UK) LTD,969.57,PHY LTS 18-64,HOMECARE - SPOT,2102667177
08.05.2017,ADULT SOCIAL CARE,PROFAD CARE AGENCY,"1,558.33",PHY LTS 18-64,HOMECARE - SPOT,2102667316
08.05.2017,ADULT SOCIAL CARE,LONDON CARE LTD,263.44,PHY LTS 65+,HOMECARE - C&V,2102666827
08.05.2017,ADULT SOCIAL CARE,CARE DIRECT UK LTD,279.92,PHY LTS 65+,HOMECARE - C&V,2102667042
08.05.2017,ADULT SOCIAL CARE,LONDON CARE LTD,284.05,PHY LTS 65+,HOMECARE - C&V,2102666798
08.05.2017,ADULT SOCIAL CARE,LONDON CARE LTD,296.28,PHY LTS 65+,HOMECARE - C&V,2102666748
08.05.2017,ADULT SOCIAL CARE,LONDON CARE LTD,304.51,PHY LTS 65+,HOMECARE - C&V,2102666801
08.05.2017,ADULT SOCIAL CARE,LONDON CARE LTD,329.2,PHY LTS 65+,HOMECARE - C&V,2102666764
08.05.2017,ADULT SOCIAL CARE,LONDON CARE LTD,329.2,PHY LTS 65+,HOMECARE - C&V,2102666796
08.05.2017,ADULT SOCIAL CARE,LONDON CARE LTD,337.45,PHY LTS 65+,HOMECARE - C&V,2102666854
08.05.2017,ADULT SOCIAL CARE,LONDON CARE LTD,345.8,PHY LTS 65+,HOMECARE - C&V,2102666776
08.05.2017,ADULT SOCIAL CARE,LONDON CARE LTD,345.8,PHY LTS 65+,HOMECARE - C&V,2102666802
08.05.2017,ADULT SOCIAL CARE,LONDON CARE LTD,345.8,PHY LTS 65+,HOMECARE - C&V,2102666836
08.05.2017,ADULT SOCIAL CARE,LONDON CARE LTD,345.8,PHY LTS 65+,HOMECARE - C&V,2102666843
08.05.2017,ADULT SOCIAL CARE,LONDON CARE LTD,345.8,PHY LTS 65+,HOMECARE - C&V,2102666921
08.05.2017,ADULT SOCIAL CARE,LONDON CARE LTD,362.12,PHY LTS 65+,HOMECARE - C&V,2102666856
08.05.2017,ADULT SOCIAL CARE,LONDON CARE LTD,391.06,PHY LTS 65+,HOMECARE - C&V,2102666779
08.05.2017,ADULT SOCIAL CARE,LONDON CARE LTD,395.2,PHY LTS 65+,HOMECARE - C&V,2102666729
08.05.2017,ADULT SOCIAL CARE,LONDON CARE LTD,411.56,PHY LTS 65+,HOMECARE - C&V,2102666773
08.05.2017,ADULT SOCIAL CARE,LONDON CARE LTD,411.6,PHY LTS 65+,HOMECARE - C&V,2102666728
08.05.2017,ADULT SOCIAL CARE,LONDON CARE LTD,427.96,PHY LTS 65+,HOMECARE - C&V,2102666822
08.05.2017,ADULT SOCIAL CARE,LONDON CARE LTD,427.96,PHY LTS 65+,HOMECARE - C&V,2102666902
08.05.2017,ADULT SOCIAL CARE,LONDON CARE LTD,444.42,PHY LTS 65+,HOMECARE - C&V,2102666767
08.05.2017,ADULT SOCIAL CARE,LONDON CARE LTD,444.42,PHY LTS 65+,HOMECARE - C&V,2102666794
08.05.2017,ADULT SOCIAL CARE,LONDON CARE LTD,444.42,PHY LTS 65+,HOMECARE - C&V,2102666841
08.05.2017,ADULT SOCIAL CARE,LIFECARE CONSULTING LTD,451.92,PHY LTS 65+,HOMECARE - C&V,2102667143
08.05.2017,ADULT SOCIAL CARE,LONDON CARE LTD,460.88,PHY LTS 65+,HOMECARE - C&V,2102666799
08.05.2017,ADULT SOCIAL CARE,LONDON CARE LTD,460.88,PHY LTS 65+,HOMECARE - C&V,2102666859
08.05.2017,ADULT SOCIAL CARE,LONDON CARE LTD,460.88,PHY LTS 65+,HOMECARE - C&V,2102666864
08.05.2017,ADULT SOCIAL CARE,LONDON CARE LTD,460.88,PHY LTS 65+,HOMECARE - C&V,2102666877
08.05.2017,ADULT SOCIAL CARE,LONDON CARE LTD,469.11,PHY LTS 65+,HOMECARE - C&V,2102666791
08.05.2017,ADULT SOCIAL CARE,LONDON CARE LTD,469.11,PHY LTS 65+,HOMECARE - C&V,2102666906
08.05.2017,ADULT SOCIAL CARE,LONDON CARE LTD,477.34,PHY LTS 65+,HOMECARE - C&V,2102666724
08.05.2017,ADULT SOCIAL CARE,LONDON CARE LTD,477.48,PHY LTS 65+,HOMECARE - C&V,2102666781
08.05.2017,ADULT SOCIAL CARE,CARE DIRECT UK LTD,492.39,PHY LTS 65+,HOMECARE - C&V,2102667013
08.05.2017,ADULT SOCIAL CARE,LONDON CARE LTD,493.8,PHY LTS 65+,HOMECARE - C&V,2102666829
08.05.2017,ADULT SOCIAL CARE,LONDON CARE LTD,506.23,PHY LTS 65+,HOMECARE - C&V,2102666853
08.05.2017,ADULT SOCIAL CARE,LONDON CARE LTD,510.4,PHY LTS 65+,HOMECARE - C&V,2102666735
08.05.2017,ADULT SOCIAL CARE,LONDON CARE LTD,518.49,PHY LTS 65+,HOMECARE - C&V,2102666885
08.05.2017,ADULT SOCIAL CARE,LONDON CARE LTD,526.72,PHY LTS 65+,HOMECARE - C&V,2102666786
08.05.2017,ADULT SOCIAL CARE,YOUTH GRACES (UK) LTD,543.06,PHY LTS 65+,HOMECARE - C&V,2102667250
08.05.2017,ADULT SOCIAL CARE,LONDON CARE LTD,543.18,PHY LTS 65+,HOMECARE - C&V,2102666862
08.05.2017,ADULT SOCIAL CARE,LONDON CARE LTD,543.32,PHY LTS 65+,HOMECARE - C&V,2102666780
08.05.2017,ADULT SOCIAL CARE,LONDON CARE LTD,559.64,PHY LTS 65+,HOMECARE - C&V,2102666860
08.05.2017,ADULT SOCIAL CARE,LONDON CARE LTD,568.01,PHY LTS 65+,HOMECARE - C&V,2102666730
08.05.2017,ADULT SOCIAL CARE,LONDON CARE LTD,568.01,PHY LTS 65+,HOMECARE - C&V,2102666851
08.05.2017,ADULT SOCIAL CARE,LONDON CARE LTD,576.1,PHY LTS 65+,HOMECARE - C&V,2102666800
08.05.2017,ADULT SOCIAL CARE,LONDON CARE LTD,576.1,PHY LTS 65+,HOMECARE - C&V,2102666820
08.05.2017,ADULT SOCIAL CARE,LONDON CARE LTD,576.24,PHY LTS 65+,HOMECARE - C&V,2102666765
08.05.2017,ADULT SOCIAL CARE,LONDON CARE LTD,576.24,PHY LTS 65+,HOMECARE - C&V,2102666804
08.05.2017,ADULT SOCIAL CARE,LONDON CARE LTD,576.24,PHY LTS 65+,HOMECARE - C&V,2102666818
08.05.2017,ADULT SOCIAL CARE,LONDON CARE LTD,576.24,PHY LTS 65+,HOMECARE - C&V,2102666907
08.05.2017,ADULT SOCIAL CARE,CARE DIRECT UK LTD,583.44,PHY LTS 65+,HOMECARE - C&V,2102667032
08.05.2017,ADULT SOCIAL CARE,LONDON CARE LTD,592.56,PHY LTS 65+,HOMECARE - C&V,2102666792
08.05.2017,ADULT SOCIAL CARE,LONDON CARE LTD,633.71,PHY LTS 65+,HOMECARE - C&V,2102666848
08.05.2017,ADULT SOCIAL CARE,LONDON CARE LTD,641.94,PHY LTS 65+,HOMECARE - C&V,2102666746
08.05.2017,ADULT SOCIAL CARE,LONDON CARE LTD,642.08,PHY LTS 65+,HOMECARE - C&V,2102666745
08.05.2017,ADULT SOCIAL CARE,LONDON CARE LTD,674.86,PHY LTS 65+,HOMECARE - C&V,2102666770
08.05.2017,ADULT SOCIAL CARE,LONDON CARE LTD,695.55,PHY LTS 65+,HOMECARE - C&V,2102666849
08.05.2017,ADULT SOCIAL CARE,LONDON CARE LTD,707.92,PHY LTS 65+,HOMECARE - C&V,2102666811
08.05.2017,ADULT SOCIAL CARE,LONDON CARE LTD,736.72,PHY LTS 65+,HOMECARE - C&V,2102666737
08.05.2017,ADULT SOCIAL CARE,LONDON CARE LTD,740.8,PHY LTS 65+,HOMECARE - C&V,2102666844
08.05.2017,ADULT SOCIAL CARE,LONDON CARE LTD,757.16,PHY LTS 65+,HOMECARE - C&V,2102666766
08.05.2017,ADULT SOCIAL CARE,LONDON CARE LTD,757.16,PHY LTS 65+,HOMECARE - C&V,2102666771
08.05.2017,ADULT SOCIAL CARE,LONDON CARE LTD,757.16,PHY LTS 65+,HOMECARE - C&V,2102666893
08.05.2017,ADULT SOCIAL CARE,LONDON CARE LTD,790.08,PHY LTS 65+,HOMECARE - C&V,2102666895
08.05.2017,ADULT SOCIAL CARE,LONDON CARE LTD,806.68,PHY LTS 65+,HOMECARE - C&V,2102666788
08.05.2017,ADULT SOCIAL CARE,LONDON CARE LTD,806.68,PHY LTS 65+,HOMECARE - C&V,2102666803
08.05.2017,ADULT SOCIAL CARE,LONDON CARE LTD,814.91,PHY LTS 65+,HOMECARE - C&V,2102666845
08.05.2017,ADULT SOCIAL CARE,LONDON CARE LTD,823,PHY LTS 65+,HOMECARE - C&V,2102666736
08.05.2017,ADULT SOCIAL CARE,LONDON CARE LTD,823.16,PHY LTS 65+,HOMECARE - C&V,2102666904
08.05.2017,ADULT SOCIAL CARE,LONDON CARE LTD,856,PHY LTS 65+,HOMECARE - C&V,2102666783
08.05.2017,ADULT SOCIAL CARE,LONDON CARE LTD,856.04,PHY LTS 65+,HOMECARE - C&V,2102666793
08.05.2017,ADULT SOCIAL CARE,LONDON CARE LTD,856.08,PHY LTS 65+,HOMECARE - C&V,2102666731
08.05.2017,ADULT SOCIAL CARE,LONDON CARE LTD,856.08,PHY LTS 65+,HOMECARE - C&V,2102666887
08.05.2017,ADULT SOCIAL CARE,LONDON CARE LTD,864.15,PHY LTS 65+,HOMECARE - C&V,2102666787
08.05.2017,ADULT SOCIAL CARE,LONDON CARE LTD,864.29,PHY LTS 65+,HOMECARE - C&V,2102666908
08.05.2017,ADULT SOCIAL CARE,LONDON CARE LTD,864.3,PHY LTS 65+,HOMECARE - C&V,2102666753
08.05.2017,ADULT SOCIAL CARE,LONDON CARE LTD,888.84,PHY LTS 65+,HOMECARE - C&V,2102666916
08.05.2017,ADULT SOCIAL CARE,LONDON CARE LTD,888.88,PHY LTS 65+,HOMECARE - C&V,2102666749
08.05.2017,ADULT SOCIAL CARE,LONDON CARE LTD,905.44,PHY LTS 65+,HOMECARE - C&V,2102666789
08.05.2017,ADULT SOCIAL CARE,LONDON CARE LTD,921.76,PHY LTS 65+,HOMECARE - C&V,2102666751
08.05.2017,ADULT SOCIAL CARE,LONDON CARE LTD,921.76,PHY LTS 65+,HOMECARE - C&V,2102666768
08.05.2017,ADULT SOCIAL CARE,LONDON CARE LTD,922.04,PHY LTS 65+,HOMECARE - C&V,2102666769
08.05.2017,ADULT SOCIAL CARE,LONDON CARE LTD,938.36,PHY LTS 65+,HOMECARE - C&V,2102666816
08.05.2017,ADULT SOCIAL CARE,LONDON CARE LTD,942.47,PHY LTS 65+,HOMECARE - C&V,2102666747
08.05.2017,ADULT SOCIAL CARE,LONDON CARE LTD,987.88,PHY LTS 65+,HOMECARE - C&V,2102666882
08.05.2017,ADULT SOCIAL CARE,LONDON CARE LTD,"1,008.31",PHY LTS 65+,HOMECARE - C&V,2102666912
08.05.2017,ADULT SOCIAL CARE,LONDON CARE LTD,"1,020.52",PHY LTS 65+,HOMECARE - C&V,2102666763
08.05.2017,ADULT SOCIAL CARE,LONDON CARE LTD,"1,020.52",PHY LTS 65+,HOMECARE - C&V,2102666898
08.05.2017,ADULT SOCIAL CARE,LONDON CARE LTD,"1,053.44",PHY LTS 65+,HOMECARE - C&V,2102666740
08.05.2017,ADULT SOCIAL CARE,LONDON CARE LTD,"1,086.36",PHY LTS 65+,HOMECARE - C&V,2102666832
08.05.2017,ADULT SOCIAL CARE,LONDON CARE LTD,"1,086.50",PHY LTS 65+,HOMECARE - C&V,2102666831
08.05.2017,ADULT SOCIAL CARE,LONDON CARE LTD,"1,127.69",PHY LTS 65+,HOMECARE - C&V,2102666892
08.05.2017,ADULT SOCIAL CARE,LONDON CARE LTD,"1,135.74",PHY LTS 65+,HOMECARE - C&V,2102666886
08.05.2017,ADULT SOCIAL CARE,LONDON CARE LTD,"1,144.25",PHY LTS 65+,HOMECARE - C&V,2102666743
08.05.2017,ADULT SOCIAL CARE,LONDON CARE LTD,"1,152.20",PHY LTS 65+,HOMECARE - C&V,2102666774
08.05.2017,ADULT SOCIAL CARE,LONDON CARE LTD,"1,152.20",PHY LTS 65+,HOMECARE - C&V,2102666808
08.05.2017,ADULT SOCIAL CARE,LONDON CARE LTD,"1,152.48",PHY LTS 65+,HOMECARE - C&V,2102666733
08.05.2017,ADULT SOCIAL CARE,LONDON CARE LTD,"1,185.28",PHY LTS 65+,HOMECARE - C&V,2102666813
08.05.2017,ADULT SOCIAL CARE,LONDON CARE LTD,"1,189.51",PHY LTS 65+,HOMECARE - C&V,2102666858
08.05.2017,ADULT SOCIAL CARE,LONDON CARE LTD,"1,321.27",PHY LTS 65+,HOMECARE - C&V,2102666894
08.05.2017,ADULT SOCIAL CARE,LONDON CARE LTD,"1,333.40",PHY LTS 65+,HOMECARE - C&V,2102666821
08.05.2017,ADULT SOCIAL CARE,LONDON CARE LTD,"1,350.00",PHY LTS 65+,HOMECARE - C&V,2102666732
08.05.2017,ADULT SOCIAL CARE,LONDON CARE LTD,"1,382.92",PHY LTS 65+,HOMECARE - C&V,2102666857
08.05.2017,ADULT SOCIAL CARE,LONDON CARE LTD,"1,580.16",PHY LTS 65+,HOMECARE - C&V,2102666759
08.05.2017,ADULT SOCIAL CARE,LONDON CARE LTD,"1,855.96",PHY LTS 65+,HOMECARE - C&V,2102666807
08.05.2017,ADULT SOCIAL CARE,LONDON CARE LTD,"2,057.78",PHY LTS 65+,HOMECARE - C&V,2102666825
08.05.2017,ADULT SOCIAL CARE,LONDON CARE LTD,"2,062.12",PHY LTS 65+,HOMECARE - C&V,2102666868
08.05.2017,ADULT SOCIAL CARE,LONDON CARE LTD,"2,066.01",PHY LTS 65+,HOMECARE - C&V,2102666806
08.05.2017,ADULT SOCIAL CARE,LONDON CARE LTD,"2,074.24",PHY LTS 65+,HOMECARE - C&V,2102666897
08.05.2017,ADULT SOCIAL CARE,LONDON CARE LTD,"2,123.62",PHY LTS 65+,HOMECARE - C&V,2102666738
08.05.2017,ADULT SOCIAL CARE,LONDON CARE LTD,"2,296.17",PHY LTS 65+,HOMECARE - C&V,2102666734
08.05.2017,ADULT SOCIAL CARE,LONDON CARE LTD,"2,370.80",PHY LTS 65+,HOMECARE - C&V,2102666919
08.05.2017,ADULT SOCIAL CARE,LONDON CARE LTD,"2,469.28",PHY LTS 65+,HOMECARE - C&V,2102666890
08.05.2017,ADULT SOCIAL CARE,LONDON CARE LTD,"2,724.41",PHY LTS 65+,HOMECARE - C&V,2102666805
08.05.2017,ADULT SOCIAL CARE,LONDON CARE LTD,"2,765.84",PHY LTS 65+,HOMECARE - C&V,2102666790
08.05.2017,ADULT SOCIAL CARE,LONDON CARE LTD,"3,045.94",PHY LTS 65+,HOMECARE - C&V,2102666830
08.05.2017,ADULT SOCIAL CARE,LONDON CARE LTD,"3,098.87",PHY LTS 65+,HOMECARE - C&V,2102666839
08.05.2017,ADULT SOCIAL CARE,LONDON CARE LTD,"3,115.89",PHY LTS 65+,HOMECARE - C&V,2102666909
08.05.2017,ADULT SOCIAL CARE,LONDON CARE LTD,"3,226.72",PHY LTS 65+,HOMECARE - C&V,2102666739
08.05.2017,ADULT SOCIAL CARE,LONDON CARE LTD,"3,275.54",PHY LTS 65+,HOMECARE - C&V,2102666880
08.05.2017,ADULT SOCIAL CARE,LONDON CARE LTD,"3,292.56",PHY LTS 65+,HOMECARE - C&V,2102666835
08.05.2017,ADULT SOCIAL CARE,CARE DIRECT UK LTD,256.31,PHY LTS 65+,HOMECARE - SPOT,2102666981
08.05.2017,ADULT SOCIAL CARE,CARE DIRECT UK LTD,258.33,PHY LTS 65+,HOMECARE - SPOT,2102667004
08.05.2017,ADULT SOCIAL CARE,CARE DIRECT UK LTD,266.43,PHY LTS 65+,HOMECARE - SPOT,2102667058
08.05.2017,ADULT SOCIAL CARE,LIFECARE CONSULTING LTD,266.43,PHY LTS 65+,HOMECARE - SPOT,2102667155
08.05.2017,ADULT SOCIAL CARE,YOUTH GRACES (UK) LTD,276.59,PHY LTS 65+,HOMECARE - SPOT,2102667238
08.05.2017,ADULT SOCIAL CARE,CARE DIRECT UK LTD,283.29,PHY LTS 65+,HOMECARE - SPOT,2102666943
08.05.2017,ADULT SOCIAL CARE,LIFECARE CONSULTING LTD,283.29,PHY LTS 65+,HOMECARE - SPOT,2102667147
08.05.2017,ADULT SOCIAL CARE,HUMBLE HEALTH CARE LTD,283.5,PHY LTS 65+,HOMECARE - SPOT,2102667168
08.05.2017,ADULT SOCIAL CARE,YOUTH GRACES (UK) LTD,286.75,PHY LTS 65+,HOMECARE - SPOT,2102667174
08.05.2017,ADULT SOCIAL CARE,PROFAD CARE AGENCY,286.79,PHY LTS 65+,HOMECARE - SPOT,2102667311
08.05.2017,ADULT SOCIAL CARE,HUMBLE HEALTH CARE LTD,317.26,PHY LTS 65+,HOMECARE - SPOT,2102667161
08.05.2017,ADULT SOCIAL CARE,CARE DIRECT UK LTD,330.51,PHY LTS 65+,HOMECARE - SPOT,2102666944
08.05.2017,ADULT SOCIAL CARE,YOUTH GRACES (UK) LTD,344.17,PHY LTS 65+,HOMECARE - SPOT,2102667216
08.05.2017,ADULT SOCIAL CARE,CARE DIRECT UK LTD,350.74,PHY LTS 65+,HOMECARE - SPOT,2102666954
08.05.2017,ADULT SOCIAL CARE,CARE DIRECT UK LTD,377.72,PHY LTS 65+,HOMECARE - SPOT,2102667020
08.05.2017,ADULT SOCIAL CARE,LIFECARE CONSULTING LTD,377.72,PHY LTS 65+,HOMECARE - SPOT,2102667162
08.05.2017,ADULT SOCIAL CARE,CARE DIRECT UK LTD,391.21,PHY LTS 65+,HOMECARE - SPOT,2102667024
08.05.2017,ADULT SOCIAL CARE,CARE DIRECT UK LTD,397.96,PHY LTS 65+,HOMECARE - SPOT,2102666995
08.05.2017,ADULT SOCIAL CARE,CARE DIRECT UK LTD,418.19,PHY LTS 65+,HOMECARE - SPOT,2102667057
08.05.2017,ADULT SOCIAL CARE,CARE DIRECT UK LTD,421.56,PHY LTS 65+,HOMECARE - SPOT,2102666938
08.05.2017,ADULT SOCIAL CARE,CARE DIRECT UK LTD,424.94,PHY LTS 65+,HOMECARE - SPOT,2102667077
08.05.2017,ADULT SOCIAL CARE,PROFAD CARE AGENCY,431.68,PHY LTS 65+,HOMECARE - SPOT,2102667334
08.05.2017,ADULT SOCIAL CARE,LIFECARE CONSULTING LTD,451.92,PHY LTS 65+,HOMECARE - SPOT,2102667108
08.05.2017,ADULT SOCIAL CARE,PROFAD CARE AGENCY,458.96,PHY LTS 65+,HOMECARE - SPOT,2102667329
08.05.2017,ADULT SOCIAL CARE,CARE DIRECT UK LTD,462.03,PHY LTS 65+,HOMECARE - SPOT,2102667078
08.05.2017,ADULT SOCIAL CARE,CARE DIRECT UK LTD,465.41,PHY LTS 65+,HOMECARE - SPOT,2102666979
08.05.2017,ADULT SOCIAL CARE,CARE DIRECT UK LTD,472.15,PHY LTS 65+,HOMECARE - SPOT,2102666957
08.05.2017,ADULT SOCIAL CARE,HUMBLE HEALTH CARE LTD,472.52,PHY LTS 65+,HOMECARE - SPOT,2102667134
08.05.2017,ADULT SOCIAL CARE,CARE DIRECT UK LTD,485.64,PHY LTS 65+,HOMECARE - SPOT,2102667046
08.05.2017,ADULT SOCIAL CARE,YOUTH GRACES (UK) LTD,492.46,PHY LTS 65+,HOMECARE - SPOT,2102667175
08.05.2017,ADULT SOCIAL CARE,YOUTH GRACES (UK) LTD,512.83,PHY LTS 65+,HOMECARE - SPOT,2102667195
08.05.2017,ADULT SOCIAL CARE,LONDON CARE LTD,518.58,PHY LTS 65+,HOMECARE - SPOT,2102666914
08.05.2017,ADULT SOCIAL CARE,CARE DIRECT UK LTD,519.37,PHY LTS 65+,HOMECARE - SPOT,2102667003
08.05.2017,ADULT SOCIAL CARE,CARE DIRECT UK LTD,519.37,PHY LTS 65+,HOMECARE - SPOT,2102667030
08.05.2017,ADULT SOCIAL CARE,CARE DIRECT UK LTD,519.37,PHY LTS 65+,HOMECARE - SPOT,2102667053
08.05.2017,ADULT SOCIAL CARE,LIFECARE CONSULTING LTD,519.37,PHY LTS 65+,HOMECARE - SPOT,2102667156
08.05.2017,ADULT SOCIAL CARE,PROFAD CARE AGENCY,519.56,PHY LTS 65+,HOMECARE - SPOT,2102667312
08.05.2017,ADULT SOCIAL CARE,CARE DIRECT UK LTD,607.05,PHY LTS 65+,HOMECARE - SPOT,2102667011
08.05.2017,ADULT SOCIAL CARE,LIFECARE CONSULTING LTD,613.8,PHY LTS 65+,HOMECARE - SPOT,2102667146
08.05.2017,ADULT SOCIAL CARE,YOUTH GRACES (UK) LTD,613.9,PHY LTS 65+,HOMECARE - SPOT,2102667199
08.05.2017,ADULT SOCIAL CARE,CARE DIRECT UK LTD,640.78,PHY LTS 65+,HOMECARE - SPOT,2102667023
08.05.2017,ADULT SOCIAL CARE,LIFECARE CONSULTING LTD,674.5,PHY LTS 65+,HOMECARE - SPOT,2102667122
08.05.2017,ADULT SOCIAL CARE,PROFAD CARE AGENCY,674.82,PHY LTS 65+,HOMECARE - SPOT,2102667322
08.05.2017,ADULT SOCIAL CARE,CARE DIRECT UK LTD,708.23,PHY LTS 65+,HOMECARE - SPOT,2102667033
08.05.2017,ADULT SOCIAL CARE,CARE DIRECT UK LTD,708.23,PHY LTS 65+,HOMECARE - SPOT,2102667085
08.05.2017,ADULT SOCIAL CARE,LIFECARE CONSULTING LTD,721.72,PHY LTS 65+,HOMECARE - SPOT,2102667092
08.05.2017,ADULT SOCIAL CARE,LIFECARE CONSULTING LTD,755.44,PHY LTS 65+,HOMECARE - SPOT,2102667124
08.05.2017,ADULT SOCIAL CARE,YOUTH GRACES (UK) LTD,775.82,PHY LTS 65+,HOMECARE - SPOT,2102667256
08.05.2017,ADULT SOCIAL CARE,PROFAD CARE AGENCY,880.69,PHY LTS 65+,HOMECARE - SPOT,2102667326
08.05.2017,ADULT SOCIAL CARE,LONDON CARE LTD,987.88,PHY LTS 65+,HOMECARE - SPOT,2102666824
08.05.2017,ADULT SOCIAL CARE,HUMBLE HEALTH CARE LTD,"1,748.25",PHY LTS 65+,HOMECARE - SPOT,2102667140
08.05.2017,ADULT SOCIAL CARE,HUMBLE HEALTH CARE LTD,"2,403.00",PHY LTS 65+,HOMECARE - SPOT,2102667133
08.05.2017,ADULT SOCIAL CARE,PROFAD CARE AGENCY,"3,089.48",PHY LTS 65+,HOMECARE - SPOT,2102667331
08.05.2017,ADULT SOCIAL CARE,PROFAD CARE AGENCY,944.72,PHY STS 65+,HOMECARE - IC,2102667325
08.05.2017,ADULT SOCIAL CARE,DR MUTHUKUMAR KANNABIRAN,705.05,SAFEGUARDING TEAM,OTHER CONTRACTORS,5902249322
08.05.2017,ADULT SOCIAL CARE,JACQUELINE FEARON LTD,"1,116.20",SAFEGUARDING TEAM,OTHER CONTRACTORS,5902249310
08.05.2017,ADULT SOCIAL CARE,PROFAD CARE AGENCY,347.51,SEN LTS 65+,HOMECARE - SPOT,2102667314
08.05.2017,ADULT SOCIAL CARE,LONDON CARE LTD,329.2,SOCIAL ISOLATION,HOMECARE - C&V,2102666754
08.05.2017,ADULT SOCIAL CARE,LONDON CARE LTD,345.8,SOCIAL ISOLATION,HOMECARE - C&V,2102666838
08.05.2017,ADULT SOCIAL CARE,LONDON CARE LTD,427.96,SOCIAL ISOLATION,HOMECARE - C&V,2102666872
08.05.2017,ADULT SOCIAL CARE,LONDON CARE LTD,444.56,SOCIAL ISOLATION,HOMECARE - C&V,2102666777
08.05.2017,ADULT SOCIAL CARE,LONDON CARE LTD,786.1,SOCIAL ISOLATION,HOMECARE - C&V,2102666758
08.05.2017,ADULT SOCIAL CARE,LONDON CARE LTD,921.9,SOCIAL ISOLATION,HOMECARE - C&V,2102666727
08.05.2017,ADULT SOCIAL CARE,LONDON CARE LTD,"1,053.72",SOCIAL ISOLATION,HOMECARE - C&V,2102666875
08.05.2017,ADULT SOCIAL CARE,LONDON CARE LTD,"2,304.96",SOCIAL ISOLATION,HOMECARE - C&V,2102666918
08.05.2017,ADULT SOCIAL CARE,CARE DIRECT UK LTD,263.06,SOCIAL ISOLATION,HOMECARE - SPOT,2102666934
08.05.2017,ADULT SOCIAL CARE,PROFAD CARE AGENCY,296.92,SOCIAL ISOLATION,HOMECARE - SPOT,2102667319
08.05.2017,ADULT SOCIAL CARE,HUMBLE HEALTH CARE LTD,"1,316.27",SOCIAL ISOLATION,HOMECARE - SPOT,2102667150
08.05.2017,ADULT SOCIAL CARE,PROFAD CARE AGENCY,"1,032.32",SUB LTS 18-64,HOMECARE - SPOT,2102667315
08.05.2017,ADULT SOCIAL CARE,PROFAD CARE AGENCY,"1,180.47",SUB LTS 65+,HOMECARE - SPOT,2102667318
08.05.2017,ADULT SOCIAL CARE,CONTACT PROFESSIONALS,465,TRANSITION 14YRS TO 18YRS,SECTION 17 PAYMENTS TO AGENCIES/CARERS,2102666722
08.05.2017,ADULT SOCIAL CARE,CONTACT PROFESSIONALS,755,TRANSITION 14YRS TO 18YRS,SECTION 17 PAYMENTS TO AGENCIES/CARERS,2102666695
08.05.2017,ASSET MANAGEMENT,OCO LIMITED,"130,310.50",ENG CONTRACTS (NORTH),HEATING - INDIVIDUAL SYSTEM SERVICE,5902248468
08.05.2017,ASSET MANAGEMENT,T BROWN & SONS (HEATING) LTD,"1,901.38",ENG CONTRACTS (NORTH),PLANNED MAINTENANCE,5902249208
08.05.2017,ASSET MANAGEMENT,T BROWN & SONS (HEATING) LTD,"4,000.00",ENG CONTRACTS (NORTH),PLANNED MAINTENANCE,5902249205
08.05.2017,"BOROUGH, BANKSIDE & WALWORTH COMMUNITY COUNCIL",DECIMA STREET TENANTS & RESIDENTS ASSOCIATION,"1,000.00",10TH ANNUAL DECIMA STREET TRA FESTIVAL & FUN DAY,GRANT,CHEQUE PAYMENT
08.05.2017,CENTRAL FUNCTIONS,VPS (UK) LTD,"18,432.00",AYLESBURY,SECURITY SERVICES,5902249294
08.05.2017,CENTRAL FUNCTIONS,DISPLAY FUTURE LTD,"3,099.26",HOME OWNERSHIP INCOME,HOUSING RESIDENTIAL RENTS,5902248345
08.05.2017,CHIEF EXECUTIVE,RED R DESIGN,650,CAPITAL PS (REGEN),CONSTRUCTION FEES  - EXTERNAL,5902249253
08.05.2017,CHILDREN'S SERVICES,CAMBRIDGE HOUSE & TALBOT,297.5,ADMISSIONS,PRINTING,5902249187
08.05.2017,CHILDREN'S SERVICES,CAMBRIDGE HOUSE & TALBOT,297.5,ADMISSIONS,PRINTING,5902249187
08.05.2017,CHILDREN'S SERVICES,PARENTS AND CHILDREN TOGETHER,520.5,ADOPTION PLACEMENTS & INTER AGENCY,EXTERNAL AGENCIES AND BODIES,5902249282
08.05.2017,CHILDREN'S SERVICES,REPREZENT LTD,"3,000.00",ADULT SKILLS BUDGET 15/16,GRANTS,5902249339
08.05.2017,CHILDREN'S SERVICES,CITYGLEN LTD,975,AIS - IHT,SECTION 17 PAYMENTS TO AGENCIES/CARERS,5902249226
08.05.2017,CHILDREN'S SERVICES,TREASURE HOUSE (LONDON) CIC,840,ALTERNATIVE PROVISION,EXTERNAL AGENCIES AND BODIES,5902249248
08.05.2017,CHILDREN'S SERVICES,FRESHSTART IN EDUCATION,"1,836.00",ALTERNATIVE PROVISION,EXTERNAL AGENCIES AND BODIES,5902249237
08.05.2017,CHILDREN'S SERVICES,FRESHSTART IN EDUCATION,"2,028.00",ALTERNATIVE PROVISION,EXTERNAL AGENCIES AND BODIES,5902249234
08.05.2017,CHILDREN'S SERVICES,FRESHSTART IN EDUCATION,"3,120.00",ALTERNATIVE PROVISION,EXTERNAL AGENCIES AND BODIES,5902249239
08.05.2017,CHILDREN'S SERVICES,FRESHSTART IN EDUCATION,"3,198.00",ALTERNATIVE PROVISION,EXTERNAL AGENCIES AND BODIES,5902249244
08.05.2017,CHILDREN'S SERVICES,WRIXONCARE SEVICES,549.25,CARE GRPS  4 TO 6,OTHER PAYMENTS FOR CLIENTS,5902249295
08.05.2017,CHILDREN'S SERVICES,WRIXONCARE SEVICES,"1,567.50",CARE GRPS  4 TO 6,OTHER PAYMENTS FOR CLIENTS,5902249298
08.05.2017,CHILDREN'S SERVICES,WRIXONCARE SEVICES,"1,651.00",CARE GRPS  4 TO 6,OTHER PAYMENTS FOR CLIENTS,5902249297
08.05.2017,CHILDREN'S SERVICES,WRIXONCARE SEVICES,473,CARE PRACTICE GROUP SET C,OTHER PAYMENTS FOR CLIENTS,5902249290
08.05.2017,CHILDREN'S SERVICES,REPREZENT LTD,"21,000.00",COMMUNITY LEARNING 15/16,GRANTS,5902249337
08.05.2017,CHILDREN'S SERVICES,REDACTED PERSONAL DATA,300,DISABILITY & HIV,ADDITIONAL PAYMENTS TO AGENCIES/CARERS,2102667297
08.05.2017,CHILDREN'S SERVICES,REDACTED PERSONAL DATA,300,DISABILITY & HIV,ADDITIONAL PAYMENTS TO AGENCIES/CARERS,2102667294
08.05.2017,CHILDREN'S SERVICES,REDACTED PERSONAL DATA,690.93,DISABILITY & HIV,ADDITIONAL PAYMENTS TO AGENCIES/CARERS,2102667300
08.05.2017,CHILDREN'S SERVICES,REDACTED PERSONAL DATA,-292.41,DISABILITY & HIV,PAYMENTS TO CARERS,2102667299
08.05.2017,CHILDREN'S SERVICES,REDACTED PERSONAL DATA,-272.29,DISABILITY & HIV,PAYMENTS TO CARERS,2102667292
08.05.2017,CHILDREN'S SERVICES,REDACTED PERSONAL DATA,254.4,DISABILITY & HIV,PAYMENTS TO CARERS,2102667295
08.05.2017,CHILDREN'S SERVICES,REDACTED PERSONAL DATA,327.71,DISABILITY & HIV,PAYMENTS TO CARERS,2102667303
08.05.2017,CHILDREN'S SERVICES,REDACTED PERSONAL DATA,362.19,DISABILITY & HIV,PAYMENTS TO CARERS,2102667291
08.05.2017,CHILDREN'S SERVICES,REDACTED PERSONAL DATA,773.68,DISABILITY & HIV,PAYMENTS TO CARERS,2102667287
08.05.2017,CHILDREN'S SERVICES,REDACTED PERSONAL DATA,"1,131.52",DISABILITY & HIV,PAYMENTS TO CARERS,2102667306
08.05.2017,CHILDREN'S SERVICES,REDACTED PERSONAL DATA,"1,219.56",DISABILITY & HIV,PAYMENTS TO CARERS,2102667288
08.05.2017,CHILDREN'S SERVICES,REDACTED PERSONAL DATA,"3,479.00",DISABILITY & HIV,PAYMENTS TO CARERS,2102667308
08.05.2017,CHILDREN'S SERVICES,B SQUARED SEN PUBLISHING LTD,300,EDUCATIONAL PSYCHOLOGY - SEND,TRAINING,5902249191
08.05.2017,CHILDREN'S SERVICES,SIRON LTD,"-3,298.00",FAMILY ASSESSMENTS,RESIDENTIAL CARE,5902249181
08.05.2017,CHILDREN'S SERVICES,CHILDREN AND FAMILIES ACROSS BORDERS,"2,500.00",FAMILY ASSESSMENTS,RESIDENTIAL CARE,5902249235
08.05.2017,CHILDREN'S SERVICES,SIRON LTD,"3,298.00",FAMILY ASSESSMENTS,RESIDENTIAL CARE,5902249180
08.05.2017,CHILDREN'S SERVICES,SIRON LTD,"3,298.00",FAMILY ASSESSMENTS,RESIDENTIAL CARE,5902249230
08.05.2017,CHILDREN'S SERVICES,PLAY AND LEARN CHILD MINDING,"3,601.65",NURSURERY EDUCATION GRANT-3 Y.O.,GRANTS,2102667353
08.05.2017,CHILDREN'S SERVICES,CHUBB FIRE & SECURITY LTD,887.15,PARENTING TEAM,FIRE ALARMS & EMERGENCY LIGHTING,5902249257
08.05.2017,CHILDREN'S SERVICES,CARE O LINE,500.93,S & FAM SUPP - PRAC GRP E SET 26-28,OTHER PAYMENTS FOR CLIENTS,5902249250
08.05.2017,CHILDREN'S SERVICES,CITYGLEN LTD,450,S24 CLA,EXTERNAL AGENCIES AND BODIES,5902249300
08.05.2017,CHILDREN'S SERVICES,CITYGLEN LTD,507,S24 CLA,EXTERNAL AGENCIES AND BODIES,5902249304
08.05.2017,CHILDREN'S SERVICES,YOUNG FUTURES,607.75,S24 CLA,OTHER PAYMENTS FOR CLIENTS,5902248932
08.05.2017,CHILDREN'S SERVICES,CONTACT PROFESSIONALS,273.5,SPECIALIST CARE,SECTION 17 PAYMENTS TO AGENCIES/CARERS,2102666714
08.05.2017,CHILDREN'S SERVICES,CONTACT PROFESSIONALS,285,SPECIALIST CARE,SECTION 17 PAYMENTS TO AGENCIES/CARERS,2102666682
08.05.2017,CHILDREN'S SERVICES,NESTOR PRIMECARE SERVICES LTD,294.4,SPECIALIST CARE,SECTION 17 PAYMENTS TO AGENCIES/CARERS,5902249289
08.05.2017,CHILDREN'S SERVICES,CONTACT PROFESSIONALS,294.5,SPECIALIST CARE,SECTION 17 PAYMENTS TO AGENCIES/CARERS,2102666685
08.05.2017,CHILDREN'S SERVICES,CONTACT PROFESSIONALS,304,SPECIALIST CARE,SECTION 17 PAYMENTS TO AGENCIES/CARERS,2102666673
08.05.2017,CHILDREN'S SERVICES,CONTACT PROFESSIONALS,304,SPECIALIST CARE,SECTION 17 PAYMENTS TO AGENCIES/CARERS,2102666700
08.05.2017,CHILDREN'S SERVICES,CONTACT PROFESSIONALS,323,SPECIALIST CARE,SECTION 17 PAYMENTS TO AGENCIES/CARERS,2102666672
08.05.2017,CHILDREN'S SERVICES,CONTACT PROFESSIONALS,323,SPECIALIST CARE,SECTION 17 PAYMENTS TO AGENCIES/CARERS,2102666708
08.05.2017,CHILDREN'S SERVICES,CONTACT PROFESSIONALS,342,SPECIALIST CARE,SECTION 17 PAYMENTS TO AGENCIES/CARERS,2102666690
08.05.2017,CHILDREN'S SERVICES,CONTACT PROFESSIONALS,342,SPECIALIST CARE,SECTION 17 PAYMENTS TO AGENCIES/CARERS,2102666723
08.05.2017,CHILDREN'S SERVICES,CONTACT PROFESSIONALS,361,SPECIALIST CARE,SECTION 17 PAYMENTS TO AGENCIES/CARERS,2102666675
08.05.2017,CHILDREN'S SERVICES,CONTACT PROFESSIONALS,418,SPECIALIST CARE,SECTION 17 PAYMENTS TO AGENCIES/CARERS,2102666698
08.05.2017,CHILDREN'S SERVICES,CONTACT PROFESSIONALS,418,SPECIALIST CARE,SECTION 17 PAYMENTS TO AGENCIES/CARERS,2102666715
08.05.2017,CHILDREN'S SERVICES,CONTACT PROFESSIONALS,684,SPECIALIST CARE,SECTION 17 PAYMENTS TO AGENCIES/CARERS,2102666704
08.05.2017,CHILDREN'S SERVICES,LESOCO,"29,091.00",YPLA 16 - 18 PROVIDERS,"SCHOOLS CAPITATION, STANDARDS FUND",2102665269
08.05.2017,COMMUNITIES,LIVING ACCOMODATION LTD,"1,224.00",NO RECOURSE TO PUBLIC FUNDS,ACCOMMODATION CHARGES,5902249261
08.05.2017,COMMUNITIES,LIVING ACCOMODATION LTD,"1,350.00",NO RECOURSE TO PUBLIC FUNDS,ACCOMMODATION CHARGES,5902249251
08.05.2017,COMMUNITIES,LIVING ACCOMODATION LTD,"1,350.00",NO RECOURSE TO PUBLIC FUNDS,ACCOMMODATION CHARGES,5902249255
08.05.2017,COMMUNITIES,LIVING ACCOMODATION LTD,"1,350.00",NO RECOURSE TO PUBLIC FUNDS,ACCOMMODATION CHARGES,5902249256
08.05.2017,COMMUNITIES,LETTING INTERNATIONAL LTD,"1,470.00",NO RECOURSE TO PUBLIC FUNDS,ACCOMMODATION CHARGES,5902248750
08.05.2017,COMMUNITIES,LIVING ACCOMODATION LTD,"1,530.00",NO RECOURSE TO PUBLIC FUNDS,ACCOMMODATION CHARGES,5902249254
08.05.2017,COMMUNITIES,GALAXY LETTINGS LTD,"11,265.00",NO RECOURSE TO PUBLIC FUNDS,ACCOMMODATION CHARGES,5902249209
08.05.2017,COMMUNITIES,CROMWOOD HOUSING,"12,311.66",NO RECOURSE TO PUBLIC FUNDS,ACCOMMODATION CHARGES,5902249320
08.05.2017,COMMUNITIES,CROMWOOD HOUSING,"16,533.33",NO RECOURSE TO PUBLIC FUNDS,ACCOMMODATION CHARGES,5902249317
08.05.2017,COMMUNITIES,HOMELY HOUSING LTD,"28,110.39",NO RECOURSE TO PUBLIC FUNDS,ACCOMMODATION CHARGES,5902249252
08.05.2017,COMMUNITIES,HOMELY HOUSING LTD,"43,972.30",NO RECOURSE TO PUBLIC FUNDS,ACCOMMODATION CHARGES,5902249242
08.05.2017,CUSTOMER EXPERIENCE HGF,ACCESS INDEPENDENT LTD,"1,156.25",BLUE BADGES,PROFESSIONAL FEES,5902249067
08.05.2017,CUSTOMER EXPERIENCE HGF,KKB PROPERTY & FINANCIAL SERVICES,"3,000.00",HOMELESS PROJECTS,GRANTS,5902249344
08.05.2017,CUSTOMER EXPERIENCE HGF,CROWN HOUSING LTD,720,NIGHTLY TA (NSC),EXTERNAL AGENCIES AND BODIES,5902249266
08.05.2017,CUSTOMER EXPERIENCE HGF,CROWN HOUSING LTD,"2,240.00",NIGHTLY TA (NSC),EXTERNAL AGENCIES AND BODIES,5902249267
08.05.2017,CUSTOMER EXPERIENCE HGF,FINEFAIR LTD,"8,198.00",NIGHTLY TA (NSC),EXTERNAL AGENCIES AND BODIES,5902249231
08.05.2017,CUSTOMER EXPERIENCE HGF,FINEFAIR LTD,"10,292.00",NIGHTLY TA (NSC),EXTERNAL AGENCIES AND BODIES,5902249262
08.05.2017,CUSTOMER EXPERIENCE HGF,WEB-LABS LTD,750,PROJECTS,SOFTWARE,5902249199
08.05.2017,DULWICH COMMUNITY COUNCIL,ARTS AGAINST ABUSE,"1,180.00",VICTORY OVER VIOLENCE � PROMOTING SAFE RELATIONSHIPS,GRANT,CHEQUE PAYMENT
08.05.2017,ENVIRONMENT AND LEISURE,THE CONSERVATION VOLUNTEERS,-900,CAPITAL PS (LEISURE),CAPITAL GRANTS,5902249024
08.05.2017,ENVIRONMENT AND LEISURE,THE CONSERVATION VOLUNTEERS,"6,623.95",CAPITAL PS (LEISURE),CAPITAL GRANTS,5902249229
08.05.2017,ENVIRONMENT DIRECTORATE,LEX AUTOLEASE,661.98,CAR LEASING CTRL A/C,VEHICLE LEASING CHARGES,5902249341
08.05.2017,ENVIRONMENT DIRECTORATE,AUTOMOTIVE LEASING,712.42,CAR LEASING CTRL A/C,VEHICLE LEASING CHARGES,5902249333
08.05.2017,ENVIRONMENT DIRECTORATE,AUTOMOTIVE LEASING,725.88,CAR LEASING CTRL A/C,VEHICLE LEASING CHARGES,5902249333
08.05.2017,ENVIRONMENT DIRECTORATE,AUTOMOTIVE LEASING,"1,532.98",CAR LEASING CTRL A/C,VEHICLE LEASING CHARGES,5902249283
08.05.2017,ENVIRONMENT DIRECTORATE,AUTOMOTIVE LEASING,"1,613.09",CAR LEASING CTRL A/C,VEHICLE LEASING CHARGES,5902249283
08.05.2017,ENVIRONMENT DIRECTORATE,HITACHI CAPITAL VEHICLE SOLN LTD,"4,381.14",CAR LEASING CTRL A/C,VEHICLE LEASING CHARGES,5902249340
08.05.2017,ENVIRONMENT DIRECTORATE,HITACHI CAPITAL VEHICLE SOLN LTD,"4,397.64",CAR LEASING CTRL A/C,VEHICLE LEASING CHARGES,5902249340
08.05.2017,ENVIRONMENT DIRECTORATE,DAWSON RENTALS SWEEPERS,"2,389.89",COMMERCIAL VEH CTRL A/C,HIRED VEHICLES,5902249194
08.05.2017,ENVIRONMENT DIRECTORATE,DAWSON RENTALS SWEEPERS,"2,389.89",COMMERCIAL VEH CTRL A/C,HIRED VEHICLES,5902249215
08.05.2017,ENVIRONMENT DIRECTORATE,DRAIN SCAN,280,GULLY MAINT NON PINC RD,OTHER CONTRACTORS,5902249331
08.05.2017,ENVIRONMENT DIRECTORATE,DRAIN SCAN,280,GULLY MAINT NON PINC RD,OTHER CONTRACTORS,5902249332
08.05.2017,ENVIRONMENT DIRECTORATE,DRAIN SCAN,280,GULLY MAINT NON PINC RD,OTHER CONTRACTORS,5902249334
08.05.2017,ENVIRONMENT DIRECTORATE,SOUTH EAST LONDON COMDHEAT & POWER LTD,320,MANAGEMENT TEAM,WASTE DISPOSAL CONTRACT,5902249186
08.05.2017,ENVIRONMENT DIRECTORATE,CASTLE WATER LTD,702.82,MANAGEMENT TEAM,WATER,5902249264
08.05.2017,ENVIRONMENT DIRECTORATE,COMPLETE TREE CARE LTD,"1,003.78",NON HOUSING GROUNDS,AGENCY STAFF,5902249302
08.05.2017,ENVIRONMENT DIRECTORATE,F R JONES & SON LTD,"1,041.89",NON HOUSING GROUNDS,EQUIPMENT PURCHASE & REPAIR,5902249292
08.05.2017,ENVIRONMENT DIRECTORATE,APCOA PARKING (UK) LTD,"298,094.43",PARKING OVERHEADS,OTHER CONTRACTORS,5902249195
08.05.2017,F & C S EXCLUDING CORPORATE BUDGETS,DSI BILLING SERVICES LTD,"4,234.64",ADMINISTRATIVE SUPPORT,POSTAGES,5902249285
08.05.2017,F & C S EXCLUDING CORPORATE BUDGETS,NORTHGATE PUBLIC SERVICES (UK) LTD,"9,166.67",ADMINISTRATIVE SUPPORT,PRINTING,5902249280
08.05.2017,F & C S EXCLUDING CORPORATE BUDGETS,RSM RISK ASSURANCE SERVICES LLP,"11,310.00",FINANCE DIRECTOR,PROFESSIONAL FEES,5902249246
08.05.2017,F & C S EXCLUDING CORPORATE BUDGETS,RSM RISK ASSURANCE SERVICES LLP,"21,261.00",FINANCE DIRECTOR,PROFESSIONAL FEES,5902249241
08.05.2017,F & C S EXCLUDING CORPORATE BUDGETS,BDO LLP,"13,401.00",INTERNAL AUDIT CONTRACTS,PAYMENTS FOR FINANCIAL SERVICES,5902249101
08.05.2017,F & C S EXCLUDING CORPORATE BUDGETS,LONDON BRIDGE BUSINESS IMPROVEMENT,"249,039.30",TEAM LONDON BRIDGE,EXTERNAL AGENCIES AND BODIES,5902249200
08.05.2017,HOUSING,PENNINGTON CHOICE LTD,"2,002.65",PENNINGTON,MANUAL CREDITORS,5902249232
08.05.2017,HOUSING HRA,QUALITY SOLICITORS MARTIN TOLHURST,"30,000.00",CAPITAL PS (HRA),CAPITAL GRANTS,2102667348
08.05.2017,HOUSING HRA,PLOWMAN CRAVEN LIMITED,"3,700.00",CAPITAL PS (HRA),CONSTRUCTION FEES  - EXTERNAL,5902249249
08.05.2017,HOUSING HRA,LEVITT BERNSTEIN ASSOCIATION LIMITED,"11,622.02",CAPITAL PS (HRA),CONSTRUCTION FEES  - EXTERNAL,5902249260
08.05.2017,HOUSING HRA,HAWORTH TOMPKINS LTD,"67,044.47",CAPITAL PS (HRA),CONSTRUCTION FEES  - EXTERNAL,5902249211
08.05.2017,HOUSING HRA,WESTCO TRADING LTD,"1,700.00",CAPITAL PS (REGEN),CONSTRUCTION MAIN CONTRACT,5902248789
08.05.2017,LEISURE DIRECTORATE,QUADRON SERVICES LIMITED,920.4,BMX TRACK BURGESS PARK,OVERTIME & ADDITIONAL PAYMENTS,5902249271
08.05.2017,LEISURE DIRECTORATE,QUADRON SERVICES LIMITED,"5,700.34",BURGESS PARK COMMUNITY SPORTS CENTRE,OVERTIME & ADDITIONAL PAYMENTS,5902249233
08.05.2017,LEISURE DIRECTORATE,STANBURY BUILDING SERVICES LTD,495,CEMETERIES,EQUIPMENT PURCHASE & REPAIR,2102667341
08.05.2017,LEISURE DIRECTORATE,STANBURY BUILDING SERVICES LTD,"1,650.00",CEMETERIES,EQUIPMENT PURCHASE & REPAIR,2102667345
08.05.2017,LEISURE DIRECTORATE,STANBURY BUILDING SERVICES LTD,"1,695.00",CEMETERIES,EQUIPMENT PURCHASE & REPAIR,2102667347
08.05.2017,LEISURE DIRECTORATE,STANBURY BUILDING SERVICES LTD,"3,750.00",CEMETERIES,EQUIPMENT PURCHASE & REPAIR,2102667346
08.05.2017,LEISURE DIRECTORATE,STANBURY BUILDING SERVICES LTD,545,CEMETERIES,OTHER R&M,5902249072
08.05.2017,LEISURE DIRECTORATE,STANBURY BUILDING SERVICES LTD,395,CREMATORIUM,EQUIPMENT PURCHASE & REPAIR,2102667343
08.05.2017,LEISURE DIRECTORATE,STANBURY BUILDING SERVICES LTD,950,CREMATORIUM,EQUIPMENT PURCHASE & REPAIR,2102667344
08.05.2017,LEISURE DIRECTORATE,STANBURY BUILDING SERVICES LTD,"16,250.00",CREMATORIUM,EQUIPMENT PURCHASE & REPAIR,2102667339
08.05.2017,LEISURE DIRECTORATE,STANBURY BUILDING SERVICES LTD,"16,250.00",CREMATORIUM,EQUIPMENT PURCHASE & REPAIR,2102667340
08.05.2017,LEISURE DIRECTORATE,FUSION LIFESTYLE,"4,437.00",FACILITIES MAINTENANCE,OTHER CONTRACTORS,5902249293
08.05.2017,LEISURE DIRECTORATE,SPORTS AND LEISURE MANAGEMENT LTD,608.25,FACILITIES MANAGEMENT,MARKETING & PUBLICITY SERVICES,5902249328
08.05.2017,MODERNISATION HGF,DAVID MILES & PARTNERS,"2,500.00",160 TOOLEY ST.,BUILDING R&M,5902249316
08.05.2017,MODERNISATION HGF,SODEXHO PASS LTD,811.17,CHILDCARE VOUCHERS,OTHER EMPLOYEE EXPENSES,5902249309
08.05.2017,MODERNISATION HGF,SODEXHO PASS LTD,"27,039.00",CHILDCARE VOUCHERS,OTHER EMPLOYEE EXPENSES,5902249309
08.05.2017,MODERNISATION HGF,WYNNE BIER CONSULTANCY LTD,"1,025.00",CORPORATE TRAINING BUDGETS,TRAINING,5902249224
08.05.2017,MODERNISATION HGF,INTERSERVE (FACILITIES MANAGEMENT),"13,186.02",FM SERVICES BY INTERSERVE,BUILDING R&M,5902249326
08.05.2017,MODERNISATION HGF,INTERSERVE (FACILITIES MANAGEMENT),"424,802.05",FM SERVICES BY INTERSERVE,INTEGRATED FACILITIES MANAGEMENT CONTRACT,5902249329
08.05.2017,MODERNISATION HGF,ROSEMARY POTTS,950,SUPPORT SERVICES,CONSULTANTS SERVICES,5902248820
08.05.2017,MODERNISATION HGF,ROSEMARY POTTS,"1,075.00",SUPPORT SERVICES,CONSULTANTS SERVICES,5902248820
08.05.2017,MODERNISATION HGF,VIRGIN MEDIA,254.85,TECHNOLOGY,DATA COMMUNICATIONS,5902249185
08.05.2017,MODERNISATION HGF,VIRGIN MEDIA,487.45,TECHNOLOGY,DATA COMMUNICATIONS,5902249338
08.05.2017,MODERNISATION HGF,VIRGIN MEDIA,495.84,TECHNOLOGY,DATA COMMUNICATIONS,5902249343
08.05.2017,MODERNISATION HGF,VIRGIN MEDIA,"7,531.87",TECHNOLOGY,DATA COMMUNICATIONS,5902249323
08.05.2017,MODERNISATION HGF,VIRGIN MEDIA,"8,552.22",TECHNOLOGY,DATA COMMUNICATIONS,5902249342
08.05.2017,MODERNISATION HGF,VIRGIN MEDIA,"17,598.13",TECHNOLOGY,DATA COMMUNICATIONS,5902249318
08.05.2017,MODERNISATION HGF,VIRGIN MEDIA,"19,840.94",TECHNOLOGY,DATA COMMUNICATIONS,5902249315
08.05.2017,PLANNING AND TRANSPORT,LUTON BOROUGH COUNCIL,"1,085.83",BUILDING CONTROL,TRAINING,5902249190
08.05.2017,REGENERATION,SIEMENS FINANCIAL SERVICES LIMITED,335,LBS SOJOURNER TRUTH COMMUNITY CENTRE,OP LEASE/HIRE CHARGES:PLANT/EQUIP/FURNIT,5902249325
08.05.2017,RESIDENT SERVICES,LETTERBOX4YOU,"3,876.12",SHELTERED WARDENS,OTHER F&F,5902249321
08.05.2017,RESIDENT SERVICES,KINDLY PROPERTIES,"1,260.00",TA PLACEMENTS,EXTERNAL AGENCIES AND BODIES,5902249197
08.05.2017,RESIDENT SERVICES,ZFA LTD,"1,792.00",TA PLACEMENTS,EXTERNAL AGENCIES AND BODIES,5902249273
08.05.2017,RESIDENT SERVICES,ZFA LTD,"1,984.00",TA PLACEMENTS,EXTERNAL AGENCIES AND BODIES,5902249272
09.05.2017,ADULT SOCIAL CARE,DARETHEALTHCARE UK LTD,418.19,LD LTS 18-64,HOMECARE - SPOT,2102667539
09.05.2017,ADULT SOCIAL CARE,CHOICE SUPPORT,293.92,LD LTS 18-64,SUPPORTED LIVING,2102667369
09.05.2017,ADULT SOCIAL CARE,CHOICE SUPPORT,293.92,LD LTS 18-64,SUPPORTED LIVING,2102667385
09.05.2017,ADULT SOCIAL CARE,CHOICE SUPPORT,293.92,LD LTS 18-64,SUPPORTED LIVING,2102667387
09.05.2017,ADULT SOCIAL CARE,CHOICE SUPPORT,293.92,LD LTS 18-64,SUPPORTED LIVING,2102667390
09.05.2017,ADULT SOCIAL CARE,CHOICE SUPPORT,367.4,LD LTS 18-64,SUPPORTED LIVING,2102667366
09.05.2017,ADULT SOCIAL CARE,CHOICE SUPPORT,367.4,LD LTS 18-64,SUPPORTED LIVING,2102667391
09.05.2017,ADULT SOCIAL CARE,CHOICE SUPPORT,422.5,LD LTS 18-64,SUPPORTED LIVING,2102667373
09.05.2017,ADULT SOCIAL CARE,CHOICE SUPPORT,440.88,LD LTS 18-64,SUPPORTED LIVING,2102667376
09.05.2017,ADULT SOCIAL CARE,CHOICE SUPPORT,440.88,LD LTS 18-64,SUPPORTED LIVING,2102667382
09.05.2017,ADULT SOCIAL CARE,CHOICE SUPPORT,440.88,LD LTS 18-64,SUPPORTED LIVING,2102667394
09.05.2017,ADULT SOCIAL CARE,CHOICE SUPPORT,661.2,LD LTS 18-64,SUPPORTED LIVING,2102667388
09.05.2017,ADULT SOCIAL CARE,CHOICE SUPPORT,881.76,LD LTS 18-64,SUPPORTED LIVING,2102667377
09.05.2017,ADULT SOCIAL CARE,CHOICE SUPPORT,881.76,LD LTS 18-64,SUPPORTED LIVING,2102667380
09.05.2017,ADULT SOCIAL CARE,CHOICE SUPPORT,881.76,LD LTS 18-64,SUPPORTED LIVING,2102667381
09.05.2017,ADULT SOCIAL CARE,CHOICE SUPPORT,881.76,LD LTS 18-64,SUPPORTED LIVING,2102667383
09.05.2017,ADULT SOCIAL CARE,CHOICE SUPPORT,"1,102.20",LD LTS 18-64,SUPPORTED LIVING,2102667389
09.05.2017,ADULT SOCIAL CARE,CHOICE SUPPORT,"1,102.20",LD LTS 18-64,SUPPORTED LIVING,2102667392
09.05.2017,ADULT SOCIAL CARE,CHOICE SUPPORT,293.92,LD LTS 65+,SUPPORTED LIVING,2102667365
09.05.2017,ADULT SOCIAL CARE,YOUTH GRACES (UK) LTD,634.1,MEM LTS 65+,HOMECARE - C&V,2102667582
09.05.2017,ADULT SOCIAL CARE,YOUTH GRACES (UK) LTD,256.35,MEM LTS 65+,HOMECARE - SPOT,2102667580
09.05.2017,ADULT SOCIAL CARE,DARETHEALTHCARE UK LTD,"1,187.27",MH LTS 18-64,HOMECARE - SPOT,2102667533
09.05.2017,ADULT SOCIAL CARE,MIHOMECARE LTD,"1,395.05",MH LTS 65+,HOMECARE - C&V,2102667546
09.05.2017,ADULT SOCIAL CARE,YOUTH GRACES (UK) LTD,263.16,MH LTS 65+,HOMECARE - SPOT,2102667552
09.05.2017,ADULT SOCIAL CARE,CHUBB FIRE & SECURITY LTD,472.64,MH PREMISES COSTS,SECURITY SERVICES,5902249435
09.05.2017,ADULT SOCIAL CARE,CHUBB FIRE & SECURITY LTD,485.77,MH PREMISES COSTS,SECURITY SERVICES,5902249434
09.05.2017,ADULT SOCIAL CARE,YOUTH GRACES (UK) LTD,320.45,PHY LTS 18-64,HOMECARE - C&V,2102667584
09.05.2017,ADULT SOCIAL CARE,YOUTH GRACES (UK) LTD,330.52,PHY LTS 18-64,HOMECARE - C&V,2102667615
09.05.2017,ADULT SOCIAL CARE,YOUTH GRACES (UK) LTD,256.35,PHY LTS 18-64,HOMECARE - SPOT,2102667624
09.05.2017,ADULT SOCIAL CARE,YOUTH GRACES (UK) LTD,394.82,PHY LTS 18-64,HOMECARE - SPOT,2102667581
09.05.2017,ADULT SOCIAL CARE,DARETHEALTHCARE UK LTD,404.7,PHY LTS 18-64,HOMECARE - SPOT,2102667523
09.05.2017,ADULT SOCIAL CARE,YOUTH GRACES (UK) LTD,969.57,PHY LTS 18-64,HOMECARE - SPOT,2102667612
09.05.2017,ADULT SOCIAL CARE,DARETHEALTHCARE UK LTD,"1,281.85",PHY LTS 18-64,HOMECARE - SPOT,2102667527
09.05.2017,ADULT SOCIAL CARE,DARETHEALTHCARE UK LTD,"1,416.60",PHY LTS 18-64,HOMECARE - SPOT,2102667531
09.05.2017,ADULT SOCIAL CARE,DARETHEALTHCARE UK LTD,"4,950.00",PHY LTS 18-64,HOMECARE - SPOT,2102667530
09.05.2017,ADULT SOCIAL CARE,DARETHEALTHCARE UK LTD,260.19,PHY LTS 65+,HOMECARE - C&V,2102667536
09.05.2017,ADULT SOCIAL CARE,MIHOMECARE LTD,408.48,PHY LTS 65+,HOMECARE - C&V,2102667545
09.05.2017,ADULT SOCIAL CARE,DARETHEALTHCARE UK LTD,499.38,PHY LTS 65+,HOMECARE - C&V,2102667524
09.05.2017,ADULT SOCIAL CARE,YOUTH GRACES (UK) LTD,543.06,PHY LTS 65+,HOMECARE - C&V,2102667585
09.05.2017,ADULT SOCIAL CARE,DARETHEALTHCARE UK LTD,809.7,PHY LTS 65+,HOMECARE - C&V,2102667538
09.05.2017,ADULT SOCIAL CARE,MIHOMECARE LTD,936.12,PHY LTS 65+,HOMECARE - C&V,2102667549
09.05.2017,ADULT SOCIAL CARE,MIHOMECARE LTD,"1,259.48",PHY LTS 65+,HOMECARE - C&V,2102667548
09.05.2017,ADULT SOCIAL CARE,MIHOMECARE LTD,"1,390.78",PHY LTS 65+,HOMECARE - C&V,2102667543
09.05.2017,ADULT SOCIAL CARE,YOUTH GRACES (UK) LTD,252.98,PHY LTS 65+,HOMECARE - SPOT,2102667606
09.05.2017,ADULT SOCIAL CARE,YOUTH GRACES (UK) LTD,344.17,PHY LTS 65+,HOMECARE - SPOT,2102667631
09.05.2017,ADULT SOCIAL CARE,DARETHEALTHCARE UK LTD,371.25,PHY LTS 65+,HOMECARE - SPOT,2102667529
09.05.2017,ADULT SOCIAL CARE,DARETHEALTHCARE UK LTD,404.7,PHY LTS 65+,HOMECARE - SPOT,2102667528
09.05.2017,ADULT SOCIAL CARE,YOUTH GRACES (UK) LTD,482.46,PHY LTS 65+,HOMECARE - SPOT,2102667607
09.05.2017,ADULT SOCIAL CARE,LAMBETH CHINESE COMMUNITY ASSOCIATION,492.25,PHY LTS 65+,HOMECARE - SPOT,2102667375
09.05.2017,ADULT SOCIAL CARE,YOUTH GRACES (UK) LTD,492.46,PHY LTS 65+,HOMECARE - SPOT,2102667553
09.05.2017,ADULT SOCIAL CARE,DARETHEALTHCARE UK LTD,506.1,PHY LTS 65+,HOMECARE - SPOT,2102667521
09.05.2017,ADULT SOCIAL CARE,DARETHEALTHCARE UK LTD,563.39,PHY LTS 65+,HOMECARE - SPOT,2102667542
09.05.2017,ADULT SOCIAL CARE,DARETHEALTHCARE UK LTD,600.75,PHY LTS 65+,HOMECARE - SPOT,2102667534
09.05.2017,ADULT SOCIAL CARE,YOUTH GRACES (UK) LTD,607.15,PHY LTS 65+,HOMECARE - SPOT,2102667618
09.05.2017,ADULT SOCIAL CARE,DARETHEALTHCARE UK LTD,694.81,PHY LTS 65+,HOMECARE - SPOT,2102667535
09.05.2017,ADULT SOCIAL CARE,YOUTH GRACES (UK) LTD,762.33,PHY LTS 65+,HOMECARE - SPOT,2102667579
09.05.2017,ADULT SOCIAL CARE,DARETHEALTHCARE UK LTD,802.93,PHY LTS 65+,HOMECARE - SPOT,2102667526
09.05.2017,ADULT SOCIAL CARE,MIHOMECARE LTD,"1,060.10",PHY LTS 65+,HOMECARE - SPOT,2102667547
09.05.2017,ADULT SOCIAL CARE,DARETHEALTHCARE UK LTD,"1,579.02",PHY LTS 65+,HOMECARE - SPOT,2102667522
09.05.2017,ADULT SOCIAL CARE,CITYGLEN LTD,"1,200.00",REVIEW TEAM,HOMECARE - SPOT,5902249376
09.05.2017,ADULT SOCIAL CARE,CITYGLEN LTD,"1,200.00",REVIEW TEAM,HOMECARE - SPOT,5902249379
09.05.2017,ADULT SOCIAL CARE,CITYGLEN LTD,"1,240.00",REVIEW TEAM,HOMECARE - SPOT,5902249395
09.05.2017,CHILDREN AND ADULT,MORGAN SINDALL PLC,"442,885.03",CAPITAL PS (EDUCATION),CONST'N MAIN CONTRACT - NON CERTIFICATED,2102667667
09.05.2017,CHILDREN AND ADULT,MORGAN SINDALL PLC,"521,224.65",CAPITAL PS (EDUCATION),CONST'N MAIN CONTRACT - NON CERTIFICATED,2102667666
09.05.2017,CHILDREN AND ADULT,ST MICHAELS CATHOLIC COLLEGE,"480,000.00",CAPITAL PS (EDUCATION),CONSTRUCTION FEES,5902249447
09.05.2017,CHILDREN AND ADULT,MORGAN SINDALL PLC,"266,648.76",CAPITAL PS (EDUCATION),CONSTRUCTION MAIN CONTRACT -CERTIFICATED,2102667670
09.05.2017,CHILDREN AND ADULT,MORGAN SINDALL PLC,"343,051.04",CAPITAL PS (EDUCATION),CONSTRUCTION MAIN CONTRACT -CERTIFICATED,2102667669
09.05.2017,CHILDREN AND ADULT,GALLIFORD TRY LTD,"519,837.15",CAPITAL PS (EDUCATION),CONSTRUCTION MAIN CONTRACT -CERTIFICATED,2102667675
09.05.2017,CHILDREN AND ADULT,MORGAN SINDALL PLC,"645,351.81",CAPITAL PS (EDUCATION),CONSTRUCTION MAIN CONTRACT -CERTIFICATED,2102667671
09.05.2017,CHILDREN AND ADULT,MORGAN SINDALL PLC,"1,338,213.85",CAPITAL PS (EDUCATION),CONSTRUCTION MAIN CONTRACT -CERTIFICATED,2102667668
09.05.2017,CHILDREN AND ADULT,NUMBER 10 INTERIM LTD,"2,100.00",CAPITAL PS (STRAT SERV),ICT ACQUISITION FEES,5902249488
09.05.2017,CHILDREN'S SERVICES,THAMES REACH EMPOLYMENT ACADEMY,300,ADOPTION PLACEMENTS & INTER AGENCY,EXTERNAL AGENCIES AND BODIES,5902249350
09.05.2017,CHILDREN'S SERVICES,THAMES REACH EMPOLYMENT ACADEMY,380,ADOPTION PLACEMENTS & INTER AGENCY,EXTERNAL AGENCIES AND BODIES,5902249354
09.05.2017,CHILDREN'S SERVICES,THAMES REACH EMPOLYMENT ACADEMY,720,ADOPTION PLACEMENTS & INTER AGENCY,EXTERNAL AGENCIES AND BODIES,5902249352
09.05.2017,CHILDREN'S SERVICES,CARAVELLO CATERING,262.5,ADOPTION REFORM GRANT (PART B),REFRESHMENTS FOR MEETINGS,5902249348
09.05.2017,CHILDREN'S SERVICES,CHILDREN OF COLOUR,-314.29,AGENCY FOSTERING,EXTERNAL AGENCIES AND BODIES,2102667510
09.05.2017,CHILDREN'S SERVICES,NATIONAL FOSTERING AGENCY,339.72,AGENCY FOSTERING,EXTERNAL AGENCIES AND BODIES,2102667478
09.05.2017,CHILDREN'S SERVICES,NATIONAL FOSTERING AGENCY,457.12,AGENCY FOSTERING,EXTERNAL AGENCIES AND BODIES,2102667502
09.05.2017,CHILDREN'S SERVICES,SWIIS FOSTER CARE LTD,697.97,AGENCY FOSTERING,EXTERNAL AGENCIES AND BODIES,2102667509
09.05.2017,CHILDREN'S SERVICES,NATIONAL FOSTERING AGENCY,"1,028.52",AGENCY FOSTERING,EXTERNAL AGENCIES AND BODIES,2102667495
09.05.2017,CHILDREN'S SERVICES,NATIONAL FOSTERING AGENCY,"1,189.02",AGENCY FOSTERING,EXTERNAL AGENCIES AND BODIES,2102667487
09.05.2017,CHILDREN'S SERVICES,NATIONAL FOSTERING AGENCY,"1,421.40",AGENCY FOSTERING,EXTERNAL AGENCIES AND BODIES,2102667481
09.05.2017,CHILDREN'S SERVICES,NATIONAL FOSTERING AGENCY,"1,942.93",AGENCY FOSTERING,EXTERNAL AGENCIES AND BODIES,2102667477
09.05.2017,CHILDREN'S SERVICES,NATIONAL FOSTERING AGENCY,"2,030.91",AGENCY FOSTERING,EXTERNAL AGENCIES AND BODIES,2102667469
09.05.2017,CHILDREN'S SERVICES,CROHAM SERVICES FOR CHILDREN,"2,796.08",AGENCY FOSTERING,EXTERNAL AGENCIES AND BODIES,2102667488
09.05.2017,CHILDREN'S SERVICES,CROHAM SERVICES FOR CHILDREN,"2,796.08",AGENCY FOSTERING,EXTERNAL AGENCIES AND BODIES,2102667503
09.05.2017,CHILDREN'S SERVICES,COMPASS FOSTERING,"3,167.10",AGENCY FOSTERING,EXTERNAL AGENCIES AND BODIES,2102667468
09.05.2017,CHILDREN'S SERVICES,FAMILY FOSTERING LTD,"3,437.40",AGENCY FOSTERING,EXTERNAL AGENCIES AND BODIES,2102667501
09.05.2017,CHILDREN'S SERVICES,BANYA FAMILY PLACEMENT AGENCY LTD,"3,491.10",AGENCY FOSTERING,EXTERNAL AGENCIES AND BODIES,2102667479
09.05.2017,CHILDREN'S SERVICES,BANYA FAMILY PLACEMENT AGENCY LTD,"3,491.10",AGENCY FOSTERING,EXTERNAL AGENCIES AND BODIES,2102667489
09.05.2017,CHILDREN'S SERVICES,BANYA FAMILY PLACEMENT AGENCY LTD,"3,491.10",AGENCY FOSTERING,EXTERNAL AGENCIES AND BODIES,2102667506
09.05.2017,CHILDREN'S SERVICES,NATIONAL FOSTERING AGENCY,"3,567.06",AGENCY FOSTERING,EXTERNAL AGENCIES AND BODIES,2102667471
09.05.2017,CHILDREN'S SERVICES,SELECT FOSTERCARE SERVICES LTD,"3,600.00",AGENCY FOSTERING,EXTERNAL AGENCIES AND BODIES,2102667491
09.05.2017,CHILDREN'S SERVICES,SELECT FOSTERCARE SERVICES LTD,"3,600.00",AGENCY FOSTERING,EXTERNAL AGENCIES AND BODIES,2102667493
09.05.2017,CHILDREN'S SERVICES,BY THE BRIDGE LTD,"4,082.44",AGENCY FOSTERING,EXTERNAL AGENCIES AND BODIES,2102667465
09.05.2017,CHILDREN'S SERVICES,BY THE BRIDGE LTD,"4,206.86",AGENCY FOSTERING,EXTERNAL AGENCIES AND BODIES,2102667508
09.05.2017,CHILDREN'S SERVICES,NATIONAL FOSTERING AGENCY,"4,264.20",AGENCY FOSTERING,EXTERNAL AGENCIES AND BODIES,2102667466
09.05.2017,CHILDREN'S SERVICES,NATIONAL FOSTERING AGENCY,"4,264.20",AGENCY FOSTERING,EXTERNAL AGENCIES AND BODIES,2102667475
09.05.2017,CHILDREN'S SERVICES,NATIONAL FOSTERING AGENCY,"4,264.20",AGENCY FOSTERING,EXTERNAL AGENCIES AND BODIES,2102667480
09.05.2017,CHILDREN'S SERVICES,NATIONAL FOSTERING AGENCY,"4,264.20",AGENCY FOSTERING,EXTERNAL AGENCIES AND BODIES,2102667486
09.05.2017,CHILDREN'S SERVICES,NATIONAL FOSTERING AGENCY,"4,264.20",AGENCY FOSTERING,EXTERNAL AGENCIES AND BODIES,2102667496
09.05.2017,CHILDREN'S SERVICES,NATIONAL FOSTERING AGENCY,"4,264.20",AGENCY FOSTERING,EXTERNAL AGENCIES AND BODIES,2102667498
09.05.2017,CHILDREN'S SERVICES,NATIONAL FOSTERING AGENCY,"4,264.20",AGENCY FOSTERING,EXTERNAL AGENCIES AND BODIES,2102667499
09.05.2017,CHILDREN'S SERVICES,NATIONAL FOSTERING AGENCY,"4,264.20",AGENCY FOSTERING,EXTERNAL AGENCIES AND BODIES,2102667504
09.05.2017,CHILDREN'S SERVICES,NATIONAL FOSTERING AGENCY,"4,264.20",AGENCY FOSTERING,EXTERNAL AGENCIES AND BODIES,2102667507
09.05.2017,CHILDREN'S SERVICES,BY THE BRIDGE LTD,"4,297.33",AGENCY FOSTERING,EXTERNAL AGENCIES AND BODIES,2102667470
09.05.2017,CHILDREN'S SERVICES,BY THE BRIDGE LTD,"4,297.33",AGENCY FOSTERING,EXTERNAL AGENCIES AND BODIES,2102667473
09.05.2017,CHILDREN'S SERVICES,BY THE BRIDGE LTD,"4,433.01",AGENCY FOSTERING,EXTERNAL AGENCIES AND BODIES,2102667472
09.05.2017,CHILDREN'S SERVICES,BY THE BRIDGE LTD,"4,433.01",AGENCY FOSTERING,EXTERNAL AGENCIES AND BODIES,2102667482
09.05.2017,CHILDREN'S SERVICES,BY THE BRIDGE LTD,"4,433.01",AGENCY FOSTERING,EXTERNAL AGENCIES AND BODIES,2102667497
09.05.2017,CHILDREN'S SERVICES,BY THE BRIDGE LTD,"4,433.01",AGENCY FOSTERING,EXTERNAL AGENCIES AND BODIES,2102667505
09.05.2017,CHILDREN'S SERVICES,NATIONAL FOSTERING AGENCY,"4,478.40",AGENCY FOSTERING,EXTERNAL AGENCIES AND BODIES,2102667483
09.05.2017,CHILDREN'S SERVICES,BY THE BRIDGE LTD,"4,523.49",AGENCY FOSTERING,EXTERNAL AGENCIES AND BODIES,2102667484
09.05.2017,CHILDREN'S SERVICES,BY THE BRIDGE LTD,"4,523.49",AGENCY FOSTERING,EXTERNAL AGENCIES AND BODIES,2102667485
09.05.2017,CHILDREN'S SERVICES,BY THE BRIDGE LTD,"4,650.47",AGENCY FOSTERING,EXTERNAL AGENCIES AND BODIES,2102667492
09.05.2017,CHILDREN'S SERVICES,BY THE BRIDGE LTD,"4,650.47",AGENCY FOSTERING,EXTERNAL AGENCIES AND BODIES,2102667494
09.05.2017,CHILDREN'S SERVICES,CHILDREN OF COLOUR,"4,714.29",AGENCY FOSTERING,EXTERNAL AGENCIES AND BODIES,2102667490
09.05.2017,CHILDREN'S SERVICES,BY THE BRIDGE LTD,"4,745.36",AGENCY FOSTERING,EXTERNAL AGENCIES AND BODIES,2102667474
09.05.2017,CHILDREN'S SERVICES,BY THE BRIDGE LTD,"5,571.43",AGENCY FOSTERING,EXTERNAL AGENCIES AND BODIES,2102667500
09.05.2017,CHILDREN'S SERVICES,BY THE BRIDGE LTD,"6,030.00",AGENCY FOSTERING,EXTERNAL AGENCIES AND BODIES,2102667467
09.05.2017,CHILDREN'S SERVICES,BY THE BRIDGE LTD,"6,739.09",AGENCY FOSTERING,EXTERNAL AGENCIES AND BODIES,2102667476
09.05.2017,CHILDREN'S SERVICES,ANDREW BAILEY (IRO NETWORK),432.5,CLA TEAM SAFEGUARDING,PROFESSIONAL FEES,5902249028
09.05.2017,CHILDREN'S SERVICES,SHARPE PRITCHARD LLP,"2,112.00",PROPERTY MANAGEMENT,PROFESSIONAL FEES,5902249427
09.05.2017,CHILDREN'S SERVICES,SPORTFIT SHORT BREAK CARE LTD,"1,983.00",RESIDENTIAL,RESIDENTIAL CARE,2102667512
09.05.2017,CHILDREN'S SERVICES,SPORTFIT SHORT BREAK CARE LTD,"11,955.00",RESIDENTIAL,RESIDENTIAL CARE,2102667513
09.05.2017,CHILDREN'S SERVICES,SPORTFIT SHORT BREAK CARE LTD,"11,955.00",RESIDENTIAL,RESIDENTIAL CARE,2102667518
09.05.2017,CHILDREN'S SERVICES,THE DRIVE CARE HOMES LTD,"12,751.20",RESIDENTIAL,RESIDENTIAL CARE,2102667515
09.05.2017,CHILDREN'S SERVICES,CREATING CARE CHOICES LTD,"15,000.00",RESIDENTIAL,RESIDENTIAL CARE,2102667511
09.05.2017,CHILDREN'S SERVICES,THE DRIVE CARE HOMES LTD,"15,301.44",RESIDENTIAL,RESIDENTIAL CARE,2102667516
09.05.2017,CHILDREN'S SERVICES,CREATING CARE CHOICES LTD,"18,000.00",RESIDENTIAL,RESIDENTIAL CARE,2102667517
09.05.2017,CHILDREN'S SERVICES,CREATING CARE CHOICES LTD,"19,555.00",RESIDENTIAL,RESIDENTIAL CARE,2102667514
09.05.2017,CHILDREN'S SERVICES,FUTURE FOUNDATIONS LTD,"-2,175.00",S24 CLA,EXTERNAL AGENCIES AND BODIES,2102667435
09.05.2017,CHILDREN'S SERVICES,FUTURE FOUNDATIONS LTD,"-1,807.58",S24 CLA,EXTERNAL AGENCIES AND BODIES,2102667451
09.05.2017,CHILDREN'S SERVICES,YOUNG FUTURES,"-1,717.80",S24 CLA,EXTERNAL AGENCIES AND BODIES,2102667427
09.05.2017,CHILDREN'S SERVICES,FUTURE FOUNDATIONS LTD,"-1,568.28",S24 CLA,EXTERNAL AGENCIES AND BODIES,2102667403
09.05.2017,CHILDREN'S SERVICES,PURPLE PEBBLES(CHILD CARE) SERVICES,260,S24 CLA,EXTERNAL AGENCIES AND BODIES,2102667432
09.05.2017,CHILDREN'S SERVICES,PURPLE PEBBLES(CHILD CARE) SERVICES,325,S24 CLA,EXTERNAL AGENCIES AND BODIES,2102667405
09.05.2017,CHILDREN'S SERVICES,PURPLE PEBBLES(CHILD CARE) SERVICES,325,S24 CLA,EXTERNAL AGENCIES AND BODIES,2102667429
09.05.2017,CHILDREN'S SERVICES,PURPLE PEBBLES(CHILD CARE) SERVICES,450,S24 CLA,EXTERNAL AGENCIES AND BODIES,2102667411
09.05.2017,CHILDREN'S SERVICES,PURPLE PEBBLES(CHILD CARE) SERVICES,538.57,S24 CLA,EXTERNAL AGENCIES AND BODIES,2102667447
09.05.2017,CHILDREN'S SERVICES,PURPLE PEBBLES(CHILD CARE) SERVICES,600,S24 CLA,EXTERNAL AGENCIES AND BODIES,2102667433
09.05.2017,CHILDREN'S SERVICES,PURPLE PEBBLES(CHILD CARE) SERVICES,792.85,S24 CLA,EXTERNAL AGENCIES AND BODIES,2102667444
09.05.2017,CHILDREN'S SERVICES,GALAXY LETTINGS LTD,"1,050.00",S24 CLA,EXTERNAL AGENCIES AND BODIES,2102667398
09.05.2017,CHILDREN'S SERVICES,PURPLE PEBBLES(CHILD CARE) SERVICES,"1,178.57",S24 CLA,EXTERNAL AGENCIES AND BODIES,2102667420
09.05.2017,CHILDREN'S SERVICES,PURPLE PEBBLES(CHILD CARE) SERVICES,"1,186.80",S24 CLA,EXTERNAL AGENCIES AND BODIES,2102667421
09.05.2017,CHILDREN'S SERVICES,PURPLE PEBBLES(CHILD CARE) SERVICES,"1,221.42",S24 CLA,EXTERNAL AGENCIES AND BODIES,2102667413
09.05.2017,CHILDREN'S SERVICES,PURPLE PEBBLES(CHILD CARE) SERVICES,"1,242.86",S24 CLA,EXTERNAL AGENCIES AND BODIES,2102667406
09.05.2017,CHILDREN'S SERVICES,PURPLE PEBBLES(CHILD CARE) SERVICES,"1,307.14",S24 CLA,EXTERNAL AGENCIES AND BODIES,2102667400
09.05.2017,CHILDREN'S SERVICES,PURPLE PEBBLES(CHILD CARE) SERVICES,"1,307.14",S24 CLA,EXTERNAL AGENCIES AND BODIES,2102667440
09.05.2017,CHILDREN'S SERVICES,FINEFAIR LTD,"1,312.80",S24 CLA,EXTERNAL AGENCIES AND BODIES,2102667450
09.05.2017,CHILDREN'S SERVICES,YOUNG FUTURES,"1,516.80",S24 CLA,EXTERNAL AGENCIES AND BODIES,2102667449
09.05.2017,CHILDREN'S SERVICES,FINEFAIR LTD,"1,632.90",S24 CLA,EXTERNAL AGENCIES AND BODIES,2102667417
09.05.2017,CHILDREN'S SERVICES,FINEFAIR LTD,"1,632.90",S24 CLA,EXTERNAL AGENCIES AND BODIES,2102667426
09.05.2017,CHILDREN'S SERVICES,FINEFAIR LTD,"1,632.90",S24 CLA,EXTERNAL AGENCIES AND BODIES,2102667439
09.05.2017,CHILDREN'S SERVICES,FINEFAIR LTD,"1,632.90",S24 CLA,EXTERNAL AGENCIES AND BODIES,2102667443
09.05.2017,CHILDREN'S SERVICES,FUTURE FOUNDATIONS LTD,"1,667.14",S24 CLA,EXTERNAL AGENCIES AND BODIES,2102667412
09.05.2017,CHILDREN'S SERVICES,PURPLE PEBBLES(CHILD CARE) SERVICES,"1,701.37",S24 CLA,EXTERNAL AGENCIES AND BODIES,2102667445
09.05.2017,CHILDREN'S SERVICES,YOUNG FUTURES,"1,825.50",S24 CLA,EXTERNAL AGENCIES AND BODIES,2102667397
09.05.2017,CHILDREN'S SERVICES,FUTURE FOUNDATIONS LTD,"1,864.28",S24 CLA,EXTERNAL AGENCIES AND BODIES,2102667416
09.05.2017,CHILDREN'S SERVICES,BRIDGING THE GAP,"1,925.72",S24 CLA,EXTERNAL AGENCIES AND BODIES,2102667401
09.05.2017,CHILDREN'S SERVICES,BRIDGING THE GAP,"1,925.72",S24 CLA,EXTERNAL AGENCIES AND BODIES,2102667414
09.05.2017,CHILDREN'S SERVICES,FUTURE FOUNDATIONS LTD,"1,926.42",S24 CLA,EXTERNAL AGENCIES AND BODIES,2102667434
09.05.2017,CHILDREN'S SERVICES,CARE R US LTD,"2,541.42",S24 CLA,EXTERNAL AGENCIES AND BODIES,2102667452
09.05.2017,CHILDREN'S SERVICES,YOUNG FUTURES,"2,602.38",S24 CLA,EXTERNAL AGENCIES AND BODIES,2102667422
09.05.2017,CHILDREN'S SERVICES,NETPEX LTD CORPORATE SERVICES,"2,767.99",S24 CLA,EXTERNAL AGENCIES AND BODIES,2102667441
09.05.2017,CHILDREN'S SERVICES,FINEFAIR LTD,"2,871.30",S24 CLA,EXTERNAL AGENCIES AND BODIES,2102667399
09.05.2017,CHILDREN'S SERVICES,FINEFAIR LTD,"2,871.60",S24 CLA,EXTERNAL AGENCIES AND BODIES,2102667408
09.05.2017,CHILDREN'S SERVICES,CREATING LIFESTYLES,"3,680.00",S24 CLA,EXTERNAL AGENCIES AND BODIES,2102667404
09.05.2017,CHILDREN'S SERVICES,CREATING LIFESTYLES,"4,220.00",S24 CLA,EXTERNAL AGENCIES AND BODIES,2102667423
09.05.2017,CHILDREN'S SERVICES,FUTURE FOUNDATIONS LTD,"4,277.14",S24 CLA,EXTERNAL AGENCIES AND BODIES,2102667407
09.05.2017,CHILDREN'S SERVICES,NETPEX LTD CORPORATE SERVICES,"5,646.65",S24 CLA,EXTERNAL AGENCIES AND BODIES,2102667442
09.05.2017,CHILDREN'S SERVICES,KRJ CARE SERVICES,"6,535.54",S24 CLA,EXTERNAL AGENCIES AND BODIES,2102667448
09.05.2017,CHILDREN'S SERVICES,PHASE II CARE LTD,"2,047.25",S24 CLA,RESIDENTIAL CARE,2102667425
09.05.2017,CHILDREN'S SERVICES,ELLIOT LEIGH TLC LTD,"3,321.30",SEMI INDEPENDENT,EXTERNAL AGENCIES AND BODIES,2102667457
09.05.2017,CHILDREN'S SERVICES,NETPEX LTD CORPORATE SERVICES,"4,207.32",SEMI INDEPENDENT,EXTERNAL AGENCIES AND BODIES,2102667458
09.05.2017,CHILDREN'S SERVICES,CREATING LIFESTYLES,"5,402.08",SEMI INDEPENDENT,EXTERNAL AGENCIES AND BODIES,2102667455
09.05.2017,CHILDREN'S SERVICES,KRJ CARE SERVICES,"8,278.31",SEMI INDEPENDENT,EXTERNAL AGENCIES AND BODIES,2102667453
09.05.2017,CHILDREN'S SERVICES,CREATING LIFESTYLES,"12,040.00",SEMI INDEPENDENT,EXTERNAL AGENCIES AND BODIES,2102667460
09.05.2017,CHILDREN'S SERVICES,NETPEX LTD CORPORATE SERVICES,"14,946.65",SEMI INDEPENDENT,EXTERNAL AGENCIES AND BODIES,2102667462
09.05.2017,CHILDREN'S SERVICES,NETPEX LTD CORPORATE SERVICES,289.5,SEMI INDEPENDENT,OTHER PAYMENTS FOR CLIENTS,2102667459
09.05.2017,CHILDREN'S SERVICES,NETPEX LTD CORPORATE SERVICES,289.5,SEMI INDEPENDENT,OTHER PAYMENTS FOR CLIENTS,2102667464
09.05.2017,CHILDREN'S SERVICES,KRJ CARE SERVICES,540,SEMI INDEPENDENT,OTHER PAYMENTS FOR CLIENTS,2102667454
09.05.2017,CHILDREN'S SERVICES,CONTACT PROFESSIONALS,570,SPECIALIST CARE,SECTION 17 PAYMENTS TO AGENCIES/CARERS,2102667520
09.05.2017,CHILDREN'S SERVICES,4 FUTURES LIMITED,"4,967.31",SSF NON SCHOOL SPECIFIC FM,COMPUTER MAINTENANCE,5902249417
09.05.2017,CHILDREN'S SERVICES,4 FUTURES LIMITED,"5,281.48",SSF NON SCHOOL SPECIFIC FM,COMPUTER MAINTENANCE,5902249419
09.05.2017,CHILDREN'S SERVICES,4 FUTURES LIMITED,"5,281.48",SSF NON SCHOOL SPECIFIC FM,COMPUTER MAINTENANCE,5902249420
09.05.2017,CHILDREN'S SERVICES,4 FUTURES LIMITED,"8,704.50",SSF NSA FM/ICT SACRED HEART,COMPUTER MAINTENANCE,5902249456
09.05.2017,CHILDREN'S SERVICES,4 FUTURES LIMITED,"9,227.65",SSF NSA FM/ICT SACRED HEART,COMPUTER MAINTENANCE,5902249458
09.05.2017,CHILDREN'S SERVICES,4 FUTURES LIMITED,"9,227.65",SSF NSA FM/ICT SACRED HEART,COMPUTER MAINTENANCE,5902249460
09.05.2017,CHILDREN'S SERVICES,4 FUTURES LIMITED,"9,017.08",SSF STAC PFI/ICT,COMPUTER MAINTENANCE,5902249421
09.05.2017,CHILDREN'S SERVICES,4 FUTURES LIMITED,"9,557.71",SSF STAC PFI/ICT,COMPUTER MAINTENANCE,5902249423
09.05.2017,CHILDREN'S SERVICES,4 FUTURES LIMITED,"9,557.71",SSF STAC PFI/ICT,COMPUTER MAINTENANCE,5902249425
09.05.2017,CHILDREN'S SERVICES,AFFINITY FOSTERING SERVICES LTD,"1,692.90",STAYING PUT,EXTERNAL AGENCIES AND BODIES,2102667430
09.05.2017,CHILDREN'S SERVICES,AFFINITY FOSTERING SERVICES LTD,"1,692.90",STAYING PUT,EXTERNAL AGENCIES AND BODIES,2102667431
09.05.2017,CHILDREN'S SERVICES,COMPASS FOSTERING,"1,789.20",STAYING PUT,EXTERNAL AGENCIES AND BODIES,2102667438
09.05.2017,CHILDREN'S SERVICES,NATIONAL FOSTERING AGENCY,"1,800.00",STAYING PUT,EXTERNAL AGENCIES AND BODIES,2102667428
09.05.2017,CHILDREN'S SERVICES,BY THE BRIDGE LTD,"3,214.29",STAYING PUT,EXTERNAL AGENCIES AND BODIES,2102667424
09.05.2017,CHILDREN'S SERVICES,BY THE BRIDGE LTD,"3,214.29",STAYING PUT,EXTERNAL AGENCIES AND BODIES,2102667436
09.05.2017,CHILDREN'S SERVICES,CHARTWELLS,717.2,SUMMERHOUSE - EX416 - 5015232,CATERING MATERIALS & SUPPLIES,5902249380
09.05.2017,CHILDREN'S SERVICES,CHARTWELLS,"1,732.50",SUMMERHOUSE - EX416 - 5015232,CATERING MATERIALS & SUPPLIES,5902249383
09.05.2017,CHILDREN'S SERVICES,SALTCO LTD T/A KELLY EXECUTIVE,"1,190.00",SUMMERHOUSE - EX416 - 5015232,HIRED VEHICLES,5902249394
09.05.2017,CHILDREN'S SERVICES,SALTCO LTD T/A KELLY EXECUTIVE,"1,322.00",SUMMERHOUSE - EX416 - 5015232,HIRED VEHICLES,5902249389
09.05.2017,CHILDREN'S SERVICES,SALTCO LTD T/A KELLY EXECUTIVE,"1,330.00",SUMMERHOUSE - EX416 - 5015232,HIRED VEHICLES,5902249386
09.05.2017,CHILDREN'S SERVICES,PURPLE PEBBLES(CHILD CARE) SERVICES,325,UASC SECTION 24,EXTERNAL AGENCIES AND BODIES,2102667419
09.05.2017,CHILDREN'S SERVICES,PURPLE PEBBLES(CHILD CARE) SERVICES,"1,671.43",UASC SECTION 24,EXTERNAL AGENCIES AND BODIES,2102667410
09.05.2017,CHILDREN'S SERVICES,PROPERTY ACE UK LTD,"1,928.57",UASC SECTION 24,RESIDENTIAL CARE,2102667418
09.05.2017,COMMISSIONING & CENTRAL,PIUS SYSTEM SOLUTIONS LTD,"4,980.00",BUSINESS APPLICATIONS,CONSULTANTS SERVICES,5902249469
09.05.2017,COMMUNITIES,D SINGH PROPERTIES LTD,"4,614.00",NO RECOURSE TO PUBLIC FUNDS,ACCOMMODATION CHARGES,5902249462
09.05.2017,CUSTOMER EXPERIENCE HGF,KKB PROPERTY & FINANCIAL SERVICES,"3,000.00",HOMELESS PROJECTS,GRANTS,5902249426
09.05.2017,CUSTOMER EXPERIENCE HGF,CROWN HOUSING LTD,"1,050.00",NIGHTLY TA (NSC),EXTERNAL AGENCIES AND BODIES,5902249480
09.05.2017,CUSTOMER EXPERIENCE HGF,CROWN HOUSING LTD,"8,062.00",NIGHTLY TA (NSC),EXTERNAL AGENCIES AND BODIES,5902249483
09.05.2017,CUSTOMER EXPERIENCE HGF,ZFA LTD,"11,212.00",NIGHTLY TA (NSC),EXTERNAL AGENCIES AND BODIES,5902249450
09.05.2017,CUSTOMER EXPERIENCE HGF,J & M OASIS LTD,"39,489.00",NIGHTLY TA (NSC),EXTERNAL AGENCIES AND BODIES,5902249368
09.05.2017,DULWICH COMMUNITY COUNCIL,SOUTHWARK HINDU CENTER,500,DAY TRIP FOR SENIOR CITIZENS,GRANT,CHEQUE PAYMENT
09.05.2017,DULWICH COMMUNITY COUNCIL,SOUTHWARK HINDU CENTER,300,DIWALI (FESTIVAL OF LIGHTS)CELEBRATIONS,GRANT,CHEQUE PAYMENT
09.05.2017,ENVIRONMENT AND LEISURE,INSPIRE AT ST PETER'S LTD,"12,225.00",CAPITAL PS (LEISURE),CAPITAL GRANTS,5902249472
09.05.2017,ENVIRONMENT AND LEISURE,L&M CONTRACTORS LLP,450,CAPITAL PS (LEISURE),CONSTRUCTION FEES  - EXTERNAL,2102667661
09.05.2017,ENVIRONMENT AND LEISURE,STANBURY BUILDING SERVICES LTD,"1,250.00",CAPITAL PS (LEISURE),CONSTRUCTION FEES  - EXTERNAL,2102667665
09.05.2017,ENVIRONMENT AND LEISURE,FUSION LIFESTYLE,"11,330.89",CAPITAL PS (LEISURE),FURNITURE & FITTINGS ACQUISITION,5902249504
09.05.2017,ENVIRONMENT DIRECTORATE,CYCLE CONFIDENT LTD,"35,000.00",BEHAVIOUR CHANGE,PROFESSIONAL FEES,5902249475
09.05.2017,ENVIRONMENT DIRECTORATE,LEX AUTOLEASE,-444.83,CAR LEASING CTRL A/C,VEHICLE LEASING CHARGES,5902249392
09.05.2017,ENVIRONMENT DIRECTORATE,LEX AUTOLEASE,-277.44,CAR LEASING CTRL A/C,VEHICLE LEASING CHARGES,5902249397
09.05.2017,ENVIRONMENT DIRECTORATE,LEX AUTOLEASE,"17,399.89",CAR LEASING CTRL A/C,VEHICLE LEASING CHARGES,5902249374
09.05.2017,ENVIRONMENT DIRECTORATE,LEX AUTOLEASE,"17,444.57",CAR LEASING CTRL A/C,VEHICLE LEASING CHARGES,5902249374
09.05.2017,ENVIRONMENT DIRECTORATE,LEX AUTOLEASE,"20,192.37",CAR LEASING CTRL A/C,VEHICLE LEASING CHARGES,5902249377
09.05.2017,ENVIRONMENT DIRECTORATE,LEX AUTOLEASE,"20,598.40",CAR LEASING CTRL A/C,VEHICLE LEASING CHARGES,5902249377
09.05.2017,ENVIRONMENT DIRECTORATE,GULLIVERS TRUCK HIRE LTD,265,COMMERCIAL VEH CTRL A/C,HIRED VEHICLES,5902249399
09.05.2017,ENVIRONMENT DIRECTORATE,GULLIVERS TRUCK HIRE LTD,265,COMMERCIAL VEH CTRL A/C,HIRED VEHICLES,5902249445
09.05.2017,ENVIRONMENT DIRECTORATE,GULLIVERS TRUCK HIRE LTD,915,COMMERCIAL VEH CTRL A/C,HIRED VEHICLES,5902249400
09.05.2017,ENVIRONMENT DIRECTORATE,GULLIVERS TRUCK HIRE LTD,915,COMMERCIAL VEH CTRL A/C,HIRED VEHICLES,5902249446
09.05.2017,ENVIRONMENT DIRECTORATE,R J MOTORS LIMITED,"1,798.09",COMMERCIAL VEH CTRL A/C,VEHICLE REPAIRS & MAINTENANCE,5902249491
09.05.2017,ENVIRONMENT DIRECTORATE,PERFORMANCE CHEMICALS LTD,720,ESTATE CLEANING-GENERAL,MATERIALS,5902249481
09.05.2017,ENVIRONMENT DIRECTORATE,GREENHAM TRADING LTD,848,ESTATE CLEANING-GENERAL,MATERIALS,5902249477
09.05.2017,ENVIRONMENT DIRECTORATE,GREENHAM TRADING LTD,"1,250.08",ESTATE CLEANING-GENERAL,MATERIALS,5902249443
09.05.2017,ENVIRONMENT DIRECTORATE,DRAIN SCAN,280,GULLY MAINT NON PINC RD,OTHER CONTRACTORS,5902249358
09.05.2017,ENVIRONMENT DIRECTORATE,DRAIN SCAN,280,GULLY MAINT NON PINC RD,OTHER CONTRACTORS,5902249363
09.05.2017,ENVIRONMENT DIRECTORATE,DRAIN SCAN,280,GULLY MAINT NON PINC RD,OTHER CONTRACTORS,5902249429
09.05.2017,ENVIRONMENT DIRECTORATE,DRAIN SCAN,280,GULLY MAINT NON PINC RD,OTHER CONTRACTORS,5902249431
09.05.2017,ENVIRONMENT DIRECTORATE,DRAIN SCAN,280,GULLY MAINT NON PINC RD,OTHER CONTRACTORS,5902249432
09.05.2017,ENVIRONMENT DIRECTORATE,DRAIN SCAN,280,GULLY MAINT NON PINC RD,OTHER CONTRACTORS,5902249433
09.05.2017,ENVIRONMENT DIRECTORATE,CONWAY AECOM LTD,"4,090.35",HWAY MINOR WKS NON PRINC RD,HIGHWAYS TERM CONTRACT,5902249496
09.05.2017,ENVIRONMENT DIRECTORATE,T4 INTELLIGENT INFRASTRUCTURE,"1,600.00",LIGHTING RECOVERABLE WORKS,SOUTHWARK DIRECT CHARGES,2102667663
09.05.2017,ENVIRONMENT DIRECTORATE,TENNANT UK CLEANING SOLUTIONS LTD,571,MANAGEMENT TEAM,EQUIPMENT PURCHASE & REPAIR,5902249345
09.05.2017,ENVIRONMENT DIRECTORATE,WALWORTH GARDEN SERVICES,"8,223.92",MANAGEMENT TEAM,GROUNDS MAINTENANCE,5902249499
09.05.2017,ENVIRONMENT DIRECTORATE,SOUTHWARK NEWSPAPER LTD,288,STREET WORKS OVERHEADS,MARKETING & PUBLICITY SERVICES,5902249403
09.05.2017,ENVIRONMENT DIRECTORATE,SOUTHWARK NEWSPAPER LTD,288,STREET WORKS OVERHEADS,MARKETING & PUBLICITY SERVICES,5902249441
09.05.2017,ENVIRONMENT DIRECTORATE,SOUTHWARK NEWSPAPER LTD,300,STREET WORKS OVERHEADS,MARKETING & PUBLICITY SERVICES,5902249448
09.05.2017,ENVIRONMENT DIRECTORATE,SOUTHWARK NEWSPAPER LTD,300,STREET WORKS OVERHEADS,MARKETING & PUBLICITY SERVICES,5902249452
09.05.2017,ENVIRONMENT DIRECTORATE,SOUTHWARK NEWSPAPER LTD,324,STREET WORKS OVERHEADS,MARKETING & PUBLICITY SERVICES,5902249401
09.05.2017,ENVIRONMENT DIRECTORATE,SOUTHWARK NEWSPAPER LTD,336,STREET WORKS OVERHEADS,MARKETING & PUBLICITY SERVICES,5902249371
09.05.2017,ENVIRONMENT DIRECTORATE,SOUTHWARK NEWSPAPER LTD,372,STREET WORKS OVERHEADS,MARKETING & PUBLICITY SERVICES,5902249375
09.05.2017,ENVIRONMENT DIRECTORATE,SOUTHWARK NEWSPAPER LTD,408,STREET WORKS OVERHEADS,MARKETING & PUBLICITY SERVICES,5902249404
09.05.2017,F & C S EXCLUDING CORPORATE BUDGETS,NORTHGATE PUBLIC SERVICES (UK) LTD,617.23,ADMINISTRATIVE SUPPORT,POSTAGES,5902249490
09.05.2017,F & C S EXCLUDING CORPORATE BUDGETS,TMP (UK) LIMITED,"10,950.00",ADMINISTRATIVE SUPPORT,RECRUITMENT ADVERTISING,5902249360
09.05.2017,F & C S EXCLUDING CORPORATE BUDGETS,RECOGNISING EXCELLENCE LTD,275,LEGAL SVCES MANAGEMENT,PROFESSIONAL FEES,5902249453
09.05.2017,F & C S EXCLUDING CORPORATE BUDGETS,HAMMICKS,337,LEGAL SVCES MANAGEMENT,SUBSCRIPTIONS,5902249451
09.05.2017,HOUSING,GUIDELINE LIFT SERVICES LTD,"3,558.21",GUIDELINE,MANUAL CREDITORS,5902249412
09.05.2017,HOUSING,GUIDELINE LIFT SERVICES LTD,"73,439.71",GUIDELINE,MANUAL CREDITORS,5902249497
09.05.2017,HOUSING,GUIDELINE LIFT SERVICES LTD,"84,393.46",GUIDELINE,MANUAL CREDITORS,5902249405
09.05.2017,HOUSING,PENNINGTON CHOICE LTD,"6,950.00",PENNINGTON,MANUAL CREDITORS,5902249414
09.05.2017,HOUSING HRA,DAVID MILES & PARTNERS,"2,066.10",CAPITAL PS (HRA),CONSTRUCTION FEES  - EXTERNAL,5902249487
09.05.2017,HOUSING HRA,CALFORD SEADEN LLP,"10,000.00",CAPITAL PS (HRA),CONSTRUCTION FEES  - EXTERNAL,5902249463
09.05.2017,HOUSING HRA,CALFORD SEADEN LLP,"10,000.00",CAPITAL PS (HRA),CONSTRUCTION FEES  - EXTERNAL,5902249455
09.05.2017,HOUSING HRA,POLLARD THOMAS EDWARDS LTD,"15,120.00",CAPITAL PS (HRA),CONSTRUCTION FEES  - EXTERNAL,5902249442
09.05.2017,HOUSING HRA,INVICTA BUILDING SERVICES LTD,"87,213.18",CAPITAL PS (HRA),CONSTRUCTION MAIN CONTRACT -CERTIFICATED,2102667674
09.05.2017,HOUSING HRA,A & E ELKINS LTD,"114,681.78",CAPITAL PS (HRA),CONSTRUCTION MAIN CONTRACT -CERTIFICATED,2102667662
09.05.2017,HOUSING HRA,MALCOLM HOLLIS LLP,650,CAPITAL PS (REGEN),CONSTRUCTION FEES,5902249459
09.05.2017,HOUSING HRA,CARTER JONAS LLP,"4,200.00",CAPITAL PS (REGEN),LAND & BUILDINGS ACQUISITION FEES,5902249498
09.05.2017,LEISURE DIRECTORATE,QUADRON SERVICES LIMITED,"39,490.00",CEMETERIES,EQUIPMENT PURCHASE & REPAIR,5902249494
09.05.2017,LEISURE DIRECTORATE,QUADRON SERVICES LIMITED,"4,333.55",CEMETERIES,GROUNDS MAINTENANCE,5902249482
09.05.2017,LEISURE DIRECTORATE,QUADRON SERVICES LIMITED,"67,065.95",CEMETERIES,GROUNDS MAINTENANCE,5902249492
09.05.2017,LEISURE DIRECTORATE,QUADRON SERVICES LIMITED,"40,000.00",CEMETERIES,OTHER R&M,5902249489
09.05.2017,LEISURE DIRECTORATE,LEE SNASHFOLD CREMETORIA MANAGEMENT,810,CREMATORIUM,PROFESSIONAL FEES,5902249493
09.05.2017,LEISURE DIRECTORATE,P D CONSTRUCTION LTD,"3,680.00",DULWICH AREA TEAM,OTHER R&M,2102667664
09.05.2017,LEISURE DIRECTORATE,QUADRON SERVICES LIMITED,401.2,G M HARMWORTH A TEAM,GROUNDS MAINTENANCE,5902249428
09.05.2017,LEISURE DIRECTORATE,PDC CONSTRUCTION SERVICES LTD,"7,300.00",G M HARMWORTH A TEAM,OTHER R&M,2102667672
09.05.2017,LEISURE DIRECTORATE,SHARON BASSEY,"1,050.00",SOUTHWARK AREA TEAM,OFFICE EXPENSES,5902249464
09.05.2017,MODERNISATION HGF,ANTALIS LTD,"3,613.05",160 TOOLEY ST.,STATIONERY,5902249470
09.05.2017,MODERNISATION HGF,TMP (UK) LIMITED,"1,070.00",ADVERTISING,RECRUITMENT ADVERTISING,5902249471
09.05.2017,MODERNISATION HGF,VIRGIN MEDIA,462.4,TECHNOLOGY,DATA COMMUNICATIONS,5902249355
09.05.2017,MODERNISATION HGF,VIRGIN MEDIA,472.4,TECHNOLOGY,DATA COMMUNICATIONS,5902249359
09.05.2017,MODERNISATION HGF,VIRGIN MEDIA,472.4,TECHNOLOGY,DATA COMMUNICATIONS,5902249361
09.05.2017,MODERNISATION HGF,VIRGIN MEDIA,567.88,TECHNOLOGY,DATA COMMUNICATIONS,5902249356
09.05.2017,MODERNISATION HGF,VIRGIN MEDIA,"85,698.98",TECHNOLOGY,DATA COMMUNICATIONS,5902249349
09.05.2017,PECKHAM AND NUNHEAD COMMUNITY COUNCIL,WESTMINSTER HOUSE YOUTH CLUB,"3,500.00",BRIDGING THE GAP,GRANT,CHEQUE PAYMENT
09.05.2017,PECKHAM AND NUNHEAD COMMUNITY COUNCIL,COVO CONNECTING VOICES,"2,000.00",CONNECTING PEOPLE,GRANT,CHEQUE PAYMENT
09.05.2017,PECKHAM AND NUNHEAD COMMUNITY COUNCIL,CONGO PEACE FUND,"1,500.00",MEDIA WORKSHOP,GRANT,CHEQUE PAYMENT
09.05.2017,PECKHAM AND NUNHEAD COMMUNITY COUNCIL,SUMNER TENANTS & RESIDENTS ASSOCIATION,"2,000.00","SUMNER CULTURAL, HISTORICAL DAY TRIPS",GRANT,CHEQUE PAYMENT
09.05.2017,PECKHAM AND NUNHEAD COMMUNITY COUNCIL,THEATRE PECKHAM,"4,000.00",YOUNG PEOPLES CREATIVE ARTS SHOWCASE,GRANT,CHEQUE PAYMENT
09.05.2017,PLANNING AND TRANSPORT,DISTRICT SURVEYORS LTD,"1,300.00",BUILDING CONTROL,SUBSCRIPTIONS,5902249501
09.05.2017,PUBLIC HEALTH,LLOYDS PHARMACY LTD,-480,PHARMACY SM,OTHER CONTRACTORS,5902249952
09.05.2017,PUBLIC HEALTH,LLOYDS PHARMACY LTD,480,PHARMACY SM,OTHER CONTRACTORS,5902249900
09.05.2017,REGENERATION,HTA DESIGN LLP,"4,711.00",PECKHAM/CAMBERWELL SITES-FEES/MPLAN,CONSULTANTS SERVICES,5902249424
09.05.2017,RESIDENT SERVICES,CHARTWELLS,"4,431.22",SPECIAL NEEDS HOSTELS,CATERING MATERIALS & SUPPLIES,5902249468
10.05.2017,ADULT SOCIAL CARE,ARK HOME HEALTHCARE LTD,"17,379.35", OP CARE PACKAGES,HOMECARE - IC,5902249811
10.05.2017,ADULT SOCIAL CARE,ARK HOME HEALTHCARE LTD,"17,449.53", OP CARE PACKAGES,HOMECARE - IC,5902249810
10.05.2017,ADULT SOCIAL CARE,ARK HOME HEALTHCARE LTD,"17,513.54", OP CARE PACKAGES,HOMECARE - IC,5902249813
10.05.2017,ADULT SOCIAL CARE,HMCTS,400,DEPUTYSHIPS,OTHER PAYMENTS FOR CLIENTS,5902249827
10.05.2017,ADULT SOCIAL CARE,HMCTS,400,DEPUTYSHIPS,OTHER PAYMENTS FOR CLIENTS,5902249828
10.05.2017,ASSET MANAGEMENT,GANS & CO SOLICITORS LLP,"7,000.00",DISREPAIR,LEGAL FEES & COURT COSTS,2102668573
10.05.2017,ASSET MANAGEMENT,AVONLINE PLC,774,ENG CONTRACTS (NORTH),TV AERIALS R&M,5902249518
10.05.2017,ASSET MANAGEMENT,AVONLINE PLC,821.42,ENG CONTRACTS (NORTH),TV AERIALS R&M,5902249514
10.05.2017,ASSET MANAGEMENT,AVONLINE PLC,852.5,ENG CONTRACTS (NORTH),TV AERIALS R&M,5902249523
10.05.2017,ASSET MANAGEMENT,GAS ADVISORY SERVICES LIMITED,"20,488.50",ENG CONTRACTS (SOUTH),HEATING -DISTRICT SERVICE (CONTRACT SUM),5902249824
10.05.2017,BUSINESS SUPPORT SERVICES CO-ORDINATION,HAVE BIKE PARTNERSHIP (UK) LTD,575,CARBON REDUCTION MANAGEMENT,PRINTING,5902249535
10.05.2017,CENTRAL FUNCTIONS,OCO LIMITED,"1,678.74",AYLESBURY,PROFESSIONAL FEES,5902249509
10.05.2017,CENTRAL FUNCTIONS,OCO LIMITED,"3,003.18",AYLESBURY,PROFESSIONAL FEES,5902249505
10.05.2017,CENTRAL FUNCTIONS,CLEANOVATION,487.46,COMMERCIAL PROPERTIES,PREMISES CLEANING,5902249108
10.05.2017,CENTRAL FUNCTIONS,KENT COUNTY COUNCIL - LASER,"1,144.33",HEATING ACCOUNT,ELECTRICITY,2102668582
10.05.2017,CENTRAL FUNCTIONS,KENT COUNTY COUNCIL - LASER,"1,164.22",HEATING ACCOUNT,GAS,2102668583
10.05.2017,CENTRAL FUNCTIONS,KENT COUNTY COUNCIL - LASER,"53,046.50",HEATING ACCOUNT,GAS,2102668581
10.05.2017,CENTRAL FUNCTIONS,KATY L SAMWELL,"7,147.75",HOME OWNERSHIP INCOME,HOUSING RESIDENTIAL RENTS,5902249590
10.05.2017,CENTRAL FUNCTIONS,GLAZER DELMAR SOLICITORS,"4,805.13",HOME OWNERSHIP INCOME,HOUSING RESIDENTIAL RENTS,5902249587
10.05.2017,CENTRAL FUNCTIONS,CAPITA BUSINESS SERVICES LTD,"25,338.31",OPERATIONAL TEAM,OTHER CONTRACTORS,5902249816
10.05.2017,CHILDREN AND ADULT,CORELOGIC LTD,"13,000.00",CAPITAL PS (STRAT SERV),ICT ACQUISITION,5902249538
10.05.2017,CHILDREN'S SERVICES,REDACTED PERSONAL DATA,252.9,ADOPTION PLACEMENTS & INTER AGENCY,PAYMENTS TO CARERS,2102668139
10.05.2017,CHILDREN'S SERVICES,REDACTED PERSONAL DATA,253.56,ADOPTION PLACEMENTS & INTER AGENCY,PAYMENTS TO CARERS,2102668119
10.05.2017,CHILDREN'S SERVICES,REDACTED PERSONAL DATA,255.22,ADOPTION PLACEMENTS & INTER AGENCY,PAYMENTS TO CARERS,2102668237
10.05.2017,CHILDREN'S SERVICES,REDACTED PERSONAL DATA,255.22,ADOPTION PLACEMENTS & INTER AGENCY,PAYMENTS TO CARERS,2102668231
10.05.2017,CHILDREN'S SERVICES,REDACTED PERSONAL DATA,256.54,ADOPTION PLACEMENTS & INTER AGENCY,PAYMENTS TO CARERS,2102668150
10.05.2017,CHILDREN'S SERVICES,REDACTED PERSONAL DATA,263.24,ADOPTION PLACEMENTS & INTER AGENCY,PAYMENTS TO CARERS,2102668212
10.05.2017,CHILDREN'S SERVICES,REDACTED PERSONAL DATA,263.24,ADOPTION PLACEMENTS & INTER AGENCY,PAYMENTS TO CARERS,2102668140
10.05.2017,CHILDREN'S SERVICES,REDACTED PERSONAL DATA,269.22,ADOPTION PLACEMENTS & INTER AGENCY,PAYMENTS TO CARERS,2102668175
10.05.2017,CHILDREN'S SERVICES,REDACTED PERSONAL DATA,275.1,ADOPTION PLACEMENTS & INTER AGENCY,PAYMENTS TO CARERS,2102668230
10.05.2017,CHILDREN'S SERVICES,REDACTED PERSONAL DATA,293.26,ADOPTION PLACEMENTS & INTER AGENCY,PAYMENTS TO CARERS,2102668183
10.05.2017,CHILDREN'S SERVICES,REDACTED PERSONAL DATA,293.98,ADOPTION PLACEMENTS & INTER AGENCY,PAYMENTS TO CARERS,2102668105
10.05.2017,CHILDREN'S SERVICES,REDACTED PERSONAL DATA,303.32,ADOPTION PLACEMENTS & INTER AGENCY,PAYMENTS TO CARERS,2102668181
10.05.2017,CHILDREN'S SERVICES,REDACTED PERSONAL DATA,311.34,ADOPTION PLACEMENTS & INTER AGENCY,PAYMENTS TO CARERS,2102668104
10.05.2017,CHILDREN'S SERVICES,REDACTED PERSONAL DATA,316.5,ADOPTION PLACEMENTS & INTER AGENCY,PAYMENTS TO CARERS,2102668204
10.05.2017,CHILDREN'S SERVICES,REDACTED PERSONAL DATA,316.5,ADOPTION PLACEMENTS & INTER AGENCY,PAYMENTS TO CARERS,2102668162
10.05.2017,CHILDREN'S SERVICES,REDACTED PERSONAL DATA,319.36,ADOPTION PLACEMENTS & INTER AGENCY,PAYMENTS TO CARERS,2102668168
10.05.2017,CHILDREN'S SERVICES,REDACTED PERSONAL DATA,329.16,ADOPTION PLACEMENTS & INTER AGENCY,PAYMENTS TO CARERS,2102668122
10.05.2017,CHILDREN'S SERVICES,REDACTED PERSONAL DATA,329.16,ADOPTION PLACEMENTS & INTER AGENCY,PAYMENTS TO CARERS,2102668209
10.05.2017,CHILDREN'S SERVICES,REDACTED PERSONAL DATA,352.74,ADOPTION PLACEMENTS & INTER AGENCY,PAYMENTS TO CARERS,2102668205
10.05.2017,CHILDREN'S SERVICES,REDACTED PERSONAL DATA,354.76,ADOPTION PLACEMENTS & INTER AGENCY,PAYMENTS TO CARERS,2102668124
10.05.2017,CHILDREN'S SERVICES,REDACTED PERSONAL DATA,359.44,ADOPTION PLACEMENTS & INTER AGENCY,PAYMENTS TO CARERS,2102668214
10.05.2017,CHILDREN'S SERVICES,REDACTED PERSONAL DATA,359.44,ADOPTION PLACEMENTS & INTER AGENCY,PAYMENTS TO CARERS,2102668156
10.05.2017,CHILDREN'S SERVICES,REDACTED PERSONAL DATA,368.52,ADOPTION PLACEMENTS & INTER AGENCY,PAYMENTS TO CARERS,2102668225
10.05.2017,CHILDREN'S SERVICES,REDACTED PERSONAL DATA,375.54,ADOPTION PLACEMENTS & INTER AGENCY,PAYMENTS TO CARERS,2102668098
10.05.2017,CHILDREN'S SERVICES,REDACTED PERSONAL DATA,375.54,ADOPTION PLACEMENTS & INTER AGENCY,PAYMENTS TO CARERS,2102668176
10.05.2017,CHILDREN'S SERVICES,REDACTED PERSONAL DATA,375.54,ADOPTION PLACEMENTS & INTER AGENCY,PAYMENTS TO CARERS,2102668145
10.05.2017,CHILDREN'S SERVICES,REDACTED PERSONAL DATA,375.54,ADOPTION PLACEMENTS & INTER AGENCY,PAYMENTS TO CARERS,2102668111
10.05.2017,CHILDREN'S SERVICES,REDACTED PERSONAL DATA,375.54,ADOPTION PLACEMENTS & INTER AGENCY,PAYMENTS TO CARERS,2102668248
10.05.2017,CHILDREN'S SERVICES,REDACTED PERSONAL DATA,375.54,ADOPTION PLACEMENTS & INTER AGENCY,PAYMENTS TO CARERS,2102668109
10.05.2017,CHILDREN'S SERVICES,REDACTED PERSONAL DATA,375.54,ADOPTION PLACEMENTS & INTER AGENCY,PAYMENTS TO CARERS,2102668184
10.05.2017,CHILDREN'S SERVICES,REDACTED PERSONAL DATA,375.54,ADOPTION PLACEMENTS & INTER AGENCY,PAYMENTS TO CARERS,2102668137
10.05.2017,CHILDREN'S SERVICES,REDACTED PERSONAL DATA,375.54,ADOPTION PLACEMENTS & INTER AGENCY,PAYMENTS TO CARERS,2102668173
10.05.2017,CHILDREN'S SERVICES,REDACTED PERSONAL DATA,382.3,ADOPTION PLACEMENTS & INTER AGENCY,PAYMENTS TO CARERS,2102668233
10.05.2017,CHILDREN'S SERVICES,REDACTED PERSONAL DATA,382.3,ADOPTION PLACEMENTS & INTER AGENCY,PAYMENTS TO CARERS,2102668238
10.05.2017,CHILDREN'S SERVICES,REDACTED PERSONAL DATA,382.3,ADOPTION PLACEMENTS & INTER AGENCY,PAYMENTS TO CARERS,2102668193
10.05.2017,CHILDREN'S SERVICES,REDACTED PERSONAL DATA,382.3,ADOPTION PLACEMENTS & INTER AGENCY,PAYMENTS TO CARERS,2102668206
10.05.2017,CHILDREN'S SERVICES,REDACTED PERSONAL DATA,390.26,ADOPTION PLACEMENTS & INTER AGENCY,PAYMENTS TO CARERS,2102668211
10.05.2017,CHILDREN'S SERVICES,REDACTED PERSONAL DATA,400.18,ADOPTION PLACEMENTS & INTER AGENCY,PAYMENTS TO CARERS,2102668197
10.05.2017,CHILDREN'S SERVICES,REDACTED PERSONAL DATA,400.84,ADOPTION PLACEMENTS & INTER AGENCY,PAYMENTS TO CARERS,2102668102
10.05.2017,CHILDREN'S SERVICES,REDACTED PERSONAL DATA,404.46,ADOPTION PLACEMENTS & INTER AGENCY,PAYMENTS TO CARERS,2102668201
10.05.2017,CHILDREN'S SERVICES,REDACTED PERSONAL DATA,409.02,ADOPTION PLACEMENTS & INTER AGENCY,PAYMENTS TO CARERS,2102668097
10.05.2017,CHILDREN'S SERVICES,REDACTED PERSONAL DATA,409.02,ADOPTION PLACEMENTS & INTER AGENCY,PAYMENTS TO CARERS,2102668245
10.05.2017,CHILDREN'S SERVICES,REDACTED PERSONAL DATA,451.8,ADOPTION PLACEMENTS & INTER AGENCY,PAYMENTS TO CARERS,2102668094
10.05.2017,CHILDREN'S SERVICES,REDACTED PERSONAL DATA,453.24,ADOPTION PLACEMENTS & INTER AGENCY,PAYMENTS TO CARERS,2102668147
10.05.2017,CHILDREN'S SERVICES,REDACTED PERSONAL DATA,453.24,ADOPTION PLACEMENTS & INTER AGENCY,PAYMENTS TO CARERS,2102668170
10.05.2017,CHILDREN'S SERVICES,REDACTED PERSONAL DATA,457.14,ADOPTION PLACEMENTS & INTER AGENCY,PAYMENTS TO CARERS,2102668190
10.05.2017,CHILDREN'S SERVICES,REDACTED PERSONAL DATA,465.48,ADOPTION PLACEMENTS & INTER AGENCY,PAYMENTS TO CARERS,2102668172
10.05.2017,CHILDREN'S SERVICES,REDACTED PERSONAL DATA,465.52,ADOPTION PLACEMENTS & INTER AGENCY,PAYMENTS TO CARERS,2102668159
10.05.2017,CHILDREN'S SERVICES,REDACTED PERSONAL DATA,465.52,ADOPTION PLACEMENTS & INTER AGENCY,PAYMENTS TO CARERS,2102668154
10.05.2017,CHILDREN'S SERVICES,REDACTED PERSONAL DATA,465.54,ADOPTION PLACEMENTS & INTER AGENCY,PAYMENTS TO CARERS,2102668244
10.05.2017,CHILDREN'S SERVICES,REDACTED PERSONAL DATA,465.54,ADOPTION PLACEMENTS & INTER AGENCY,PAYMENTS TO CARERS,2102668249
10.05.2017,CHILDREN'S SERVICES,REDACTED PERSONAL DATA,465.54,ADOPTION PLACEMENTS & INTER AGENCY,PAYMENTS TO CARERS,2102668165
10.05.2017,CHILDREN'S SERVICES,REDACTED PERSONAL DATA,465.54,ADOPTION PLACEMENTS & INTER AGENCY,PAYMENTS TO CARERS,2102668091
10.05.2017,CHILDREN'S SERVICES,REDACTED PERSONAL DATA,465.54,ADOPTION PLACEMENTS & INTER AGENCY,PAYMENTS TO CARERS,2102668191
10.05.2017,CHILDREN'S SERVICES,REDACTED PERSONAL DATA,468.46,ADOPTION PLACEMENTS & INTER AGENCY,PAYMENTS TO CARERS,2102668163
10.05.2017,CHILDREN'S SERVICES,REDACTED PERSONAL DATA,484.92,ADOPTION PLACEMENTS & INTER AGENCY,PAYMENTS TO CARERS,2102668126
10.05.2017,CHILDREN'S SERVICES,REDACTED PERSONAL DATA,485.22,ADOPTION PLACEMENTS & INTER AGENCY,PAYMENTS TO CARERS,2102668246
10.05.2017,CHILDREN'S SERVICES,REDACTED PERSONAL DATA,502,ADOPTION PLACEMENTS & INTER AGENCY,PAYMENTS TO CARERS,2102668200
10.05.2017,CHILDREN'S SERVICES,REDACTED PERSONAL DATA,512.02,ADOPTION PLACEMENTS & INTER AGENCY,PAYMENTS TO CARERS,2102668149
10.05.2017,CHILDREN'S SERVICES,REDACTED PERSONAL DATA,530,ADOPTION PLACEMENTS & INTER AGENCY,PAYMENTS TO CARERS,2102668187
10.05.2017,CHILDREN'S SERVICES,REDACTED PERSONAL DATA,534.54,ADOPTION PLACEMENTS & INTER AGENCY,PAYMENTS TO CARERS,2102668174
10.05.2017,CHILDREN'S SERVICES,REDACTED PERSONAL DATA,538.08,ADOPTION PLACEMENTS & INTER AGENCY,PAYMENTS TO CARERS,2102668207
10.05.2017,CHILDREN'S SERVICES,REDACTED PERSONAL DATA,552.16,ADOPTION PLACEMENTS & INTER AGENCY,PAYMENTS TO CARERS,2102668188
10.05.2017,CHILDREN'S SERVICES,REDACTED PERSONAL DATA,559.06,ADOPTION PLACEMENTS & INTER AGENCY,PAYMENTS TO CARERS,2102668152
10.05.2017,CHILDREN'S SERVICES,REDACTED PERSONAL DATA,565.71,ADOPTION PLACEMENTS & INTER AGENCY,PAYMENTS TO CARERS,2102668189
10.05.2017,CHILDREN'S SERVICES,REDACTED PERSONAL DATA,588.42,ADOPTION PLACEMENTS & INTER AGENCY,PAYMENTS TO CARERS,2102668216
10.05.2017,CHILDREN'S SERVICES,REDACTED PERSONAL DATA,635.34,ADOPTION PLACEMENTS & INTER AGENCY,PAYMENTS TO CARERS,2102668192
10.05.2017,CHILDREN'S SERVICES,REDACTED PERSONAL DATA,652.9,ADOPTION PLACEMENTS & INTER AGENCY,PAYMENTS TO CARERS,2102668096
10.05.2017,CHILDREN'S SERVICES,REDACTED PERSONAL DATA,652.9,ADOPTION PLACEMENTS & INTER AGENCY,PAYMENTS TO CARERS,2102668224
10.05.2017,CHILDREN'S SERVICES,REDACTED PERSONAL DATA,653.06,ADOPTION PLACEMENTS & INTER AGENCY,PAYMENTS TO CARERS,2102668141
10.05.2017,CHILDREN'S SERVICES,REDACTED PERSONAL DATA,682.3,ADOPTION PLACEMENTS & INTER AGENCY,PAYMENTS TO CARERS,2102668142
10.05.2017,CHILDREN'S SERVICES,REDACTED PERSONAL DATA,682.3,ADOPTION PLACEMENTS & INTER AGENCY,PAYMENTS TO CARERS,2102668203
10.05.2017,CHILDREN'S SERVICES,REDACTED PERSONAL DATA,695.04,ADOPTION PLACEMENTS & INTER AGENCY,PAYMENTS TO CARERS,2102668138
10.05.2017,CHILDREN'S SERVICES,REDACTED PERSONAL DATA,695.12,ADOPTION PLACEMENTS & INTER AGENCY,PAYMENTS TO CARERS,2102668118
10.05.2017,CHILDREN'S SERVICES,REDACTED PERSONAL DATA,705.24,ADOPTION PLACEMENTS & INTER AGENCY,PAYMENTS TO CARERS,2102668222
10.05.2017,CHILDREN'S SERVICES,REDACTED PERSONAL DATA,712.3,ADOPTION PLACEMENTS & INTER AGENCY,PAYMENTS TO CARERS,2102668178
10.05.2017,CHILDREN'S SERVICES,REDACTED PERSONAL DATA,717.14,ADOPTION PLACEMENTS & INTER AGENCY,PAYMENTS TO CARERS,2102668160
10.05.2017,CHILDREN'S SERVICES,REDACTED PERSONAL DATA,738.32,ADOPTION PLACEMENTS & INTER AGENCY,PAYMENTS TO CARERS,2102668177
10.05.2017,CHILDREN'S SERVICES,REDACTED PERSONAL DATA,767.68,ADOPTION PLACEMENTS & INTER AGENCY,PAYMENTS TO CARERS,2102668210
10.05.2017,CHILDREN'S SERVICES,REDACTED PERSONAL DATA,777.36,ADOPTION PLACEMENTS & INTER AGENCY,PAYMENTS TO CARERS,2102668185
10.05.2017,CHILDREN'S SERVICES,REDACTED PERSONAL DATA,800,ADOPTION PLACEMENTS & INTER AGENCY,PAYMENTS TO CARERS,2102668195
10.05.2017,CHILDREN'S SERVICES,REDACTED PERSONAL DATA,854.28,ADOPTION PLACEMENTS & INTER AGENCY,PAYMENTS TO CARERS,2102668106
10.05.2017,CHILDREN'S SERVICES,REDACTED PERSONAL DATA,908,ADOPTION PLACEMENTS & INTER AGENCY,PAYMENTS TO CARERS,2102668243
10.05.2017,CHILDREN'S SERVICES,REDACTED PERSONAL DATA,"1,011.20",ADOPTION PLACEMENTS & INTER AGENCY,PAYMENTS TO CARERS,2102668131
10.05.2017,CHILDREN'S SERVICES,REDACTED PERSONAL DATA,"1,053.20",ADOPTION PLACEMENTS & INTER AGENCY,PAYMENTS TO CARERS,2102668220
10.05.2017,CHILDREN'S SERVICES,REDACTED PERSONAL DATA,"1,647.18",ADOPTION PLACEMENTS & INTER AGENCY,PAYMENTS TO CARERS,2102668112
10.05.2017,CHILDREN'S SERVICES,REDACTED PERSONAL DATA,"5,288.14",ADOPTION PLACEMENTS & INTER AGENCY,PAYMENTS TO CARERS,2102668186
10.05.2017,CHILDREN'S SERVICES,ALBION PRIMARY SCHOOL,"11,527.00",ALBION JMI,EARLY YEARS - 3 AND 4 YEAR OLDS,5902249602
10.05.2017,CHILDREN'S SERVICES,ALBION PRIMARY SCHOOL,"5,498.75",ALBION JMI,HIGH NEEDS - TOP UP FUNDING,5902249600
10.05.2017,CHILDREN'S SERVICES,ALBION PRIMARY SCHOOL,"152,350.55",ALBION JMI,SCHOOLS CAPITATION,5902249601
10.05.2017,CHILDREN'S SERVICES,ALFRED SALTER PRIMARY SCHOOL,"13,555.00",ALFRED SALTER PRIMARY,EARLY YEARS - 3 AND 4 YEAR OLDS,5902249605
10.05.2017,CHILDREN'S SERVICES,ALFRED SALTER PRIMARY SCHOOL,"21,738.75",ALFRED SALTER PRIMARY,HIGH NEEDS - TOP UP FUNDING,5902249603
10.05.2017,CHILDREN'S SERVICES,ALFRED SALTER PRIMARY SCHOOL,"177,333.35",ALFRED SALTER PRIMARY,SCHOOLS CAPITATION,5902249604
10.05.2017,CHILDREN'S SERVICES,BELLENDEN PRIMARY SCHOOL,"9,468.00",BELLENDEN JMI,EARLY YEARS - 3 AND 4 YEAR OLDS,5902249608
10.05.2017,CHILDREN'S SERVICES,BELLENDEN PRIMARY SCHOOL,"6,759.00",BELLENDEN JMI,HIGH NEEDS - TOP UP FUNDING,5902249606
10.05.2017,CHILDREN'S SERVICES,BELLENDEN PRIMARY SCHOOL,"106,331.04",BELLENDEN JMI,SCHOOLS CAPITATION,5902249607
10.05.2017,CHILDREN'S SERVICES,BEORMUND PRIMARY SCHOOL,"71,622.67",BEORMUND SCHOOL,HIGH NEEDS - BASE FUNDING,5902249609
10.05.2017,CHILDREN'S SERVICES,BESSEMER GRANGE PRIMARY SCHOOL,"19,366.00",BESSEMER GRNGE PRIMARY,EARLY YEARS - 3 AND 4 YEAR OLDS,5902249612
10.05.2017,CHILDREN'S SERVICES,BESSEMER GRANGE PRIMARY SCHOOL,"6,558.00",BESSEMER GRNGE PRIMARY,HIGH NEEDS - TOP UP FUNDING,5902249610
10.05.2017,CHILDREN'S SERVICES,BESSEMER GRANGE PRIMARY SCHOOL,"229,624.19",BESSEMER GRNGE PRIMARY,SCHOOLS CAPITATION,5902249611
10.05.2017,CHILDREN'S SERVICES,BOUCHER C OF E PRIMARY SCHOOL,"4,238.00",BOUTCHER GRANGE JMI,HIGH NEEDS - TOP UP FUNDING,5902249614
10.05.2017,CHILDREN'S SERVICES,BOUCHER C OF E PRIMARY SCHOOL,"96,275.90",BOUTCHER GRANGE JMI,SCHOOLS CAPITATION,5902249615
10.05.2017,CHILDREN'S SERVICES,BRUNSWICK PARK PRIMARY SCHOOL,"13,568.00",BRUNSWICK PARK JM,EARLY YEARS - 3 AND 4 YEAR OLDS,5902249620
10.05.2017,CHILDREN'S SERVICES,BRUNSWICK PARK PRIMARY SCHOOL,"14,834.17",BRUNSWICK PARK JM,HIGH NEEDS - TOP UP FUNDING,5902249617
10.05.2017,CHILDREN'S SERVICES,BRUNSWICK PARK PRIMARY SCHOOL,"16,666.67",BRUNSWICK PARK JM,HIGH NEEDS - TOP UP FUNDING,5902249618
10.05.2017,CHILDREN'S SERVICES,BRUNSWICK PARK PRIMARY SCHOOL,"21,645.00",BRUNSWICK PARK JM,HIGH NEEDS - TOP UP FUNDING,5902249616
10.05.2017,CHILDREN'S SERVICES,BRUNSWICK PARK PRIMARY SCHOOL,"211,245.23",BRUNSWICK PARK JM,SCHOOLS CAPITATION,5902249619
10.05.2017,CHILDREN'S SERVICES,CAMELOT PRIMARY SCHOOL,"11,160.00",CAMELOT JMI,EARLY YEARS - 3 AND 4 YEAR OLDS,5902249623
10.05.2017,CHILDREN'S SERVICES,CAMELOT PRIMARY SCHOOL,"9,536.25",CAMELOT JMI,HIGH NEEDS - TOP UP FUNDING,5902249621
10.05.2017,CHILDREN'S SERVICES,CAMELOT PRIMARY SCHOOL,"222,700.93",CAMELOT JMI,SCHOOLS CAPITATION,5902249622
10.05.2017,CHILDREN'S SERVICES,CATHEDRAL SCHOOL OF ST SAVIOUR & MARY,"7,829.00",CATHDRL SCH OF ST,EARLY YEARS - 3 AND 4 YEAR OLDS,5902249790
10.05.2017,CHILDREN'S SERVICES,CATHEDRAL SCHOOL OF ST SAVIOUR & MARY,"85,260.21",CATHDRL SCH OF ST,SCHOOLS CAPITATION,5902249789
10.05.2017,CHILDREN'S SERVICES,CHARLOTTE  SHARMAN PRIMARY SCHOOL,"8,904.00",CHARLOTTE SHARMAN JMI,EARLY YEARS - 3 AND 4 YEAR OLDS,5902249629
10.05.2017,CHILDREN'S SERVICES,CHARLOTTE  SHARMAN PRIMARY SCHOOL,"5,298.00",CHARLOTTE SHARMAN JMI,HIGH NEEDS - TOP UP FUNDING,5902249627
10.05.2017,CHILDREN'S SERVICES,CHARLOTTE  SHARMAN PRIMARY SCHOOL,"136,815.15",CHARLOTTE SHARMAN JMI,SCHOOLS CAPITATION,5902249628
10.05.2017,CHILDREN'S SERVICES,CHERRY GARDEN SCHOOL,"117,658.00",CHERRY GARDEN,HIGH NEEDS - BASE FUNDING,5902249635
10.05.2017,CHILDREN'S SERVICES,COBOURG PRIMARY SCHOOL,"10,964.00",COBURG JMI,EARLY YEARS - 3 AND 4 YEAR OLDS,5902249638
10.05.2017,CHILDREN'S SERVICES,COBOURG PRIMARY SCHOOL,"2,119.00",COBURG JMI,HIGH NEEDS - TOP UP FUNDING,5902249636
10.05.2017,CHILDREN'S SERVICES,COBOURG PRIMARY SCHOOL,"179,251.41",COBURG JMI,SCHOOLS CAPITATION,5902249637
10.05.2017,CHILDREN'S SERVICES,COMBER GROVE PRIMARY SCHOOL,"10,423.00",COMBER GROVE PRIMARY,EARLY YEARS - 3 AND 4 YEAR OLDS,5902249641
10.05.2017,CHILDREN'S SERVICES,COMBER GROVE PRIMARY SCHOOL,"6,357.50",COMBER GROVE PRIMARY,HIGH NEEDS - TOP UP FUNDING,5902249639
10.05.2017,CHILDREN'S SERVICES,COMBER GROVE PRIMARY SCHOOL,"132,874.90",COMBER GROVE PRIMARY,SCHOOLS CAPITATION,5902249640
10.05.2017,CHILDREN'S SERVICES,FLUX STUDIOS,"1,000.00",COMMUNITY LEARNING 15/16,GRANTS,5902249836
10.05.2017,CHILDREN'S SERVICES,FLUX STUDIOS,"3,000.00",COMMUNITY LEARNING 15/16,GRANTS,5902249837
10.05.2017,CHILDREN'S SERVICES,CRAMPTON PRIMARY SCHOOL,"8,878.00",CRAMPTON JMI,HIGH NEEDS - TOP UP FUNDING,5902249642
10.05.2017,CHILDREN'S SERVICES,CRAMPTON PRIMARY SCHOOL,"93,970.06",CRAMPTON JMI,SCHOOLS CAPITATION,5902249643
10.05.2017,CHILDREN'S SERVICES,CRAWFORD PRIMARY SCHOOL,"13,988.00",CRAWFORD JMI,EARLY YEARS - 3 AND 4 YEAR OLDS,5902249646
10.05.2017,CHILDREN'S SERVICES,CRAWFORD PRIMARY SCHOOL,"4,640.00",CRAWFORD JMI,HIGH NEEDS - TOP UP FUNDING,5902249644
10.05.2017,CHILDREN'S SERVICES,CRAWFORD PRIMARY SCHOOL,"218,025.97",CRAWFORD JMI,SCHOOLS CAPITATION,5902249645
10.05.2017,CHILDREN'S SERVICES,DISCLOSURE & BARRING SERVICE,"4,400.00",CSC - RECHARGES,EXTERNAL AGENCIES AND BODIES,5902249851
10.05.2017,CHILDREN'S SERVICES,DULWICH WOOD CHILDRENS CENTRE,"53,378.21",D.WOOD - CENTRAL,EARLY YEARS - 3 AND 4 YEAR OLDS,5902249802
10.05.2017,CHILDREN'S SERVICES,REDACTED PERSONAL DATA,300,DISABILITY & HIV,ADDITIONAL PAYMENTS TO AGENCIES/CARERS,2102668290
10.05.2017,CHILDREN'S SERVICES,REDACTED PERSONAL DATA,450,DISABILITY & HIV,ADDITIONAL PAYMENTS TO AGENCIES/CARERS,2102668316
10.05.2017,CHILDREN'S SERVICES,REDACTED PERSONAL DATA,700,DISABILITY & HIV,ADDITIONAL PAYMENTS TO AGENCIES/CARERS,2102668307
10.05.2017,CHILDREN'S SERVICES,REDACTED PERSONAL DATA,700,DISABILITY & HIV,ADDITIONAL PAYMENTS TO AGENCIES/CARERS,2102668414
10.05.2017,CHILDREN'S SERVICES,REDACTED PERSONAL DATA,700,DISABILITY & HIV,ADDITIONAL PAYMENTS TO AGENCIES/CARERS,2102668506
10.05.2017,CHILDREN'S SERVICES,REDACTED PERSONAL DATA,-356.15,DISABILITY & HIV,PAYMENTS TO CARERS,2102668482
10.05.2017,CHILDREN'S SERVICES,REDACTED PERSONAL DATA,-345.46,DISABILITY & HIV,PAYMENTS TO CARERS,2102668513
10.05.2017,CHILDREN'S SERVICES,REDACTED PERSONAL DATA,-345.46,DISABILITY & HIV,PAYMENTS TO CARERS,2102668406
10.05.2017,CHILDREN'S SERVICES,REDACTED PERSONAL DATA,-332.67,DISABILITY & HIV,PAYMENTS TO CARERS,2102668450
10.05.2017,CHILDREN'S SERVICES,REDACTED PERSONAL DATA,-300,DISABILITY & HIV,PAYMENTS TO CARERS,2102668376
10.05.2017,CHILDREN'S SERVICES,REDACTED PERSONAL DATA,261.52,DISABILITY & HIV,PAYMENTS TO CARERS,2102668268
10.05.2017,CHILDREN'S SERVICES,REDACTED PERSONAL DATA,300,DISABILITY & HIV,PAYMENTS TO CARERS,2102668483
10.05.2017,CHILDREN'S SERVICES,REDACTED PERSONAL DATA,330,DISABILITY & HIV,PAYMENTS TO CARERS,2102668273
10.05.2017,CHILDREN'S SERVICES,REDACTED PERSONAL DATA,341.61,DISABILITY & HIV,PAYMENTS TO CARERS,2102668343
10.05.2017,CHILDREN'S SERVICES,REDACTED PERSONAL DATA,476.08,DISABILITY & HIV,PAYMENTS TO CARERS,2102668355
10.05.2017,CHILDREN'S SERVICES,REDACTED PERSONAL DATA,635.34,DISABILITY & HIV,PAYMENTS TO CARERS,2102668478
10.05.2017,CHILDREN'S SERVICES,REDACTED PERSONAL DATA,635.34,DISABILITY & HIV,PAYMENTS TO CARERS,2102668402
10.05.2017,CHILDREN'S SERVICES,REDACTED PERSONAL DATA,635.34,DISABILITY & HIV,PAYMENTS TO CARERS,2102668264
10.05.2017,CHILDREN'S SERVICES,REDACTED PERSONAL DATA,635.34,DISABILITY & HIV,PAYMENTS TO CARERS,2102668380
10.05.2017,CHILDREN'S SERVICES,REDACTED PERSONAL DATA,635.34,DISABILITY & HIV,PAYMENTS TO CARERS,2102668288
10.05.2017,CHILDREN'S SERVICES,REDACTED PERSONAL DATA,635.34,DISABILITY & HIV,PAYMENTS TO CARERS,2102668362
10.05.2017,CHILDREN'S SERVICES,REDACTED PERSONAL DATA,635.34,DISABILITY & HIV,PAYMENTS TO CARERS,2102668470
10.05.2017,CHILDREN'S SERVICES,REDACTED PERSONAL DATA,635.34,DISABILITY & HIV,PAYMENTS TO CARERS,2102668383
10.05.2017,CHILDREN'S SERVICES,REDACTED PERSONAL DATA,635.34,DISABILITY & HIV,PAYMENTS TO CARERS,2102668254
10.05.2017,CHILDREN'S SERVICES,REDACTED PERSONAL DATA,640.9,DISABILITY & HIV,PAYMENTS TO CARERS,2102668302
10.05.2017,CHILDREN'S SERVICES,REDACTED PERSONAL DATA,665.34,DISABILITY & HIV,PAYMENTS TO CARERS,2102668489
10.05.2017,CHILDREN'S SERVICES,REDACTED PERSONAL DATA,665.34,DISABILITY & HIV,PAYMENTS TO CARERS,2102668262
10.05.2017,CHILDREN'S SERVICES,REDACTED PERSONAL DATA,665.34,DISABILITY & HIV,PAYMENTS TO CARERS,2102668350
10.05.2017,CHILDREN'S SERVICES,REDACTED PERSONAL DATA,665.34,DISABILITY & HIV,PAYMENTS TO CARERS,2102668455
10.05.2017,CHILDREN'S SERVICES,REDACTED PERSONAL DATA,665.34,DISABILITY & HIV,PAYMENTS TO CARERS,2102668441
10.05.2017,CHILDREN'S SERVICES,REDACTED PERSONAL DATA,665.34,DISABILITY & HIV,PAYMENTS TO CARERS,2102668508
10.05.2017,CHILDREN'S SERVICES,REDACTED PERSONAL DATA,665.34,DISABILITY & HIV,PAYMENTS TO CARERS,2102668435
10.05.2017,CHILDREN'S SERVICES,REDACTED PERSONAL DATA,665.34,DISABILITY & HIV,PAYMENTS TO CARERS,2102668293
10.05.2017,CHILDREN'S SERVICES,REDACTED PERSONAL DATA,665.34,DISABILITY & HIV,PAYMENTS TO CARERS,2102668419
10.05.2017,CHILDREN'S SERVICES,REDACTED PERSONAL DATA,665.34,DISABILITY & HIV,PAYMENTS TO CARERS,2102668430
10.05.2017,CHILDREN'S SERVICES,REDACTED PERSONAL DATA,665.34,DISABILITY & HIV,PAYMENTS TO CARERS,2102668364
10.05.2017,CHILDREN'S SERVICES,REDACTED PERSONAL DATA,665.34,DISABILITY & HIV,PAYMENTS TO CARERS,2102668303
10.05.2017,CHILDREN'S SERVICES,REDACTED PERSONAL DATA,665.34,DISABILITY & HIV,PAYMENTS TO CARERS,2102668494
10.05.2017,CHILDREN'S SERVICES,REDACTED PERSONAL DATA,665.34,DISABILITY & HIV,PAYMENTS TO CARERS,2102668431
10.05.2017,CHILDREN'S SERVICES,REDACTED PERSONAL DATA,682.3,DISABILITY & HIV,PAYMENTS TO CARERS,2102668289
10.05.2017,CHILDREN'S SERVICES,REDACTED PERSONAL DATA,682.3,DISABILITY & HIV,PAYMENTS TO CARERS,2102668491
10.05.2017,CHILDREN'S SERVICES,REDACTED PERSONAL DATA,682.3,DISABILITY & HIV,PAYMENTS TO CARERS,2102668456
10.05.2017,CHILDREN'S SERVICES,REDACTED PERSONAL DATA,682.3,DISABILITY & HIV,PAYMENTS TO CARERS,2102668341
10.05.2017,CHILDREN'S SERVICES,REDACTED PERSONAL DATA,682.3,DISABILITY & HIV,PAYMENTS TO CARERS,2102668320
10.05.2017,CHILDREN'S SERVICES,REDACTED PERSONAL DATA,682.3,DISABILITY & HIV,PAYMENTS TO CARERS,2102668328
10.05.2017,CHILDREN'S SERVICES,REDACTED PERSONAL DATA,682.3,DISABILITY & HIV,PAYMENTS TO CARERS,2102668323
10.05.2017,CHILDREN'S SERVICES,REDACTED PERSONAL DATA,682.3,DISABILITY & HIV,PAYMENTS TO CARERS,2102668314
10.05.2017,CHILDREN'S SERVICES,REDACTED PERSONAL DATA,682.3,DISABILITY & HIV,PAYMENTS TO CARERS,2102668408
10.05.2017,CHILDREN'S SERVICES,REDACTED PERSONAL DATA,682.3,DISABILITY & HIV,PAYMENTS TO CARERS,2102668369
10.05.2017,CHILDREN'S SERVICES,REDACTED PERSONAL DATA,682.3,DISABILITY & HIV,PAYMENTS TO CARERS,2102668317
10.05.2017,CHILDREN'S SERVICES,REDACTED PERSONAL DATA,682.3,DISABILITY & HIV,PAYMENTS TO CARERS,2102668420
10.05.2017,CHILDREN'S SERVICES,REDACTED PERSONAL DATA,682.3,DISABILITY & HIV,PAYMENTS TO CARERS,2102668516
10.05.2017,CHILDREN'S SERVICES,REDACTED PERSONAL DATA,682.3,DISABILITY & HIV,PAYMENTS TO CARERS,2102668294
10.05.2017,CHILDREN'S SERVICES,REDACTED PERSONAL DATA,682.3,DISABILITY & HIV,PAYMENTS TO CARERS,2102668409
10.05.2017,CHILDREN'S SERVICES,REDACTED PERSONAL DATA,682.3,DISABILITY & HIV,PAYMENTS TO CARERS,2102668271
10.05.2017,CHILDREN'S SERVICES,REDACTED PERSONAL DATA,682.3,DISABILITY & HIV,PAYMENTS TO CARERS,2102668429
10.05.2017,CHILDREN'S SERVICES,REDACTED PERSONAL DATA,712.3,DISABILITY & HIV,PAYMENTS TO CARERS,2102668416
10.05.2017,CHILDREN'S SERVICES,REDACTED PERSONAL DATA,712.3,DISABILITY & HIV,PAYMENTS TO CARERS,2102668395
10.05.2017,CHILDREN'S SERVICES,REDACTED PERSONAL DATA,712.3,DISABILITY & HIV,PAYMENTS TO CARERS,2102668311
10.05.2017,CHILDREN'S SERVICES,REDACTED PERSONAL DATA,712.3,DISABILITY & HIV,PAYMENTS TO CARERS,2102668437
10.05.2017,CHILDREN'S SERVICES,REDACTED PERSONAL DATA,712.3,DISABILITY & HIV,PAYMENTS TO CARERS,2102668512
10.05.2017,CHILDREN'S SERVICES,REDACTED PERSONAL DATA,712.3,DISABILITY & HIV,PAYMENTS TO CARERS,2102668340
10.05.2017,CHILDREN'S SERVICES,REDACTED PERSONAL DATA,712.3,DISABILITY & HIV,PAYMENTS TO CARERS,2102668292
10.05.2017,CHILDREN'S SERVICES,REDACTED PERSONAL DATA,712.3,DISABILITY & HIV,PAYMENTS TO CARERS,2102668422
10.05.2017,CHILDREN'S SERVICES,REDACTED PERSONAL DATA,712.3,DISABILITY & HIV,PAYMENTS TO CARERS,2102668412
10.05.2017,CHILDREN'S SERVICES,REDACTED PERSONAL DATA,712.3,DISABILITY & HIV,PAYMENTS TO CARERS,2102668261
10.05.2017,CHILDREN'S SERVICES,REDACTED PERSONAL DATA,712.3,DISABILITY & HIV,PAYMENTS TO CARERS,2102668322
10.05.2017,CHILDREN'S SERVICES,REDACTED PERSONAL DATA,712.3,DISABILITY & HIV,PAYMENTS TO CARERS,2102668338
10.05.2017,CHILDREN'S SERVICES,REDACTED PERSONAL DATA,712.3,DISABILITY & HIV,PAYMENTS TO CARERS,2102668463
10.05.2017,CHILDREN'S SERVICES,REDACTED PERSONAL DATA,712.3,DISABILITY & HIV,PAYMENTS TO CARERS,2102668399
10.05.2017,CHILDREN'S SERVICES,REDACTED PERSONAL DATA,712.3,DISABILITY & HIV,PAYMENTS TO CARERS,2102668465
10.05.2017,CHILDREN'S SERVICES,REDACTED PERSONAL DATA,712.3,DISABILITY & HIV,PAYMENTS TO CARERS,2102668374
10.05.2017,CHILDREN'S SERVICES,REDACTED PERSONAL DATA,712.3,DISABILITY & HIV,PAYMENTS TO CARERS,2102668466
10.05.2017,CHILDREN'S SERVICES,REDACTED PERSONAL DATA,712.3,DISABILITY & HIV,PAYMENTS TO CARERS,2102668329
10.05.2017,CHILDREN'S SERVICES,REDACTED PERSONAL DATA,712.3,DISABILITY & HIV,PAYMENTS TO CARERS,2102668354
10.05.2017,CHILDREN'S SERVICES,REDACTED PERSONAL DATA,712.3,DISABILITY & HIV,PAYMENTS TO CARERS,2102668469
10.05.2017,CHILDREN'S SERVICES,REDACTED PERSONAL DATA,712.3,DISABILITY & HIV,PAYMENTS TO CARERS,2102668432
10.05.2017,CHILDREN'S SERVICES,REDACTED PERSONAL DATA,712.3,DISABILITY & HIV,PAYMENTS TO CARERS,2102668394
10.05.2017,CHILDREN'S SERVICES,REDACTED PERSONAL DATA,712.3,DISABILITY & HIV,PAYMENTS TO CARERS,2102668363
10.05.2017,CHILDREN'S SERVICES,REDACTED PERSONAL DATA,712.3,DISABILITY & HIV,PAYMENTS TO CARERS,2102668503
10.05.2017,CHILDREN'S SERVICES,REDACTED PERSONAL DATA,768.12,DISABILITY & HIV,PAYMENTS TO CARERS,2102668477
10.05.2017,CHILDREN'S SERVICES,REDACTED PERSONAL DATA,768.12,DISABILITY & HIV,PAYMENTS TO CARERS,2102668479
10.05.2017,CHILDREN'S SERVICES,REDACTED PERSONAL DATA,768.12,DISABILITY & HIV,PAYMENTS TO CARERS,2102668428
10.05.2017,CHILDREN'S SERVICES,REDACTED PERSONAL DATA,768.12,DISABILITY & HIV,PAYMENTS TO CARERS,2102668486
10.05.2017,CHILDREN'S SERVICES,REDACTED PERSONAL DATA,768.12,DISABILITY & HIV,PAYMENTS TO CARERS,2102668504
10.05.2017,CHILDREN'S SERVICES,REDACTED PERSONAL DATA,776.08,DISABILITY & HIV,PAYMENTS TO CARERS,2102668379
10.05.2017,CHILDREN'S SERVICES,REDACTED PERSONAL DATA,776.08,DISABILITY & HIV,PAYMENTS TO CARERS,2102668509
10.05.2017,CHILDREN'S SERVICES,REDACTED PERSONAL DATA,776.08,DISABILITY & HIV,PAYMENTS TO CARERS,2102668298
10.05.2017,CHILDREN'S SERVICES,REDACTED PERSONAL DATA,776.08,DISABILITY & HIV,PAYMENTS TO CARERS,2102668309
10.05.2017,CHILDREN'S SERVICES,REDACTED PERSONAL DATA,776.08,DISABILITY & HIV,PAYMENTS TO CARERS,2102668400
10.05.2017,CHILDREN'S SERVICES,REDACTED PERSONAL DATA,776.08,DISABILITY & HIV,PAYMENTS TO CARERS,2102668484
10.05.2017,CHILDREN'S SERVICES,REDACTED PERSONAL DATA,776.08,DISABILITY & HIV,PAYMENTS TO CARERS,2102668278
10.05.2017,CHILDREN'S SERVICES,REDACTED PERSONAL DATA,776.08,DISABILITY & HIV,PAYMENTS TO CARERS,2102668387
10.05.2017,CHILDREN'S SERVICES,REDACTED PERSONAL DATA,776.08,DISABILITY & HIV,PAYMENTS TO CARERS,2102668426
10.05.2017,CHILDREN'S SERVICES,REDACTED PERSONAL DATA,776.08,DISABILITY & HIV,PAYMENTS TO CARERS,2102668266
10.05.2017,CHILDREN'S SERVICES,REDACTED PERSONAL DATA,776.08,DISABILITY & HIV,PAYMENTS TO CARERS,2102668452
10.05.2017,CHILDREN'S SERVICES,REDACTED PERSONAL DATA,777.36,DISABILITY & HIV,PAYMENTS TO CARERS,2102668460
10.05.2017,CHILDREN'S SERVICES,REDACTED PERSONAL DATA,777.36,DISABILITY & HIV,PAYMENTS TO CARERS,2102668467
10.05.2017,CHILDREN'S SERVICES,REDACTED PERSONAL DATA,798.12,DISABILITY & HIV,PAYMENTS TO CARERS,2102668485
10.05.2017,CHILDREN'S SERVICES,REDACTED PERSONAL DATA,798.12,DISABILITY & HIV,PAYMENTS TO CARERS,2102668306
10.05.2017,CHILDREN'S SERVICES,REDACTED PERSONAL DATA,798.12,DISABILITY & HIV,PAYMENTS TO CARERS,2102668480
10.05.2017,CHILDREN'S SERVICES,REDACTED PERSONAL DATA,798.12,DISABILITY & HIV,PAYMENTS TO CARERS,2102668436
10.05.2017,CHILDREN'S SERVICES,REDACTED PERSONAL DATA,798.12,DISABILITY & HIV,PAYMENTS TO CARERS,2102668418
10.05.2017,CHILDREN'S SERVICES,REDACTED PERSONAL DATA,798.12,DISABILITY & HIV,PAYMENTS TO CARERS,2102668330
10.05.2017,CHILDREN'S SERVICES,REDACTED PERSONAL DATA,798.12,DISABILITY & HIV,PAYMENTS TO CARERS,2102668348
10.05.2017,CHILDREN'S SERVICES,REDACTED PERSONAL DATA,798.12,DISABILITY & HIV,PAYMENTS TO CARERS,2102668265
10.05.2017,CHILDREN'S SERVICES,REDACTED PERSONAL DATA,798.12,DISABILITY & HIV,PAYMENTS TO CARERS,2102668352
10.05.2017,CHILDREN'S SERVICES,REDACTED PERSONAL DATA,798.12,DISABILITY & HIV,PAYMENTS TO CARERS,2102668315
10.05.2017,CHILDREN'S SERVICES,REDACTED PERSONAL DATA,798.12,DISABILITY & HIV,PAYMENTS TO CARERS,2102668490
10.05.2017,CHILDREN'S SERVICES,REDACTED PERSONAL DATA,798.12,DISABILITY & HIV,PAYMENTS TO CARERS,2102668417
10.05.2017,CHILDREN'S SERVICES,REDACTED PERSONAL DATA,798.12,DISABILITY & HIV,PAYMENTS TO CARERS,2102668332
10.05.2017,CHILDREN'S SERVICES,REDACTED PERSONAL DATA,798.12,DISABILITY & HIV,PAYMENTS TO CARERS,2102668505
10.05.2017,CHILDREN'S SERVICES,REDACTED PERSONAL DATA,798.12,DISABILITY & HIV,PAYMENTS TO CARERS,2102668300
10.05.2017,CHILDREN'S SERVICES,REDACTED PERSONAL DATA,798.12,DISABILITY & HIV,PAYMENTS TO CARERS,2102668335
10.05.2017,CHILDREN'S SERVICES,REDACTED PERSONAL DATA,798.12,DISABILITY & HIV,PAYMENTS TO CARERS,2102668497
10.05.2017,CHILDREN'S SERVICES,REDACTED PERSONAL DATA,798.12,DISABILITY & HIV,PAYMENTS TO CARERS,2102668401
10.05.2017,CHILDREN'S SERVICES,REDACTED PERSONAL DATA,798.12,DISABILITY & HIV,PAYMENTS TO CARERS,2102668472
10.05.2017,CHILDREN'S SERVICES,REDACTED PERSONAL DATA,798.12,DISABILITY & HIV,PAYMENTS TO CARERS,2102668407
10.05.2017,CHILDREN'S SERVICES,REDACTED PERSONAL DATA,798.12,DISABILITY & HIV,PAYMENTS TO CARERS,2102668259
10.05.2017,CHILDREN'S SERVICES,REDACTED PERSONAL DATA,801.68,DISABILITY & HIV,PAYMENTS TO CARERS,2102668389
10.05.2017,CHILDREN'S SERVICES,REDACTED PERSONAL DATA,806.08,DISABILITY & HIV,PAYMENTS TO CARERS,2102668388
10.05.2017,CHILDREN'S SERVICES,REDACTED PERSONAL DATA,806.08,DISABILITY & HIV,PAYMENTS TO CARERS,2102668308
10.05.2017,CHILDREN'S SERVICES,REDACTED PERSONAL DATA,806.08,DISABILITY & HIV,PAYMENTS TO CARERS,2102668415
10.05.2017,CHILDREN'S SERVICES,REDACTED PERSONAL DATA,806.08,DISABILITY & HIV,PAYMENTS TO CARERS,2102668507
10.05.2017,CHILDREN'S SERVICES,REDACTED PERSONAL DATA,806.08,DISABILITY & HIV,PAYMENTS TO CARERS,2102668440
10.05.2017,CHILDREN'S SERVICES,REDACTED PERSONAL DATA,806.08,DISABILITY & HIV,PAYMENTS TO CARERS,2102668446
10.05.2017,CHILDREN'S SERVICES,REDACTED PERSONAL DATA,806.08,DISABILITY & HIV,PAYMENTS TO CARERS,2102668493
10.05.2017,CHILDREN'S SERVICES,REDACTED PERSONAL DATA,806.08,DISABILITY & HIV,PAYMENTS TO CARERS,2102668255
10.05.2017,CHILDREN'S SERVICES,REDACTED PERSONAL DATA,806.08,DISABILITY & HIV,PAYMENTS TO CARERS,2102668353
10.05.2017,CHILDREN'S SERVICES,REDACTED PERSONAL DATA,806.08,DISABILITY & HIV,PAYMENTS TO CARERS,2102668391
10.05.2017,CHILDREN'S SERVICES,REDACTED PERSONAL DATA,806.08,DISABILITY & HIV,PAYMENTS TO CARERS,2102668305
10.05.2017,CHILDREN'S SERVICES,REDACTED PERSONAL DATA,806.08,DISABILITY & HIV,PAYMENTS TO CARERS,2102668274
10.05.2017,CHILDREN'S SERVICES,REDACTED PERSONAL DATA,806.08,DISABILITY & HIV,PAYMENTS TO CARERS,2102668295
10.05.2017,CHILDREN'S SERVICES,REDACTED PERSONAL DATA,806.08,DISABILITY & HIV,PAYMENTS TO CARERS,2102668367
10.05.2017,CHILDREN'S SERVICES,REDACTED PERSONAL DATA,806.08,DISABILITY & HIV,PAYMENTS TO CARERS,2102668501
10.05.2017,CHILDREN'S SERVICES,REDACTED PERSONAL DATA,806.08,DISABILITY & HIV,PAYMENTS TO CARERS,2102668425
10.05.2017,CHILDREN'S SERVICES,REDACTED PERSONAL DATA,806.08,DISABILITY & HIV,PAYMENTS TO CARERS,2102668347
10.05.2017,CHILDREN'S SERVICES,REDACTED PERSONAL DATA,806.08,DISABILITY & HIV,PAYMENTS TO CARERS,2102668256
10.05.2017,CHILDREN'S SERVICES,REDACTED PERSONAL DATA,806.08,DISABILITY & HIV,PAYMENTS TO CARERS,2102668346
10.05.2017,CHILDREN'S SERVICES,REDACTED PERSONAL DATA,806.08,DISABILITY & HIV,PAYMENTS TO CARERS,2102668421
10.05.2017,CHILDREN'S SERVICES,REDACTED PERSONAL DATA,806.08,DISABILITY & HIV,PAYMENTS TO CARERS,2102668464
10.05.2017,CHILDREN'S SERVICES,REDACTED PERSONAL DATA,806.08,DISABILITY & HIV,PAYMENTS TO CARERS,2102668385
10.05.2017,CHILDREN'S SERVICES,REDACTED PERSONAL DATA,806.08,DISABILITY & HIV,PAYMENTS TO CARERS,2102668321
10.05.2017,CHILDREN'S SERVICES,REDACTED PERSONAL DATA,806.08,DISABILITY & HIV,PAYMENTS TO CARERS,2102668397
10.05.2017,CHILDREN'S SERVICES,REDACTED PERSONAL DATA,806.08,DISABILITY & HIV,PAYMENTS TO CARERS,2102668471
10.05.2017,CHILDREN'S SERVICES,REDACTED PERSONAL DATA,806.08,DISABILITY & HIV,PAYMENTS TO CARERS,2102668448
10.05.2017,CHILDREN'S SERVICES,REDACTED PERSONAL DATA,806.08,DISABILITY & HIV,PAYMENTS TO CARERS,2102668449
10.05.2017,CHILDREN'S SERVICES,REDACTED PERSONAL DATA,806.08,DISABILITY & HIV,PAYMENTS TO CARERS,2102668458
10.05.2017,CHILDREN'S SERVICES,REDACTED PERSONAL DATA,806.08,DISABILITY & HIV,PAYMENTS TO CARERS,2102668403
10.05.2017,CHILDREN'S SERVICES,REDACTED PERSONAL DATA,806.08,DISABILITY & HIV,PAYMENTS TO CARERS,2102668351
10.05.2017,CHILDREN'S SERVICES,REDACTED PERSONAL DATA,806.08,DISABILITY & HIV,PAYMENTS TO CARERS,2102668257
10.05.2017,CHILDREN'S SERVICES,REDACTED PERSONAL DATA,806.08,DISABILITY & HIV,PAYMENTS TO CARERS,2102668451
10.05.2017,CHILDREN'S SERVICES,REDACTED PERSONAL DATA,806.08,DISABILITY & HIV,PAYMENTS TO CARERS,2102668487
10.05.2017,CHILDREN'S SERVICES,REDACTED PERSONAL DATA,806.08,DISABILITY & HIV,PAYMENTS TO CARERS,2102668283
10.05.2017,CHILDREN'S SERVICES,REDACTED PERSONAL DATA,806.08,DISABILITY & HIV,PAYMENTS TO CARERS,2102668427
10.05.2017,CHILDREN'S SERVICES,REDACTED PERSONAL DATA,806.08,DISABILITY & HIV,PAYMENTS TO CARERS,2102668398
10.05.2017,CHILDREN'S SERVICES,REDACTED PERSONAL DATA,806.08,DISABILITY & HIV,PAYMENTS TO CARERS,2102668515
10.05.2017,CHILDREN'S SERVICES,REDACTED PERSONAL DATA,806.08,DISABILITY & HIV,PAYMENTS TO CARERS,2102668461
10.05.2017,CHILDREN'S SERVICES,REDACTED PERSONAL DATA,806.08,DISABILITY & HIV,PAYMENTS TO CARERS,2102668358
10.05.2017,CHILDREN'S SERVICES,REDACTED PERSONAL DATA,806.08,DISABILITY & HIV,PAYMENTS TO CARERS,2102668378
10.05.2017,CHILDREN'S SERVICES,REDACTED PERSONAL DATA,806.08,DISABILITY & HIV,PAYMENTS TO CARERS,2102668334
10.05.2017,CHILDREN'S SERVICES,REDACTED PERSONAL DATA,806.08,DISABILITY & HIV,PAYMENTS TO CARERS,2102668336
10.05.2017,CHILDREN'S SERVICES,REDACTED PERSONAL DATA,806.08,DISABILITY & HIV,PAYMENTS TO CARERS,2102668319
10.05.2017,CHILDREN'S SERVICES,REDACTED PERSONAL DATA,806.08,DISABILITY & HIV,PAYMENTS TO CARERS,2102668331
10.05.2017,CHILDREN'S SERVICES,REDACTED PERSONAL DATA,806.08,DISABILITY & HIV,PAYMENTS TO CARERS,2102668368
10.05.2017,CHILDREN'S SERVICES,REDACTED PERSONAL DATA,806.08,DISABILITY & HIV,PAYMENTS TO CARERS,2102668272
10.05.2017,CHILDREN'S SERVICES,REDACTED PERSONAL DATA,806.08,DISABILITY & HIV,PAYMENTS TO CARERS,2102668445
10.05.2017,CHILDREN'S SERVICES,REDACTED PERSONAL DATA,806.08,DISABILITY & HIV,PAYMENTS TO CARERS,2102668454
